Workbook

Sheet Front page

Sheet Guide
B8: Context & Purpose
B9: What is the NHS Mental Health Dashboard? The NHS Mental Health Dashboard (formerly the Five Year Forward View Dashboard), first published in October 2016, is a response to the recommendation in the Five Year Forward View for Mental Health that NHS England create a tool “that will identify metrics for monitoring key performance and outcomes data and that will allow us to hold national and local bodies to account for implementing this strategy.” A key purpose of the Dashboard is to enable NHS England and the Five Year Forward View Programme Board to monitor progress on its commitments to transform mental health services. Additionally, by making the data publicly available, we are ensuring that commissioners can use it as a tool to inform their work and that service users and their families and carers can see how local services are performing. Understanding financial data in the NHS Mental Health Dashboard The Dashboard includes an unprecedented level of information on the amount of money being invested in mental health services across England. As well as publishing overall spend on mental health, it also includes programme level spend at CCG, ICB, regional and national level. This includes spend data on: • Children and young people’s (CYP) mental health services • CYP eating disorder services • Specialist community perinatal mental health services • Early intervention in psychosis services • NHS Talking Therapies services (formerly IAPT) • A&E liaison services • Crisis resolution home treatment services It is important to note that some CCGs have had difficulties extracting costs for specific services that they commission because of block contract arrangements. As a consequence, although the total mental health spend by CCG is accurate, it may be under or overstated at the individual programme levels listed above. NHS England continues to work closely with CCGs to support them to improve the quality of information they are able to provide on their expenditure. Nevertheless, it is advised that this information is used with caution. Calculating the Mental Health Investment Standard NHS England has committed to increasing the proportion of NHS spending on mental health and has developed the ‘Mental Health Investment Standard’ (MHIS) to track whether this is being delivered. In simple terms, achievement of the MHIS compares the growth of CCG spend on mental health with the growth of a CCG’s programme allocation. CCGs must continue to increase investment in mental health services, in line with the Mental Health Investment Standard (MHIS). For 2019/20 the standard requires CCGs to increase spend by at least their overall programme allocation growth plus an additional percentage increment to reflect the additional mental health funding included in CCG allocations for 2019/20. In order to deliver the service expansions planned for 2019/20, CCGs (other than by local exception requiring prior agreement with NHS England) also needed to increase the share of their total mental health expenditure that is spent with mental health providers. The MHIS is calculated at CCG level and nationally. The MHIS calculation will be met based on final outturn for 2019/20, subject to the MHIS review that will be conducted later in the calendar year. The MHIS calculation does not include planned or actual spend on learning disabilities and dementia, which is included in the total mental health spend presented here. Specialised commissioning spend is not included in the mental health investment standard compliance calculation. Data availability and quality Whilst every effort has been made to ensure that the data in the Dashboard has been properly quality assured, some of the data used is classed as experimental, whilst other information, particularly financial data, is necessarily revised and improved over time. Data is correct at the time of publishing, however, caution is advised when seeking to draw comparisons between data in different iterations of the Dashboard.
B24: Sheet description
B25: Metadata: | D25: This sheet contains information about the data used for each indicator. In particular, it includes a description of the indicators; information on the numerators and denominators (where applicable); any caveats around the data and the methodology; the indicator reporting period (quarter or year) as well as information and links to the data sources.
B27: Dashboard: | D27: This sheet shows the value; the change; the annual objective; the trend and performance against the national median for each indicator. A detailed description of each column is provided in the "Dashboard" section below.
B29: Dashboard
B30: To begin, select one of the four geographies (England, Region, ICB or Sub-ICB) from the first drop-down list at the top of the page. If you have selected "England" there is no further action required. For all other geographies, please select one of the seven regions (North East and Yorkshire, North West, London, Midlands, East of England, South West of England and South East of England) from the second drop-down list. Similar to the first drop-down, if you have selected "Region" there is no further action required. Lastly, for Sub-ICBs or ICBs, select one of the 106 Sub-ICBs or 42 ICBs listed by region and alphabetically in the last drop-down list.
B40: The dashboard is automatically populated with the data relevant to the selected geography or organisation.
B41: A key/description for each column is also available in the Dashboard tab by clicking on the column headings.
B42: A description of each column in the Dashboard can be found below:
B43: Code: | D43: This is a unique code for each indicator, used across this spreadsheet. You can use this code to search for the indicator you are interested in by using the filter in column B of the Metadata tab.
B45: Indicator: | D45: This column shows the short description of each indicator. For a more detailed description please see the Metadata tab. National measures only: Certain indicator data are only available at a national (England) and in some cases regional level only, hence a few indicators are marked as national measures only. When a Sub-ICB is selected from the drop-down list, the values for these measures are greyed out.
B48: Latest reporting period: | D48: This column shows for each indicator the latest reporting period that the dashboard includes data for. For indicators updated in the latest dashboard iteration this field is in bold and italics.
B50: Indicator value: | D50: The value of the indicator in the latest reporting period and in brackets the annual objective for each indicator (where applicable), as set out in the Five Year Forward View for Mental Health implementation plan. Where there is an annual objective, a red dot signifies that the value is below the objective; a green dot that it's meeting the objective. N/A signifies that data is either suppressed (counts of less than 5) or not available at that level.
B55: Standard met/on track: | D55: This column shows the indicator value compared to the National Standard or specific target for the organisation (e.g. IAPT (i.a)), if the indicator value meets (or exceeds) the National Standard or target the icon will be green if the indicator value does not meet the National Standard or target the icon will be red.
B59: Trend: | D59: The sparklines give an indication of trend over a specified time period (usually the last 6 quarters or last 3 years depending on the indicator reporting period and the data availability. Exceptions to this are indicators ES(i) and CR (i.a) as these show a trend before and after an intervention). NB: Where there are only a limited number of data points in the sparkline graphs then apparent changes may appear distorted and care should be taken when interpreting.
B62: Better is...: | D62: This column indicates whether a high or a low value is considered better for the particular measure. An upward arrow p indicates that higher values are better, while a downward arrow q that lower values are better. N/A denotes Not Applicable and is shown when an indicator needs to be considered alongside other measures to interpret the figures and hence a higher or a lower value is not necessarily indication of better performance.
B65: 12 Month % Change | D65: This column shows the proportion of change for the organisation selected since the figure it reported 12 months earlier. Where the indicator is reported as a percentage, the change in % will be reported as the percentage point difference. Depending on the “Better is” column for each individual indicator, the value will appear in red or green to denote if this is a better or worse change to 12 months ago (where the "Better is" column is N/A, the value will be black). If there is no data available for the indicator or it is an inappropriate measure e.g. MHF (iii) MH Investment standard achieved), the cells will be greyed out.
B66: 24 Month % Change | D66: Similarly, this column shows the proportion of change for the organisation selected since the figure it reported 24 months earlier. Where the indicator is reported as a percentage, the change in % will be reported as the percentage point difference. Depending on the “Better is” column for each individual indicator, the value will appear in red or green to denote if this is a better or worse change to 24 months ago (where the "Better is" column is N/A, the value will be black). If there is no data available for the indicator or it is an inappropriate measure e.g. MHF (iii) MH Investment standard achieved), the cells will be greyed out.
B67: Range: | D67: The spine chart shows the relative performance of the organisation against the relevant comparator group (either all Sub-ICBs or all ICBs) for the latest period. An organisation value towards the right of the scale indicates a higher value for that measure and towards the left indicates a lower value. Please refer to the "Better is..." column in order to interpret if the organisation's position shows “better” or "worse" performance. Percentiles are based on national data. The spine chart is only available at Sub-ICB and ICB level and only applicable to a set of indicators. When the organisation value is blank or suppressed (*) it is not showing on the chart. NB: Not all indicators presented with spine charts have been normalised, so interpretation needs to be undertaken with caution. Please use the trend to add context where available.
B79: Printing
B80: The "Dashboard" and "Guide" tabs are designed to print on A3 paper in portrait orientation and the "Metadata" tab in landscape orientation. Go to the File Ribbon and select Print. If you are happy with the print preview, then click print otherwise select page setup to adjust scaling.
B82: Updates
B83: The dashboard will be updated quarterly.
B85: Version Control
B86: 2016-10-27 | C86: October 2016 publication | D86: First version
B87: 2017-01-30 | C87: January 2017 publication | D87: Refreshed data for all indicators bolded and italicised in the "Latest reporting period" column. Added STP functionality. Added two new indicators, IAPT(i_b) and IAPT(ii_b). Revised the definition and calculation for indicators SP(ii_a) and SP(ii_b).
B88: 2017-05-02 | C88: May 2017 publication | D88: Refreshed data for all indicators bolded and italicised in the "Latest reporting period" column. Revised the definition and calculation for indicator IAPT(i_b). Replaced previously reported experimental measure CYP(ii) Number of new CYP under 18 receiving treatment in NHS funded community services with Number of CYP receiving at least two contacts in NHS funded community services. See the Metadata tab for the definition of updated indicator
B89: 2017-07-28 | C89: July 2017 publication | D89: Refreshed data for all indicators bolded and italicised in the "Latest reporting period" column. Revised finance indicators to no longer refer to plan data but to year end outturn data.
B90: 2017-11-10 | C90: November 2017 publication | D90: Refreshed data for all indicators bolded and italicised in the "Latest reporting period" column. Indicators updated, amended, and removed.
B91: 2018-01-31 | C91: National Summary (Q1&Q2 2017/18) | D91: Provided a summary front sheet giving a national view of a 6-month period (Q1 and Q2 2017/18).
B92: 2018-02-07 | C92: February 2018 publication | D92: Time period of publication changed from quarterly to cover a 6-month period (Q1 and Q2 2017/18). Refreshed data for all indicators bolded and italicised in the "Latest reporting period" column. Indicators updated, amended, and removed.
B93: 2018-07-06 | C93: August 2018 publications | D93: Two publications provided to cover Q3 and Q4. Refreshed data for all indicators bolded and italicised in the "Latest reporting period" column.
B94: 2018-11-20 | C94: January 2019 Publication | D94: Restructured dashboard to use the new Sub-ICB, STP and regional structures for 2018/19 (see below). Refreshed data for all indicators bolded and italicised in the "Latest reporting period" column. Indicators updated, amended, and removed. New indicators EIP(i.a), CR (iii.a), CR(iii.b) and CR(iii.c) added.
B95: 2019-01-17 | C95: February 2019 publication | D95: Refreshed data for all indicators bolded and italicised in the "Latest reporting period" column.
B96: 2019-01-17 | C96: February 2019 publication | D96: National standards added to dashboard IAPT Access standard attainment adjusted to be based on trajectory from 2017/18 to 2018/19 standard – see metadata for details.
B97: 2019-04-18 | C97: May 2019 publication | D97: Refreshed data for all indicators bolded and italicised in the "Latest reporting period" column.
B98: 2019-06-25 | C98: August 2019 publication | D98: Refreshed data for all indicators bolded and italicised in the "Latest reporting period" column. Added sparklines for finance data where three data points are available. New Crisis and A&E Liaison indicators and Physical Health checks for people with Serious Mental Illness added.
B99: 2019-10-17 | C99: December 2019 publication | D99: Restructured dashboard to use the new CCG and regional structures for 2019/20 (see below). Refreshed data for all indicators bolded and italicised in the "Latest report period" column. Q3 Out of Area placement data adjusted CR(i.b, i.c, i.d) The calculation methodology for this indicator has been updated to ensure that all teams carry equal weight in national, region and STP calculations. As a result, values may differ slightly to those issued in previous dashboards. AC(i) and AC(ii) STP data adjusted.
B100: 2019-12-13 | C100: February 2020 publication | D100: Added new EIP indicator - EIP (i_b). Refreshed data for all indicators bolded and italicised in the "Latest reporting period" column.
B101: 2020-03-24 | C101: May 2020 publication | D101: Changed data source for EIP indicator - EIP (i) to MHSDS. Refreshed data for all indicators bolded and italicised in the "Latest reporting period" column.
B102: 2020-05-19 | C102: May 2020 publication | D102: AC(i) standard is 13% in 2017/18 - rag rating has been updated in Dashboard and standard has been updated in Metadata (previously 7%). Reporting period has also been updated from 'TBC' to 'Annually' in Metadata.
B103: 2020-06-30 | C103: August 2020 publication | D103: Added three new Perinatal Indicators. Adjusted method for aggregating EIP(i) to STP/Region level. Refreshed data for all indicators bolded and italicised in the "Latest reporting period" column
B104: 2020-10-01 | C104: December 2020 publication | D104: Restructured dashboard for new CCG organisational structure. Added new measures: CYP(i.c), IAPT(iii.c). Refreshed data for all indicators bolded and italicised in the "Latest reporting period" column. Removed CYP(iv.a) and CYP(iv.b). Updated CYP(i.b) for Kernow CCG, Cornwall and the Isles of Scilly Health & Social Care Partnership (STP), South West England and England.
B105: 2021-01-01 | C105: March 2021 publication | D105: Added new measures: AC(i.a) and CYP(i.a). Refreshed data for all indicators bolded and italicised in the "Latest reporting period" column. Updated the spine chart methodology to reflect the range of the data more accurately.
B106: 2021-04-12 | C106: May 2021 re-publication of Q4 2019/20 | D106: Perinatal access indicators PMH(i.a) and PMH(i.b) refreshed to reflect the resubmitted data for 2019/20. Refreshed data for all indicators bolded and italicised in the "Latest reporting period" column.
B107: 2021-04-30 | C107: March 2021 re-publication of Q2 2020/21 | D107: Refreshed Q2 2020/21 Dashboard with values for CYP(iii.a) and CYP(iii.b) at STP and CCG level.
B108: 2021-05-01 | C108: May 2021 publication | D108: Added new measure: Proportion of discharges from hospital followed up within 72 hours (SP(iii.c). Refreshed data for all indicators bolded and italicised in the "Latest reporting period" column. Refreshed number of CCGs meeting MHIS following the 2019/20 audit review for MHF(iii). Change in spine chart methodology - they no longer show "better" performance to the right of the scale, they now show the relative position of an organisation compared to all other organisations and England at that level. Added spine charts for set of indicators: CYP(ii.a), CYP(ii.b), IAPT(iii.c).
B109: 2021-08-01 | C109: August 2021 publication | D109: Added new measure for CYP Crisis Long Term Plan ambition: Proportion of coverage of 24/7 crisis provision for CYP which combines crisis assessment, brief response and intensive home treatment functions. Removed indicator HJ(iii) as the target for '% of population of England with access to liaison and diversion services - All ages' was met at 100%. Refreshed data for all indicators bolded and italicised in the "Latest reporting period" column. Refreshed all financial indicators to show actual spend for 2020/21 and MHF(ii.b) to show actual rather than planned spend.
B110: 2021-10-01 | C110: November 2021 publication | D110: Restructured dashboard for new CCG organisational structure. Indicators CR(i.a-i.d) have been changed and updated to reflect the latest annual survey, these data are not comparable to the previously reported indicators for CR(i.a-i.d). Added new measures: CR(vii.a) and CR(vii.b). IAPT(i.a) and PHSMI(i) are now reported as a number rather than proportion. CYP(i.c) and (i.d) are no longer reported, in line with the Long Term Plan (LTP). Refreshed data for all indicators bolded and italicised in the "Latest reporting period" column. New columns added to Dashboard to show % change for each relevant indicator, the two columns show comparison to the previous 12 months and 24 months respectively (percentage point change for % based indicators).
B111: 2022-12-01 | C111: February 2022 publication | D111: Removed indicator PMH(i.b) as the Long Term Plan (LTP) measures perinatal access in terms of activity via PMH(i.a). New section added to the dashboard for 'Mental health service backlog' with a new indicators MHSB(i) and MHSB(ii). Refreshed data for all indicators bolded and italicised in the "Latest reporting period" column. Updated 2020/21 Crisis metrics: CR(i.b), CR(i.c) and CR(i.d) from original Q1 2021/22 Dashboard to discount nil returns from STPs.
B112: 2022-02-21 | C112: February 2022 re-publication of Q1 2021/22 | D112: Refreshed Q1 2021/22 Dashboard with amended values for Crisis metrics: CR(i.b), CR(i.c) and CR(i.d) to discount nil returns from STPs.
B113: 2022-03-31 | C113: May 2022 publication | D113: Refreshed data for all indicators bolded and italicised in the "Latest reporting period" column. Updated with historic Q2 21/22 data for indicator SP(ii.a) and (ii.b) as this was unavailable to NHSE&I for inclusion in the Q2 2021/22 dashboard. Missing data for indicator SP (iii.c) Q2 2020/21 is now available and added to the dashboard.
B114: 2022-06-24 | C114: August 2022 publication | D114: Refreshed data for all indicators bolded and italicised in the "Latest reporting period" column. Removed indicators SP(i), SP(ii.a) and SP(ii.b). Moved indicator SP(iii.c) to sit under the Crisis and acute care and use of the Mental Health Act (MHA) heading, renamed to CR(viii). Refreshed data for all indicators bolded and italicised in the "Latest reporting period" column. Refreshed all financial indicators to show actual spend for 2021/22 and MHF(ii.b) to show actual rather than planned spend.
B115: 2022-09-28 | C115: November 2022 publication | D115: Refreshed data for all indicators bolded and italicised in the "Latest reporting period" column. Added new measure for persons aged 18 to 24 supported through NHS funded Mental Health CYP(ix). Introduced new names for ICBs and Sub-ICBs (formerly known as STPs and CCGs). Restructured dashboard inline with new organisational structure. Removed indicators relating to former CCGs as they are no longer relevant under new structures. Added a new tab outlining name changes for ICBs and Sub-ICBs and their former names. Further details can be found below.
B116: 2023-01-12 | C116: February 2023 publication | D116: Refreshed data for all indicators bolded and italicised in the "Latest reporting period" column. Several measures have no data or national level estimates only for Q2 2022/23 due to either the ONS Postcode Directory issue in July and August 2023 or the ongoing Cyber Incident: CYP(i.a), CYP(ii.a), CYP(ii.b), CYP(iv.a), CYP(iv.b), CYP(ix), PMH(i.a), EIP(i), ES(i), CR(vii.a), CR(vii.b), CR(viii). Increasing Access to Psychological Therapies (IAPT) has been rebranded to NHS Talking Therapies (NHS TT), therefore references within the MH Dashboard have been altered to reflect this. All data measures remain the same and report on identical characteristics.
B117: 2023-03-23 | C117: May 2023 Publication | D117: Refreshed data for all indicators bolded and italicised in the "Latest reporting period" column. Several measures have no data, or only national level data for Q2 and Q3 2022/23 due to either problems with the ONS Postcode Directory in July and August 2023, or the ongoing Cyber Incident. Impacted measures are coloured peach: CYP(i.a), CYP(iv.a), CYP(iv.b), CYP(ix), PHM(i.a), EIP(i), MHSB(i).
B118: 2023-06-30 | C118: August 2023 Publication | D118: Refreshed data for all indicators bolded and italicised in the "Latest reporting period" column.
B120: For details of all mergers and organisational changes please refer to the following website:
B121: https://digital.nhs.uk/services/organisation-data-service/change-summary-reconfiguration-2021-ccg-mergers
B123: For details of introduction of Integrated Care Boards
B124: ODS Implementation of Integrated Care Boards from July 2022 - NHS Digital
B126: Contacts
B127: If you have comments or issues related to this Dashboard, then please contact england.MH-Dashboard@nhs.net

Sheet Metadata
B8: Code | C8: Indicator name | D8: Description | E8: Standard (if applicable) | F8: Numerator | G8: Denominator | H8: Further information and data quality | I8: Reporting period | J8: Data source | K8: Link to published data source (where available)
B9: Children and Young People (CYP) Mental Health
B10: CYP(i.a) | C10: Number of CYP accessing support by NHS funded community services (at least one contact) (rolling 12 months) | D10: Number of CYP (0-17) accessing support by NHS funded community services and school or college based Mental Health Support Teams (receiving at least one contact). | E10: N/A | F10: N/A | G10: N/A | H10: This is the headline metric for measuring CYPMH, that is the number of CYP aged 0-17 receiving at least one contact. Data for 18-25 year olds will be monitored separately to track improvements in their needs being met by appropriate services. | I10: Rolling 12 months | J10: Mental Health Services Dataset | K10: MHSDS NHS Digital Publication (Indicator MHS95)
B11: CYP(ii.a) | C11: % of CYP with eating disorders (ED) seen within 1 week (urgent) | D11: The proportion of Children and Young People (CYP) with Eating Disorders (urgent cases) that wait 1 week or less from referral to start of NICE-approved treatment. | E11: 95% by 2021/22 | F11: The number of CYP with a suspected ED (urgent cases) that started treatment within 1 week of referral in the reporting period. | G11: The number of CYP with a suspected ED (urgent cases) that started treatment in the reporting period. | H11: Regions do not add up to the England total, due to rounding and number of people with unknown Sub-ICBs. | I11: Quarter (regional and national data) Rolling 12 months (Sub-ICB and ICB level) | J11: SDCS | K11: NHS England: CYP Eating Disorder Waiting Times
B12: CYP(ii.b) | C12: % of CYP with eating disorders (ED) seen within 4 weeks (routine) | D12: The proportion of Children and Young People with Eating Disorders (routine cases) that wait 4 weeks or less from referral to start of NICE-approved treatment. | E12: 95% by 2021/22 | F12: The number of CYP with suspected ED (routine cases) that started treatment within 4 weeks of referral in the reporting period. | G12: The number of CYP with a suspected ED (routine cases) that started treatment in the reporting period. | H12: As for CYP (ii.a). | I12: Quarter (regional and national data) Rolling 12 months (Sub-ICB and ICB level) | J12: SDCS | K12: NHS England: CYP Eating Disorder Waiting Times
B13: CYP(iii.a) | C13: Total number of bed days for CYP under 18s in CYPMHS tier 4 wards | D13: The number of bed days in Children and Young People’s Mental Health Services (CYPMHS) wards for patients aged 0-17 in the reporting period. | E13: N/A | F13: N/A | G13: N/A | H13: Please note that the England total includes patients who have been admitted to CYPMHS Tier 4 wards, but are not assigned to an English Sub-ICB. This means that the sum of the regional totals may not equal the England total. This indicator includes medium secure and deaf inpatient children (from 2017/18). All values of less than 5 have been suppressed and replaced with N/A in this output. Number of OBDs has declined compared to Q3, but the number of admissions has increased. Whilst most providers who were previously missing data are now present, two providers (North Staffordshire Combined Healthcare and Oxford Health NHS Foundation Trust) are missing OBD and admissions data in Q4. The data source has come from 2 places (change in data source): a. For 21/22 onwards data is from MHSDS b. Any data pervious to 21/22 is from SMH PLD (local dataset which providers used to submit only for Specialised Commissioning patients) | I13: Quarter | J13: Mental Health Services Dataset | K13: N/A
B14: CYP(iii.b) | C14: Number of admissions of CYP under 18 in CYPMHS tier 4 wards | D14: The number of admissions in Children and Young People’s Mental Health Services (CYPMHS) wards for patients aged 0-17 in the reporting period | E14: N/A | F14: N/A | G14: N/A | H14: As for CYP (iii.a). | I14: Quarter | J14: Mental Health Services Dataset | K14: N/A
B15: CYP(iv.a) | C15: Bed days of CYP under 18 in adult in-patient wards | D15: A count of bed days for people aged 0-17 who were in an adult ward each month. Individuals are allocated to a Sub-ICB based on the person's Sub-ICB at the end of the month. Three months data is then aggregated to produce the quarterly figure. (MHSDS measure: MHS24a-c) | E15: N/A | F15: N/A | G15: N/A | H15: NHS Digital are working closely with providers to encourage reporting and check data quality. As a result of data quality issues Q2 and Q3 data for 2017/18 were republished as a supplementary file in July 2018. NHS Digital investigated any provider for which there were more than 5 children on adult wards or more than 100 bed days on adult wards within a single month and requested data quality feedback. These parameters for investigation were selected to ensure any large data quality issues are examined whilst avoiding excessive burden on providers in investigation of smaller values. Further information can be found in the data quality section of the associated monthly MHSDS publications. These statistics are classified as experimental and should be used with caution. Experimental statistics are new official statistics undergoing evaluation. Except for England, all values of less than 5 have been suppressed and replaced with a N/A in this output. All unsuppressed sub-national values have been rounded to the nearest 5. | I15: Quarter | J15: MHSDS | K15: MHSDS NHS Digital Publication
B16: CYP(iv.b) | C16: Number of CYP under 18 in adult in-patient wards | D16: The number of children and young people aged 0-17 admitted in adult in-patient wards in the reporting period. This is a count of people, aged 0-17, who were on an adult ward at any point during the quarter. To avoid counting individuals more than once, the Sub-ICB is allocated based on the data submitted for the latest month in the quarter that person spent time in an adult ward. | E16: N/A | F16: N/A | G16: N/A | H16: As for CYP (iv.a). | I16: Quarter | J16: MHSDS | K16: MHSDS NHS Digital Publication
B17: CYP(vii) | C17: CYP Crisis Long Term Plan ambition | D17: Proportion of full or partial coverage of crisis provision for CYP which combines crisis assessment, brief response and intensive home treatment functions. This data reflects a snapshot in time of services in place as of Q1 2021/22. | E17: 79% for 2022/23 | F17: Total number of providers that had 100% coverage for the function and geography that they are commissioned to provide. | G17: Total number of providers needed to be commissioned to deliver each function of the comprehensive CYP Crisis Service by end of the LTP Ambition 2023/24 (Q4 2024) to ensure 100% ICS geographical coverage. | H17: The NHS LTP committed that all children and young people experiencing a mental health crisis will be able to access crisis care 24 hours a day, seven days a week by 2023/24, with a single point of access through NHS 111. The Long Term Plan Mental Health Implementation Plan set out a national trajectory to achieve 100% coverage of comprehensive crisis services in line with the LTP ambition: 2019/20: 30%, 2020/21: 35%, 2021/22: 57%, 2022/23: 79%, 2023/24: 100%. The crisis services developed in line with the LTP ambition should be comprehensive, meaning they should, as a minimum, offer the functions and hours of operation below to CYP ages 0-17 years (up to 17 years and 364 days): 1. Single point of access including through NHS 111 ‘select Mental Health option’ to crisis support, advice, and triage 2. Crisis biopsychosocial assessment within the emergency department and/or in community settings 3. Brief response within the emergency department and/or in community settings, with children and young people being offered brief interventions 4. Intensive Home Treatment service aimed at children and young people who might otherwise require inpatient care, or intensive support that exceeds the normal capability of a generic children and young people’s mental health community team in the home and/or community Hours of Operation: 1. 24 hours a day 7 days a week in both the emergency department and community settings or a combination across both settings 2. 24 hours a day 7 days a week in both the emergency department and community settings or a combination across both settings 3. a) Brief response: 24 hours a day 7 days a week in both the emergency department and community settings or a combination across both settings; b) Brief intervention: 7 days per week across locally determined extended hours in the home and/or community 4. 7 days per week across locally determined extended hours in the home and/or community Note: Extended hours are classed as hours outside of standard hours of operation: Monday to Friday, 9am to 5pm. Methodology and data quality completeness: Measurement towards 22/23 LTP trajectory: progress towards the target of 79% comprehensive coverage for 2022/23 has been calculated using data provided by ICSs in the Q4 2022/23 PMO quarterly template. Compliance against each component of a comprehensive offer has been calculated to give an overall score of full or partial coverage. This data reflects a snapshot in time of services in place as of Q4 2022/23. Identified data quality issues in Q4 2022/23 return: 2 ICS’s reported a nil return for the new data item (the denominator in the formula used) introduced in Q3 2022/23 titled “providers needed”. This data item is part of the formula to calculate individual ICS coverage %. As a result, these two ICS’s show a nil ICS coverage % due to this. However, the column which provides the numerator for the formula titled “number of providers at 100% coverage” contains figures (a total of 7). These figures would have been included in the final calculation of the national coverage % however, we excluded these two ICS’s and the 7 providers from the final calculation the total coverage %. 2 other ICS’s, are showing an “inflated” % due to nil returns in functions F4 and F3. Taking into account these data quality issues the final calculation for the % total coverage for 2022/23 is 76.30%. | I17: Year | J17: Bi-annually via PMO Mental Health Data Collection Template | K17: N/A
B18: CYP(ix) | C18: Number of people aged 18 to 24 supported through NHS funded mental health (at least one contact) (rolling 12 months) | D18: This is a count of people aged 18 to 24 who have had at least one contact (either direct or indirect) in the previous 12 months. | E18: N/A | F18: N/A | G18: N/A | I18: Rolling 12 months | J18: MHSDS | K18: MHSDS NHS Digital Publication (Indicator MHS109)
B19: CYP(v) | C19: CYP Mental Health ICB spend - excluding learning disabilities and eating disorders | D19: 2022/23 spend by ICBs for CYP MH (excluding learning disabilities and eating disorders). | E19: N/A | F19: N/A | G19: N/A | I19: Year | J19: NHS England Finance financial template returns | K19: N/A
B20: CYP(vi) | C20: CYP Mental Health ICB spend - eating disorders | D20: 2022/23 spend by ICBs for CYP MH eating disorders | E20: N/A | F20: N/A | G20: N/A | I20: Year | J20: NHS England Finance financial template returns | K20: N/A
B21: Perinatal Mental Health
B22: PMH(i.a) | C22: Number of women with at least one attended contact (F2F or video) with a specialist community perinatal mental health service or MMHS | D22: Number of women with at least one attended contact (F2F or video) with a specialist community perinatal mental health service or MMHS. | E22: 66,000 women per year by 2023/24 | F22: N/A | G22: N/A | H22: The Long Term Plan committed that at least 66,000 women with moderate to severe or complex perinatal mental health needs will have access to specialist community care, from pre-conception to 24 months after birth, with increased availability of evidence-based psychological therapies. The number of women in contact with specialist community perinatal mental health services includes women who had at least one attended contact (F2F or video). All other consultation mediums are excluded, such as telephone, SMS or email. Women are only counted once nationally in the reporting period, even if receiving multiple episodes of care. The overall national figure may be lower than the sum of the Sub-ICB figures, as a woman may access services in more than one Sub-ICB area at different times in the year and would be counted against each Sub-ICB. | I22: Rolling 12 months | J22: MHSDS | K22: MHSDS NHS Digital Publication (Indicator MHS91)
B23: PMH(ii) | C23: Perinatal Mental Health ICB spend | D23: 2022/23 spend by ICBs on specialist community perinatal mental health services. | E23: N/A | F23: N/A | G23: N/A | I23: Year | J23: NHS England Finance financial template returns | K23: N/A
B24: Adult mental health: NHS Talking Therapies, for depression and anxiety (formerly IAPT services)
B25: IAPT(i.a) | C25: NHS Talking Therapies access: Number of people entering treatment during reporting period | D25: The number of people that enter NHS funded treatment with NHS Talking Therapies Services in the reporting period. | E25: Individual Rolling Quarter Sub-ICB targets | F25: First Treatment | G25: N/A | H25: Quarterly targets for 2022/23 have been set for NHS Talking Therapies Access, at National level these are: Q1: 426,065, Q2: 434,121, Q3: 442,177, Q4: 450,234. | I25: Rolling Quarter | J25: NHS Talking Therapies dataset (formerly IAPT) | K25: NHS Digital: NHS Talking Therapies quarterly reports (formerly IAPT)
B26: IAPT(i.b) | C26: NHS Talking Therapies % of all referrals that are for older people 65+ | D26: The proportion of referrals for those aged 65 and over of all referrals. | E26: N/A | F26: The number of referrals for those aged 65 and over. | G26: All referrals | H26: Please note: NHS Digital does not publish a pre-calculated referral proportion therefore these data are calculated from NHS Digital published numerator and denominator data rounded to the nearest five. | I26: Quarter | J26: NHS Talking Therapies dataset (formerly IAPT) | K26: NHS Digital: NHS Talking Therapies quarterly reports (formerly IAPT)
B27: IAPT(ii.a) | C27: NHS Talking Therapies recovery rate: % of people that attended at least 2 treatment contacts and are moving to recovery | D27: The proportion of people who have attended at least two treatment contacts and are moving to recovery (defined as those who at initial assessment achieved "caseness” and at final session did not) in the reporting period (Column name in the NHS Talking Therapies quarterly report: Recovery Rate). | E27: 0.5 | F27: The number of people moving to Recovery. 'Recovery' column in the NHS Talking Therapies quarterly report. | G27: The number of people who completed treatment 'FinishedCourseTreatment' column minus those who were not at 'caseness' prior to treatment 'NotCaseness' column | H27: Please note: NHS Digital publishes a pre-calculated recovery rate using unrounded data that is used at England, STP and Sub-ICB level. The NHS Talking Therapies quarterly report does not include a regional aggregation so the regional proportions have been calculated by NHS England as follows: The sum of all the STPs within each region for the Recovery column in the NHS Talking Therapies quarterly report/ the sum of all the STPs within each region for the 'FinishedCourseTreatment' Column minus the 'NotCaseness' column. | I27: Quarter | J27: NHS Talking Therapies dataset (formerly IAPT) | K27: NHS Digital: NHS Talking Therapies quarterly reports (formerly IAPT)
B28: IAPT(ii.b) | C28: NHS Talking Therapies recovery rate for Black, Asian or Minority Ethnic groups | D28: The proportion of people with a Black, Asian or minority ethnicity who have attended at least two treatment contacts and are moving to recovery (defined as those who at initial assessment achieved "caseness” and at final session did not) in the reporting period. (Column name in the NHS Talking Therapies quarterly report: Recovery Rate for variable type: 'BME'. | E28: 0.5 | F28: The number of people moving to Recovery. 'Recovery' column in the NHS Talking Therapies quarterly report for Black, Asian or Minority Ethnic groups only. | G28: The number of people who completed treatment 'FinishedCourseTreatment' column minus those who were not at 'caseness' prior to treatment 'NotCaseness' column - for 'BME' groups only. | H28: Please note: NHS Digital publishes a pre-calculated recovery rate using unrounded data that is used at England, ICB and Sub-ICB level. The NHS Talking Therapies quarterly report does not include a regional aggregation so the regional proportions have been calculated by NHS England as follows: The sum of all the STPs within each region for the 'Recovery' column in the NHS Talking Therapies quarterly report/ the sum of all the STPs within each region for the 'FinishedCourseTreatment' column minus the 'NotCaseness' column, all for Black, Asian or Minority Ethnic groups only. | I28: Quarter | J28: NHS Talking Therapies dataset (formerly IAPT) | K28: NHS Digital: NHS Talking Therapies quarterly reports (formerly IAPT)
B29: IAPT(iii.a) | C29: NHS Talking Therapies % of people receiving first treatment appointment within 6 weeks of referral | D29: The proportion of people who finished treatment in the reporting period who had their first treatment appointment within 6 weeks of referral. | E29: 0.75 | F29: FirstTreatment6WeeksFinishedCourse. | G29: FinishedCourseTreatment | H29: Please note: NHS Digital publishes a pre-calculated proportion using unrounded data. The NHS Talking Therapies quarterly report does not include a regional aggregation. The regional proportions have been calculated by NHS England by using the numerator and denominator outlined here, aggregating the STP level figures. | I29: Quarter | J29: NHS Talking Therapies dataset (formerly IAPT) | K29: NHS Digital: NHS Talking Therapies quarterly reports (formerly IAPT)
B30: IAPT(iii.b) | C30: NHS Talking Therapies % of people receiving first treatment appointment within 18 weeks of referral | D30: The proportion of people who finished treatment in the reporting period who had their first treatment appointment within 18 weeks of referral. | E30: 0.95 | F30: FirstTreatment18WeeksFinishedCourse. | G30: FinishedCourseTreatment | H30: Please note: NHS Digital publishes a pre-calculated proportion using unrounded data. The NHS Talking Therapies quarterly report does not include a regional aggregation. The regional proportions have been calculated by NHS England by using the numerator and denominator outlined here, aggregating the STP level figures. | I30: Quarter | J30: NHS Talking Therapies dataset (formerly IAPT) | K30: NHS Digital: NHS Talking Therapies quarterly reports (formerly IAPT)
B31: IAPT(iii.c) | C31: NHS Talking Therapies % of in-treatment pathway waits over 90 days | D31: The proportion of people who waited over 90 days between first and second treatment appointment (where the second treatment appointment occurred within the month) in the reporting period. | E31: N/A | F31: FirstToSecondTreatementOver90days. | G31: SecondTreatment | H31: The primary purpose of this indicator is to measure the number of people who have waited more than 90 days between first and second appointments. There should be no in treatment pathway waits (where the person has an early appointment but is then put on an ‘internal’ waiting list before a full course of treatment starts). There should be appropriate measures taken to reduce the numbers of people who have waited over 90 days for a second appointment. Please note this measure is not published in the quarterly NHS Digital files. Data for each month is available in the monthly activity files - please follow the link in column K. | I31: Quarter | J31: NHS Talking Therapies dataset (formerly IAPT) | K31: Published measure available in monthly NHS Talking Therapies files (formerly IAPT)
B32: IAPT(iv) | C32: NHS Talking Therapies ICB spend | D32: 2022/23 spend by ICBs for NHS Talking Therapies services. | E32: N/A | F32: N/A | G32: N/A | I32: Year | J32: NHS England Finance financial template returns | K32: N/A
B33: Early intervention in psychosis (EIP)
B34: EIP(i) | C34: % of people who started treatment within 2 weeks of referral - All ages | D34: Proportion of referrals into a service with suspected First Episode Psychosis (FEP) who received their first treatment appointment within 2 weeks of referral in the reporting period. | E34: 0.6 | F34: Referrals into a service with a suspected FEP which entered treatment in the reporting period who waited two weeks or less to enter treatment. | G34: Referrals into a service with a suspected FEP which entered treatment in the reporting period | H34: Referrals entering treatment are those who have had a first contact with an Early Intervention for Psychosis team and have been assigned to a care coordinator. This is the number of referrals with a 'clock stop' for waiting times in the reporting period. This measure is broken down to show those who waited two weeks or less to enter treatment and those that waited more than two weeks. The standard increased from 50% in 2017/18 to 60% in 2020/21 and is maintained at that level. Please note that from Quarter 3 2019/20 performance against this standard is measured through the Mental Health Services Dataset (MHSDS). Prior to this a temporary, manual aggregate collection was in place while data coverage and completeness for the patient level MHSDS improved. The data quality of the MHSDS data collection is now considered robust and therefore the temporary aggregate collection has been retired. NHS Digital publishes this percentage at Sub-ICB and National level only. Data published in this dashboard at STP and Regional geographies, are calculated by NHS England using patient level data to avoid rounding error. | I34: Quarter | J34: MHSDS | K34: NHS Digital: MHSDS Access and Waiting Times
B35: EIP(i.a) | C35: % of Sub-ICBs commissioned EIP services meeting NICE level 2 | D35: Proportion of services graded at level 2 in the annual EIP self-assessment of specialist EIP provision in line with NICE recommendations. | E35: N/A | F35: The number of EIP services graded at level 2 in the 2022/23 reporting period. | G35: The number of EIP services in the 2022/23 reporting period | H35: In implementing the Long Term Plan for mental health NHS England set out a trajectory for delivery of the EIP standard. The standard is ‘two-pronged’ and both conditions must be met for the standard to be deemed to have been achieved: 1. a maximum wait of two weeks from referral to start of treatment; and 2. treatment delivered in accordance with NICE guidelines and quality standards for psychosis and schizophrenia – either in children and young people CG155 (2013) and QS102 or in adults CG178 (2014) and QS80. This indicator measures delivery of the second part of the standard. The trajectory for 2019/20 was for all services to be graded at level 2. | I35: Annual | J35: National Clinical Audit of Psychosis | K35: N/A
B36: EIP (i.b) | C36: % of Sub-ICBs commissioned EIP services meeting NICE level 3 or above | D36: Proportion of services graded at level 3 or above in the annual assessment of specialist EIP provision in line with NICE recommendations. | E36: 0.8 | F36: The number of EIP services graded at level 3 or above in the 2022/23 reporting period. | G36: The number of EIP services in the 2022/23 reporting period | H36: In implementing the Long Term Plan for mental health NHS England set out a trajectory for delivery of the EIP standard. The standard is ‘two-pronged’ and both conditions must be met for the standard to be deemed to have been achieved: 1. A maximum wait of two weeks from referral to start of treatment; and 2. Treatment delivered in accordance with NICE guidelines and quality standards for psychosis and schizophrenia – either in children and young people CG155 (2013) and QS102 or in adults CG178 (2014) and QS80. This indicator measures delivery of the second part of the standard. The trajectory for 2021/22 was for 70% of services to be graded at level 3 or above by the end of the year. | I36: Annual | J36: National Clinical Audit of Psychosis | K36: N/A
B37: EIP(ii) | C37: EIP ICB spend | D37: 2022/23 spend by ICBs for EIP teams and services. | E37: N/A | F37: N/A | G37: N/A | H37: There is 1 ICB showing zero in their spend for Early Intervention in Psychosis services. | I37: Year | J37: NHS England Finance financial template returns | K37: N/A
B38: Employment Support
B39: ES(i) | C39: Number of people accessing Individual Placement Support (IPS) services | D39: The number of people with severe mental illness or complex mental health needs who accessed an IPS service during 2022/23 for the purposes of receiving employment support. | E39: LTP target for Q4 2022/23: 44,000 | F39: N/A | G39: N/A | H39: From Q1 21/22, quarterly data from the MHSDS is used to monitor delivery against the target. The data is not complete and work is underway to ensure that all activity is captured in the MHSDS. Data relates only to IPS for SMI services (not generic employment support services). In the Q4 2020/21 version of the dashboard year end data from an NHS England IPS stocktake was included, which the MHSDS data isn’t directly comparable to. ICB allocation is from the geographical location of the service. Data was collected at aggregate service level, not individual service user record level. | I39: Cumulative financial year to date by quarter | J39: MHSDS | K39: N/A
B40: Physical health checks for people with severe mental illness (SMI)
B41: PHSMI(i) | C41: Number of physical health checks for people with severe mental illness (SMI) delivered in any setting (in 18/19, it was in a primary care setting only) | D41: The number of people on the General Practice (GP) SMI register receiving a full physical health check in any setting in the preceding 12 months (for 18/19, it was in a primary care setting only). | E41: N/A | F41: N/A | G41: N/A | H41: The count of the number of people on the General Practice (GP) SMI register at the end of the reporting period that have had a full physical health check in the preceding 12 months. A full physical health check includes 6 components: a measurement of Body Mass Index (BMI), a blood pressure check, a blood lipid test, a blood glucose test, an assessment of alcohol consumption, an assessment of smoking status. In order to demonstrate data completeness, the number of Sub-ICBs to have supplied data each quarter is footnoted in the dashboard. | I41: Quarterly | J41: NHS England | K41: NHS England: Physical Health Checks for people with Severe Mental Illness
B42: Crisis and acute care and use of the Mental Health Act (MHA)
B43: CR(i.a) | C43: % Crisis services which are open access, including for self-referral | D43: % of teams serving the Sub-ICB which are open access. This means patients can self refer (either directly to CRHTT or via an alternative single point of access) and referrals are also accepted from families & friends, members of the public and any system partner who may need to access specialist urgent & emergency mental health support including police, ambulance, NHS111, GPs, A&E, voluntary sector. | E43: N/A | F43: Number of teams serving the region which are open access. | G43: Number of teams serving the Region | I43: Annually | J43: National survey | K43: N/A
B44: CR(i.b) | C44: % Adult crisis services operating 24/7 including face to face response | E44: N/A | F44: Number of teams serving the region which are operating 24/7 Adult crisis services including face to face response. | G44: Number of teams serving the Region | I44: Annually | J44: National survey | K44: N/A
B45: CR(i.c) | C45: % Adult home treatment service staffed in line with recommended levels | D45: This is the staffing reported via 2020/21 national survey of crisis resolution and home treatment teams. It includes the full staffing mix e.g. medical / nursing / social workers / psychologists / admin / peer support /other. | E45: N/A | F45: Number of teams in line with recommended Staffing levels reported via national survey. | G45: Number of teams serving the Region | I45: Annually | J45: National survey | K45: N/A
B46: CR(i.d) | C46: % Adult crisis services that respond to older adults | E46: N/A | F46: Number of teams serving the region that respond to older adults. | G46: Number of teams serving the Region | I46: Annually | J46: National survey | K46: N/A
C47: Number of Referrals for age 18+ year-olds to NHS community-based crisis and acute services (non-inpatient)
B48: CR(ii) | C48: Adult community crisis care spend | D48: 2022/23 spend for crisis resolution home treatment teams. | E48: N/A | F48: N/A | G48: N/A | H48: Some ICBs have had difficulties extracting costs for specific services that they commission because of block or integrated contract arrangements. As a result, there are some ICBs that show zero spend for mental health programmes, which is being reported as N/A in this dashboard. | I48: Year | J48: NHS England Finance financial template returns | K48: N/A
B49: CR(iii.a) | C49: Total number of inappropriate Out of Area bed days | D49: The total number of days in which patients have been placed out of area due to unavailable beds in their usual network. | E49: Zero | F49: N/A | G49: N/A | H49: An Out of Area Placement is when a person with assessed acute mental health needs who requires adult mental health acute inpatient care is admitted to a unit that does not form part of their usual local network of services. By this we mean an inpatient unit that does not usually admit people living in the catchment of the person’s local community mental health service, and where the person cannot be visited regularly by their care co-ordinator to ensure continuity of care and effective discharge planning. An 'Inappropriate' out of area placement is one that is solely or primarily necessitated because of the unavailability of a local acute bed will not meet the criteria for being appropriate. Data is currently being collected through the Clinical Audit Platform. This will be until the data becomes aligned and available through the MHSDS extract which is the chosen mechanism for the long term collection of this data. | I49: Quarter | J49: Out of Area Placements in Mental Health - Clinical Audit Platform (CAP) NHS Digital | K49: NHS Digital Publications: Out of Area Placements
B50: CR(iii.b) | C50: Number of inappropriate Mental Health Out of Area Placements started in the period | D50: The total number of patients who have started a placement out of area due to unavailable beds in their usual network. | E50: Zero | F50: N/A | G50: N/A | I50: Quarter | J50: Out of Area Placements in Mental Health - Clinical Audit Platform (CAP) NHS Digital | K50: NHS Digital Publications: Out of Area Placements
B51: CR(iv.a) | C51: Number of detentions under the Mental Health Act | D51: The number of detentions under the Mental Health Act 1983 (includes All Providers). | E51: N/A | F51: N/A | G51: N/A | H51: This is the fifth annual MHA report by NHS Digital using Mental Health Services Data Set (MHSDS) data as the official source of MHA statistics. In 2016-17, the data were sourced from the Mental Health Services Data Set for the first time (data on uses of the Act in acute settings were collected via the MHA Acute collection in 2016-17 and 2017-18, and then from the Emergency Care Data Set (ECDS) from 2019-20 onwards). Since this is a relatively new data collection there were significant data quality and completeness issues especially in the first annual MHA report for 2016/17. While this data seems to indicate an increase since 2016/17, this is likely to be due to improvements in MHSDS data completeness. Further analysis and improved data quality is required to improve reporting of detentions on admission and following admission in ECDS. The count of detentions does not include uses of Sections 4, 5(2) & 5(4) or 135 & 136. | I51: Year | J51: Mental Health Act Statistics, NHS Digital | K51: NHS Digital Publications: Mental Health Act Statistics
B52: CR(iv.b) | C52: Standardised rate of detentions for people detained under the MHA from a White British ethnicity | D52: Standardised rate of detentions under the Mental Health Act 1983 per 100,000 population for people from a White British ethnicity. | E52: N/A | F52: The number of people with a valid ethnicity code of "White British" ethnic group (terminology currently under review) that have been detained under the mental health act. | G52: The total number of detentions under the mental health act | H52: As for CR(iv.a). Detentions data are incomplete in 2020-21 so the counts and rates shown are lower than the true figures. However, broad comparisons between groups are valid. Population figures are from the 2011 Census as ONS mid-year estimates do not include updates for ethnicity. | I52: Year | J52: Mental Health Act Statistics, NHS Digital | K52: NHS Digital Publications: Mental Health Act Statistics
B53: CR(iv.c) | C53: Standardised rate of detentions for people detained under the MHA from a Black or Black British ethnicity | D53: Standardised rate of detentions under the Mental Health Act 1983 per 100,000 population for people from a Black or Black British ethnicity. | E53: N/A | F53: The number of people with a valid ethnicity code of "Black or Black British" (terminology currently under review) that have been detained under the mental health act. | G53: The total number of detentions under the mental health act | H53: As for CR(iv.b). | I53: Year | J53: Mental Health Act Statistics, NHS Digital | K53: NHS Digital Publications: Mental Health Act Statistics
B54: CR(iv.d) | C54: Number of Section 136 Place of Safety orders to hospital | D54: The number of Section 136 Place of Safety orders (All Providers). | E54: N/A | F54: N/A | G54: N/A | H54: The figures for Place of Safety orders only include those where the ‘place of safety’ was a hospital. Sources: MHSDS/MHA Acute (2016-17 to 2017-18), MHSDS/ECDS (2018-19, to 2020-21) - NHS Digital. | I54: Year | J54: Mental Health Act Statistics, NHS Digital | K54: NHS Digital Publications: Mental Health Act Statistics
B55: CR(v.a) | C55: Number of section 136 detentions taken to police cells as a place of safety | D55: The number of section 136 detentions taken to police cells as a place of safety in England. | E55: N/A | F55: N/A | G55: N/A | H55: Data updated in Q2 2021/22 with latest annual published figures. | I55: Year | J55: Home Office | K55: Police powers and procedures: Other PACE powers, England and Wales, year ending 31 March 2022
B56: CR(v.b) | C56: Number of section 136 detentions taken to police cells as a place of safety that are under 18 | D56: The number of section 136 detentions taken to police cells as a place of safety in England that are under 18. | E56: N/A | F56: N/A | G56: N/A | H56: Data updated in Q2 2021/22 with latest annual published figures. | I56: Year | J56: Home Office | K56: Police powers and procedures: Other PACE powers, England and Wales, year ending 31 March 2022
B57: CR(vii.a) | C57: Adults in acute mental health beds Length of Stay rate (over 60 days) | D57: Rate per 100,000 population of people in adult acute mental health beds with a length of stay over 60 days. | E57: 8 | F57: Number of people for a given organisation discharged from an adult acute inpatient bed with a hospital spell over 60 days (calculated from the point of admission to the point of discharge). | G57: ONS population data (for 18-64 year-olds) | H57: MHSDS indicator codes: MHS100 and MHS 100a - AdultAcute_Over60Days. | I57: Rolling Quarter | J57: MHSDS | K57: MHSDS NHS Digital Publication
B58: CR(vii.b) | C58: Older Adults in acute mental health beds Length of Stay rate (over 90 days) | D58: Rate per 100,000 population of people in adult acute mental health beds with a length of stay over 90 days. | E58: 8 | F58: Number of people for a given organisation discharged from an older adult acute inpatient bed with a hospital spell over 90 days (calculated from the point of admission to the point of discharge). | G58: ONS population data (for people aged 65+) | H58: MHSDS indicator codes: MHS103 and MHS103a - OlderAdultAcute_Over90Days. | I58: Rolling Quarter | J58: MHSDS | K58: MHSDS NHS Digital Publication
B59: CR(viii) | C59: Proportion of discharges from hospital followed up within 72 hours | D59: The rolling three month number of patients discharged from adult acute beds that were eligible for 72 hour follow up in the reporting period as a proportion of all adult acute bed discharges. | E59: 0.8 | F59: Number of discharges from adult acute beds eligible for 72 hour follow up in the reporting period. | G59: Total number of discharges from adult acute beds followed up within 72 hours in the reporting period. | H59: This measure is not published by NHS Digital quarterly so has been calculated, with numbers rounded to the nearest percentage point. The national proportion includes activity for records with an unknown Sub-ICB. | I59: Quarter | J59: MHSDS | K59: MHSDS NHS Digital Publication
B60: Acute hospital mental health liaison
B61: AC(i) | C61: % of acute hospitals meeting the ‘core 24’ service standard | D61: The proportion of acute hospitals meeting all three core 24 criteria. | E61: 50% by the end of 2020/21 (20% in 2018/19) | F61: The number of acute hospitals meeting all three core 24 criteria. | G61: The total number of acute hospitals with complete data | H61: The baseline for this indicator was set in 2015 at 7%. It is intended that further collections will be undertaken to provide an annual view of progress on this indicator. A liaison service is considered to be operating at the Core 24 model if: 1. The team is commissioned to operate as an on-site, distinct service on a 24/7 basis; 2. The team is commissioned to deliver care in line with the recommended response times following referral (1 hour for emergency department referrals, 24 hours for urgent ward referrals); 3. The team is resourced in line with or close to the recommended liaison mental health staffing levels and skill-mix to operate effectively and sustainably on a 24/7 rota. Data available at STP, Regional and National level. This data will be updated following the Sixth national survey taking place in 2022. | I61: Annually | J61: Fifth Survey of Liaison Psychiatry in England | K61: N/A
B62: AC(i.a) | C62: % of teams that are open/available 24/7 | D62: The proportion of acute hospital liaison team that are open / available 24/7. | E62: N/A | F62: N/A | G62: N/A | H62: This data will be updated following the Sixth national survey taking place in 2022. | I62: Annually | J62: Fifth Survey of Liaison Psychiatry in England | K62: N/A
B63: AC(ii) | C63: Mental health liaison staffing levels | D63: This is the total WTE staffing reported via the national mental health liaison survey. | E63: N/A | F63: N/A | G63: N/A | H63: Data available at STP, Regional and National level. This data will be updated following the Sixth national survey taking place in 2022. | I63: Annually | J63: Fifth Survey of Liaison Psychiatry in England | K63: N/A
B64: AC(iii) | C64: A&E and Ward Liaison mental health spend | D64: 2022/23 spend for A&E and Ward Liaison mental health services. | E64: N/A | F64: N/A | G64: N/A | I64: Year | J64: NHS England Finance financial template returns | K64: N/A
B65: Health & Justice
B66: Health & Justice metrics are under review
B67: Mental health service backlog
B68: MHSB(i) | C68: Number of referrals to community-based mental health and learning disability services, yet to receive their second contact (experimental analysis) | D68: Number referrals to access NHS funded community-based mental health and learning disability and/or autism services, including NHS TT services, that are waiting to receive a second contact with a service at the end of the period. Includes all ages, multiple referrals for the same person. Excludes inpatient services. | E68: N/A | F68: N/A | G68: N/A | H68: This metric is to support understanding overall pressures in services; local waiting lists and service-level analysis should be used to monitor and improvement waiting times at provider and system level. It is a count of referrals that, at the end of the period, were still waiting for their second contact. A person could have more than one referral. Regional figures have been rounded to the nearest five. Open referrals that do not have the data items required to identify a region are included in the national total therefore combined regional totals will not match the national total. | I68: Quarterly | J68: Mental Health Services Dataset & NHS TT Dataset | K68: N/A
B69: MHSB(ii) | C69: Number of people with a severe mental illness (SMI) eligible but waiting for all 6 components of a physical health check in the last 12 months | D69: Number of people on the General Practice SMI register eligible for a physical health check, yet to receive all 6 components of the health check in the last 12 months, delivered in any setting. | E69: N/A | F69: N/A | G69: N/A | H69: This metric is to support understanding overall pressures in services; local waiting lists and service-level analysis should be used to ensure eligible patients are receiving physical health checks. | I69: Quarterly | J69: NHS England | K69: NHS England: Physical Health Checks for people with Severe Mental Illness
B70: Meeting commitment to increase mental health funding
B71: MHF(i) | C71: ICB spend on MH as a % of ICB allocations | D71: Mental health spend (including learning disabilities and dementia) as a proportion of overall ICB allocation in the relevant year. | E71: N/A | F71: Total ICB mental health spend (including learning disabilities and dementia). | G71: Total ICB allocation (excludes primary care co-commissioning and administration specific allocations) | H71: This indicator shows for the relevant financial year, the ICB spend on mental health as a percentage of their overall allocations. For all financial years, the overall allocation excludes primary care co-commissioning and administration specific allocations. | I71: Year | J71: NHS England Finance financial template returns | K71: N/A
B72: MHF(ii.a) and MHF (ii.b) | C72: Total mental health spend by financial year | D72: Total mental health spend by financial year (including learning disabilities and dementia). | E72: N/A | F72: N/A | G72: N/A | H72: The total national NHS spend on mental health services is made up of both ICB and specialised commissioning spend. It does not include MH spend in primary care or on central non-commissioning. Spend on specialised commissioning covers a number of specialised mental health services that are delivered nationally and regionally by NHS England. The funding for these services is held separately from ICB budgets, which is why it’s shown separately and is only reported at a national level. Specialised Commissioning - based on estimates, does not necessarily include all MH spend due to the current financial reporting regime and is not directly comparable to prior years. The figures for 22/23 planned spend and outturn for Specialised Commissioning are as reported at M4. No detail was available at M3. The full plan submission for 22/23 is not yet available. Specialised Commissioning MH plans are still being worked on with the Regions and figures may well change in an updated plan as it is recognised that there are data quality issues. Regions will be asked to report against this updated plan from M4. | I72: Year | J72: ICB spend: NHS England Finance financial template returns Specialised commissioning spend: Specialised Commissioning hub templates | K72: N/A
B73: MHF(iii) | C73: Mental Health Investment Standard achieved? | D73: This measure shows whether the MH investment standard was achieved in the relevant financial year by ICB and nationally. | E73: N/A | F73: Annual increase in ICB mental health spend. | G73: Annual overall increase in total ICB allocation | H73: ICBs must continue to increase investment in mental health services, in line with the Mental Health Investment Standard (MHIS). The MHIS calculation does not include planned or actual spend on learning disabilities and dementia, which is included in the total mental health spend presented here. Specialised commissioning spend is also not included in the mental health investment standard compliance calculation. | I73: Year | J73: NHS England Finance financial template returns | K73: N/A

Sheet Dashboard
A1: Title:
E2: Previous name | F2: =IF(Selected_Org_Code="EN","",INDEX('ICB.Boundary Changes Q1 22.23'!C:C,MATCH(Selected_Org_Code,'ICB.Boundary Changes Q1 22.23'!B:B,0))) -> 
E3: Pop. change | F3: =IF(Selected_Org_Code="EN","",IF(INDEX('ICB.Boundary Changes Q1 22.23'!F:F,MATCH(Selected_Org_Code,'ICB.Boundary Changes Q1 22.23'!B:B,0))=0,"No change",INDEX('ICB.Boundary Changes Q1 22.23'!F:F,MATCH(Selected_Org_Code,'ICB.Boundary Changes Q1 22.23'!B:B,0)))) ->  | O3: =TypeSelector -> 1
E4: =IF(TypeSelector=4,"No Finance data available at Sub-ICB level","") -> 
O5: =LEFT(Selected_Org_Name,3) -> Eng
O6: =CCGName -> England
O7: =IF(TypeSelector=3,"Select ICB","Select Sub-ICB") -> Select Sub-ICB
O8: ="Overview for "&Selected_Org_Name -> Overview for England
O10: =OFFSET('LKP - Organisation codes'!$A$2,MATCH(Selected_Org_Name,'LKP - Organisation codes'!Org_list,0),) -> EN
D12: Click on the column headings below for a brief description of each column - see Guide for further information
B13: Code | C13: Indicator* - Please see the Metadata tab for further details on the indicators | D13: Reporting period | E13: Indicator value | F13: Standard met | G13: Trend ** | H13: Better is… | I13: 12 Month % change **** | J13: 24 Month % change **** | K13: Range ***
B14: Children and Young people (CYP) Mental Health | D14: ='Calc - Sparklines'!D11 -> 0 | E14: =IFERROR(IF('Calc - Sparklines'!T11="","",'Calc - Sparklines'!T11),"N/A") -> 0 | G14: ='Calc - Sparklines'!X11 -> N/A
B15: CYP(i.a) | C15: Number of CYP accessing support by NHS funded community services (at least one contact) (rolling 12 months) | D15: ='Calc - Sparklines'!D12 -> Q4 2022/23 | E15: =IFERROR(IF('Calc - Sparklines'!T12="","",'Calc - Sparklines'!T12),"N/A") -> 721506 | F15: N/A | G15: ='Calc - Sparklines'!X12 ->  | H15: ▲ | I15: ='Calc - Sparklines'!AH12 -> 0.06971392989 | J15: ='Calc - Sparklines'!AI12 -> 0.2235032771 | K15: N/A
B16: CYP(ii.a) | C16: % of CYP with eating disorders seen within 1 week (urgent) + | D16: ='Calc - Sparklines'!D13 -> Q4 2022/23 | E16: =IFERROR(IF('Calc - Sparklines'!T13="","",'Calc - Sparklines'!T13),"N/A") -> 0.7866184448 | F16: =E16 -> 0.7866184448 | G16: ='Calc - Sparklines'!X13 ->  | H16: ▲ | I16: ='Calc - Sparklines'!AH13 -> 0.167974377 | J16: ='Calc - Sparklines'!AI13 -> 0.08151844485 | K16: N/A
B17: CYP(ii.b) | C17: % of CYP with eating disorders seen within 4 weeks (routine) + | D17: ='Calc - Sparklines'!D14 -> Q4 2022/23 | E17: =IFERROR(IF('Calc - Sparklines'!T14="","",'Calc - Sparklines'!T14),"N/A") -> 0.824989988 | F17: =E17 -> 0.824989988 | G17: ='Calc - Sparklines'!X14 ->  | H17: ▲ | I17: ='Calc - Sparklines'!AH14 -> 0.1839215406 | J17: ='Calc - Sparklines'!AI14 -> 0.09838998799 | K17: N/A
B18: CYP(iii.a) | C18: Number of bed days for CYP under 18 in Child and Adolescent Mental Health Services tier 4 wards ⱡ ⱡ | D18: ='Calc - Sparklines'!D15 -> Q4 2022/23 | E18: =IFERROR(IF('Calc - Sparklines'!T15="","",'Calc - Sparklines'!T15),"N/A") -> 75059 | F18: N/A | G18: ='Calc - Sparklines'!X15 ->  | H18: N/A | I18: ='Calc - Sparklines'!AH15 -> 0.07225611063 | J18: ='Calc - Sparklines'!AI15 -> -0.1255533809 | K18: N/A
B19: CYP(iii.b) | C19: Number of admissions of CYP under 18 in Child and Adolescent Mental Health Services tier 4 wards ⱡ ⱡ | D19: ='Calc - Sparklines'!D16 -> Q4 2022/23 | E19: =IFERROR(IF('Calc - Sparklines'!T16="","",'Calc - Sparklines'!T16),"N/A") -> 651 | F19: N/A | G19: ='Calc - Sparklines'!X16 ->  | H19: N/A | I19: ='Calc - Sparklines'!AH16 -> 0.03993610224 | J19: ='Calc - Sparklines'!AI16 -> -0.1882793017 | K19: N/A
B20: CYP(iv.a) | C20: Bed days of CYP under 18 in adult in-patient wards | D20: ='Calc - Sparklines'!D17 -> Q1 2022/23 | E20: =IFERROR(IF('Calc - Sparklines'!T17="","",'Calc - Sparklines'!T17),"N/A") -> 727 | F20: N/A | G20: ='Calc - Sparklines'!X17 ->  | H20: ▼ | I20: ='Calc - Sparklines'!AH17 -> -0.6018619934 | J20: ='Calc - Sparklines'!AI17 -> -0.6973355537 | K20: N/A
B21: CYP(iv.b) | C21: Number of CYP under 18 in adult in-patient wards | D21: ='Calc - Sparklines'!D18 -> Q1 2022/23 | E21: =IFERROR(IF('Calc - Sparklines'!T18="","",'Calc - Sparklines'!T18),"N/A") -> 50 | F21: N/A | G21: ='Calc - Sparklines'!X18 ->  | H21: ▼ | I21: ='Calc - Sparklines'!AH18 -> -0.4791666667 | J21: ='Calc - Sparklines'!AI18 -> -0.3975903614 | K21: N/A
B22: CYP(vii) | C22: CYP Crisis Long Term Plan ambition <><> | D22: ='Calc - Sparklines'!D19 -> 2022/23 | E22: =IFERROR(IF('Calc - Sparklines'!T19="","",'Calc - Sparklines'!T19),"N/A") -> 0.76 | F22: =E22 -> 0.76 | G22: ='Calc - Sparklines'!X19 ->  | H22: ▲ | I22: ='Calc - Sparklines'!AH19 ->  | J22: ='Calc - Sparklines'!AI19 ->  | K22: =IF($O$3=1,"N/A", IF($O$3=2,"National measure only", IF($O$3=3,"National measure only", IF($O$3=4,"National measure only","")))) -> N/A
B23: CYP(ix) | C23: Number of people aged 18 to 24 supported through NHS funded mental health (at least one contact) (rolling 12 months) | D23: ='Calc - Sparklines'!D20 -> Q4 2022/23 | E23: =IFERROR(IF('Calc - Sparklines'!T20="","",'Calc - Sparklines'!T20),"N/A") -> 228228 | F23: N/A | G23: ='Calc - Sparklines'!X20 ->  | H23: ▲ | K23: N/A
B24: CYP(v) | C24: CYP Mental Health ICB spend - excluding learning disabilities and eating disorders | D24: ='Calc - Sparklines'!D21 -> 2022/23 | E24: =IFERROR(IF('Calc - Sparklines'!T21="","",'Calc - Sparklines'!T21),"N/A") -> 1004177402 | F24: N/A | G24: ='Calc - Sparklines'!X21 ->  | H24: N/A | I24: ='Calc - Sparklines'!AH21 -> 0.4290190614 | J24: ='Calc - Sparklines'!AI21 -> 0.5677441004 | K24: N/A
B25: CYP(vi) | C25: CYP Mental Health ICB spend - eating disorders | D25: ='Calc - Sparklines'!D22 -> 2022/23 | E25: =IFERROR(IF('Calc - Sparklines'!T22="","",'Calc - Sparklines'!T22),"N/A") -> 83488904.49 | F25: N/A | G25: ='Calc - Sparklines'!X22 ->  | H25: N/A | I25: ='Calc - Sparklines'!AH22 -> 0.650210028 | J25: ='Calc - Sparklines'!AI22 -> 0.7891185924 | K25: N/A
B26: Perinatal Mental Health | D26: ='Calc - Sparklines'!D26 -> 0 | E26: =IFERROR(IF('Calc - Sparklines'!T26="","",'Calc - Sparklines'!T26),"N/A") -> N/A | G26: ='Calc - Sparklines'!X26 -> N/A
B27: PMH(i.a) | C27: Number of women accessing specialist community perinatal mental health services (including MMHS) (rolling 12 months) | D27: ='Calc - Sparklines'!D24 -> Q4 2022/23 | E27: =IFERROR(IF('Calc - Sparklines'!T24="","",'Calc - Sparklines'!T24),"N/A") -> 52545 | F27: N/A | G27: ='Calc - Sparklines'!X24 ->  | H27: ▲ | I27: ='Calc - Sparklines'!AH24 -> 0.2036146234 | J27: ='Calc - Sparklines'!AI24 -> 0.665451664 | K27: N/A
B28: PMH(ii) | C28: Specialist Community Perinatal Mental Health ICB spend | D28: ='Calc - Sparklines'!D25 -> 2022/23 | E28: =IFERROR(IF('Calc - Sparklines'!T25="","",'Calc - Sparklines'!T25),"N/A") -> 169367360.7 | F28: N/A | G28: ='Calc - Sparklines'!X25 ->  | H28: N/A | I28: ='Calc - Sparklines'!AH25 ->  | J28: ='Calc - Sparklines'!AI25 ->  | K28: N/A
B29: Adult mental health: NHS Talking Therapies, for depression and anxiety (formerly IAPT services)
B30: IAPT(i.a) | C30: NHS Talking Therapies access: number of people entering NHS funded treatment during reporting period ++ | D30: ='Calc - Sparklines'!D27 -> Q4 2022/23 | E30: =IFERROR(IF('Calc - Sparklines'!T27="","",'Calc - Sparklines'!T27),"N/A") -> 320228 | F30: =E30 -> 320228 | G30: ='Calc - Sparklines'!X27 ->  | H30: ▲ | I30: ='Calc - Sparklines'!AH27 -> -0.006280798878 | J30: ='Calc - Sparklines'!AI27 -> 0.1043906207 | K30: N/A | O30: =INDEX('IAPT(i_a) Targets'!C10:AZ166,MATCH(Selected_Org_Code,'IAPT(i_a) Targets'!Data_Orgs_IAPT_i_a,0),MATCH(D30,'IAPT(i_a) Targets'!C10:AZ10,0)) -> 450233.7596
B31: IAPT(i.b) | C31: NHS Talking Therapies % of all referrals that are for older people 65+ ++ | D31: ='Calc - Sparklines'!D28 -> Q4 2022/23 | E31: =IFERROR(IF('Calc - Sparklines'!T28="","",'Calc - Sparklines'!T28),"N/A") -> 0.06179133647 | F31: N/A | G31: ='Calc - Sparklines'!X28 ->  | H31: ▲ | I31: ='Calc - Sparklines'!AH28 -> 0.006926672354 | J31: ='Calc - Sparklines'!AI28 -> 0.01523015291 | K31: =IF($O$3=1,"Chart available at ICB and Sub-ICB level", IF($O$3=2,"Chart available at ICB and Sub-ICB level", IF($O$3=3,"", IF($O$3=4,"","")))) -> Chart available at ICB and Sub-ICB level
B32: IAPT(ii.a) | C32: NHS Talking Therapies recovery rate: % of people that attended at least 2 treatment contacts and are moving to recovery ++ | D32: ='Calc - Sparklines'!D29 -> Q4 2022/23 | E32: =IFERROR(IF('Calc - Sparklines'!T29="","",'Calc - Sparklines'!T29),"N/A") -> 0.504 | F32: =E32 -> 0.504 | G32: ='Calc - Sparklines'!X29 ->  | H32: ▲ | I32: ='Calc - Sparklines'!AH29 -> -0.001 | J32: ='Calc - Sparklines'!AI29 -> -0.023 | K32: =IF($O$3=1,"Chart available at ICB and Sub-ICB level", IF($O$3=2,"Chart available at ICB and Sub-ICB level", IF($O$3=3,"", IF($O$3=4,"","")))) -> Chart available at ICB and Sub-ICB level
B33: IAPT(ii.b) | C33: NHS Talking Therapies recovery rate for Black, Asian or Minority Ethnic groups ++ | D33: ='Calc - Sparklines'!D30 -> Q4 2022/23 | E33: =IFERROR(IF('Calc - Sparklines'!T30="","",'Calc - Sparklines'!T30),"N/A") -> 0.479 | F33: =E33 -> 0.479 | G33: ='Calc - Sparklines'!X30 ->  | H33: ▲ | I33: ='Calc - Sparklines'!AH30 -> 0 | J33: ='Calc - Sparklines'!AI30 -> -0.028 | K33: =IF($O$3=1,"Chart available at ICB and Sub-ICB level", IF($O$3=2,"Chart available at ICB and Sub-ICB level", IF($O$3=3,"", IF($O$3=4,"","")))) -> Chart available at ICB and Sub-ICB level
B34: IAPT(iii.a) | C34: NHS Talking Therapies % of people receiving first treatment appointment within 6 weeks of referral ++ | D34: ='Calc - Sparklines'!D31 -> Q4 2022/23 | E34: =IFERROR(IF('Calc - Sparklines'!T31="","",'Calc - Sparklines'!T31),"N/A") -> 0.902 | F34: =E34 -> 0.902 | G34: ='Calc - Sparklines'!X31 ->  | H34: ▲ | I34: ='Calc - Sparklines'!AH31 -> 0.009 | J34: ='Calc - Sparklines'!AI31 -> -0.025 | K34: =IF($O$3=1,"Chart available at ICB and Sub-ICB level", IF($O$3=2,"Chart available at ICB and Sub-ICB level", IF($O$3=3,"", IF($O$3=4,"","")))) -> Chart available at ICB and Sub-ICB level
B35: IAPT(iii.b) | C35: NHS Talking Therapies % of people receiving first treatment appointment within 18 weeks of referral ++ | D35: ='Calc - Sparklines'!D32 -> Q4 2022/23 | E35: =IFERROR(IF('Calc - Sparklines'!T32="","",'Calc - Sparklines'!T32),"N/A") -> 0.983 | F35: =E35 -> 0.983 | G35: ='Calc - Sparklines'!X32 ->  | H35: ▲ | I35: ='Calc - Sparklines'!AH32 -> -0.001 | J35: ='Calc - Sparklines'!AI32 -> -0.004 | K35: =IF($O$3=1,"Chart available at ICB and Sub-ICB level", IF($O$3=2,"Chart available at ICB and Sub-ICB level", IF($O$3=3,"", IF($O$3=4,"","")))) -> Chart available at ICB and Sub-ICB level
B36: IAPT(iii.c) | C36: NHS Talking Therapies % of in-treatment pathway waits over 90 days ++ | D36: ='Calc - Sparklines'!D33 -> Q4 2022/23 | E36: =IFERROR(IF('Calc - Sparklines'!T33="","",'Calc - Sparklines'!T33),"N/A") -> 0.2246496427 | F36: N/A | G36: ='Calc - Sparklines'!X33 ->  | H36: ▼ | I36: ='Calc - Sparklines'!AH33 -> 0.003321697561 | J36: ='Calc - Sparklines'!AI33 -> 0.09595133154 | K36: =IF($O$3=1,"Chart available at ICB and Sub-ICB level", IF($O$3=2,"Chart available at ICB and Sub-ICB level", IF($O$3=3,"", IF($O$3=4,IF(E36>0,E36,"#N/A"),"")))) -> Chart available at ICB and Sub-ICB level
B37: IAPT(iv) | C37: NHS Talking Therapies ICB spend | D37: ='Calc - Sparklines'!D34 -> 2022/23 | E37: =IFERROR(IF('Calc - Sparklines'!T34="","",'Calc - Sparklines'!T34),"N/A") -> 815845593.6 | F37: N/A | G37: ='Calc - Sparklines'!X34 ->  | H37: N/A | I37: ='Calc - Sparklines'!AH34 ->  | J37: ='Calc - Sparklines'!AI34 -> 0.8255997294 | K37: N/A
B38: Early intervention in psychosis (EIP)
B39: EIP(i) | C39: % of people who started treatment within 2 weeks of referral - All ages | D39: ='Calc - Sparklines'!D36 -> Q4 2022/23 | E39: =IFERROR(IF('Calc - Sparklines'!T36="","",'Calc - Sparklines'!T36),"N/A") -> 0.7076899145 | F39: =E39 -> 0.7076899145 | G39: ='Calc - Sparklines'!X36 ->  | H39: ▲ | I39: ='Calc - Sparklines'!AH36 -> 0.02576639188 | J39: ='Calc - Sparklines'!AI36 -> -0.02641008553 | K39: N/A
B40: EIP(i.a) | C40: % of Sub-ICBs commissioned EIP services meeting NICE level 2 ++ | D40: ='Calc - Sparklines'!D37 -> 2022/23 | E40: =IFERROR(IF('Calc - Sparklines'!T37="","",'Calc - Sparklines'!T37),"N/A") -> 1 | F40: N/A | G40: ='Calc - Sparklines'!X37 ->  | H40: ▲ | I40: ='Calc - Sparklines'!AH37 -> 0 | J40: ='Calc - Sparklines'!AI37 -> 0.1020408163 | K40: =IF($O$3=1,"Chart available at ICB and Sub-ICB level", IF($O$3=2,"Chart available at ICB and Sub-ICB level", IF($O$3=3,IF(E40>0,E40,"#N/A"), IF($O$3=4,IF(E40>0,E40,"#N/A"),"")))) -> Chart available at ICB and Sub-ICB level
B41: EIP(i.b) | C41: % of Sub-ICBs commissioned EIP services meeting NICE level 3 or above ++ | D41: ='Calc - Sparklines'!D38 -> 2022/23 | E41: =IFERROR(IF('Calc - Sparklines'!T38="","",'Calc - Sparklines'!T38),"N/A") -> 0.6825396825 | F41: =E41 -> 0.6825396825 | G41: ='Calc - Sparklines'!X38 ->  | H41: ▲ | I41: ='Calc - Sparklines'!AH38 -> 0.2403628118 | J41: ='Calc - Sparklines'!AI38 -> 0.3900226757 | K41: =IF($O$3=1,"Chart available at ICB and Sub-ICB level", IF($O$3=2,"Chart available at ICB and Sub-ICB level", IF($O$3=3,IF(E41>0,E41,"#N/A"), IF($O$3=4,IF(E41>0,E41,"#N/A"),"")))) -> Chart available at ICB and Sub-ICB level
B42: EIP(ii) | C42: EIP ICB spend | D42: ='Calc - Sparklines'!D39 -> 2022/23 | E42: =IFERROR(IF('Calc - Sparklines'!T39="","",'Calc - Sparklines'!T39),"N/A") -> 239803087 | F42: N/A | G42: ='Calc - Sparklines'!X39 ->  | H42: N/A | I42: ='Calc - Sparklines'!AH39 ->  | J42: ='Calc - Sparklines'!AI39 -> 0.6076951373 | K42: N/A
B43: Employment support
B44: ES(i) | C44: Number of people accessing Individual Placement Support services | D44: ='Calc - Sparklines'!D41 -> Q4 2022/23 | E44: =IFERROR(IF('Calc - Sparklines'!T41="","",'Calc - Sparklines'!T41),"N/A") -> 30035 | F44: =E44 -> 30035 | G44: ='Calc - Sparklines'!X41 ->  | H44: ▲ | I44: ='Calc - Sparklines'!AH41 -> 0.9720945502 | J44: ='Calc - Sparklines'!AI41 -> 1.690103 | K44: N/A | O44: =INDEX('ES(i)_Target'!C10:AZ166,MATCH(Selected_Org_Code,[0]!Data_Orgs_ES_i,0),MATCH(D44,'ES(i)_Target'!C10:AZ10,0)) -> 44000
B45: Physical Health Checks (SMI)
B46: PHSMI(i) | C46: Number of people on GP SMI register receiving full physical health check in any setting | D46: ='Calc - Sparklines'!D43 -> Q4 2022/23 | E46: =IFERROR(IF('Calc - Sparklines'!T43="","",'Calc - Sparklines'!T43),"N/A") -> 313022 | F46: N/A | G46: ='Calc - Sparklines'!X43 ->  | H46: ▲ | I46: ='Calc - Sparklines'!AH43 -> 0.3814893439 | J46: ='Calc - Sparklines'!AI43 -> 1.586317442 | K46: N/A
B47: Crisis and acute care and use of the Mental Health Act (MHA)
B48: CR(i.a) | C48: % Crisis services which are open access, including for self-referral | D48: ='Calc - Sparklines'!D45 -> 2020/21 | E48: =IFERROR(IF('Calc - Sparklines'!T45="","",'Calc - Sparklines'!T45),"N/A") -> 1 | F48: N/A | G48: ='Calc - Sparklines'!X45 -> N/A | H48: ▲ | I48: ='Calc - Sparklines'!AH45 ->  | J48: ='Calc - Sparklines'!AI45 ->  | K48: =IF($O$3=1,"N/A", IF($O$3=2,"N/A", IF($O$3=3,"National and Regional measure only", IF($O$3=4,"National and Regional measure only","")))) -> N/A
B49: CR(i.b) | C49: % Adult crisis services operating 24/7 including face to face response ³ | D49: ='Calc - Sparklines'!D46 -> 2020/21 | E49: =IFERROR(IF('Calc - Sparklines'!T46="","",'Calc - Sparklines'!T46),"N/A") -> 0.9756097561 | F49: N/A | G49: ='Calc - Sparklines'!X46 -> N/A | H49: ▲ | I49: ='Calc - Sparklines'!AH46 ->  | J49: ='Calc - Sparklines'!AI46 ->  | K49: =IF($O$3=1,"N/A", IF($O$3=2,"N/A", IF($O$3=3,"National and Regional measure only", IF($O$3=4,"National and Regional measure only")))) -> N/A
B50: CR(i.c) | C50: % Adult home treatment service staffed in line with recommended levels ³ | D50: ='Calc - Sparklines'!D47 -> 2020/21 | E50: =IFERROR(IF('Calc - Sparklines'!T47="","",'Calc - Sparklines'!T47),"N/A") -> 0.85 | F50: N/A | G50: ='Calc - Sparklines'!X47 -> N/A | H50: ▲ | I50: ='Calc - Sparklines'!AH47 ->  | J50: ='Calc - Sparklines'!AI47 ->  | K50: =IF($O$3=1,"N/A", IF($O$3=2,"N/A", IF($O$3=3,"National and Regional measure only", IF($O$3=4,"National and Regional measure only")))) -> N/A
B51: CR(i.d) | C51: % Adult crisis services that respond to older adults ³ | D51: ='Calc - Sparklines'!D48 -> 2020/21 | E51: =IFERROR(IF('Calc - Sparklines'!T48="","",'Calc - Sparklines'!T48),"N/A") -> 0.9268292683 | F51: N/A | G51: ='Calc - Sparklines'!X48 -> N/A | H51: ▲ | I51: ='Calc - Sparklines'!AH48 ->  | J51: ='Calc - Sparklines'!AI48 ->  | K51: =IF($O$3=1,"N/A", IF($O$3=2,"N/A", IF($O$3=3,"National and Regional measure only", IF($O$3=4,"National and Regional measure only")))) -> N/A
B52: CR(ii) | C52: Adult Community crisis care spend | D52: ='Calc - Sparklines'!D49 -> 2022/23 | E52: =IFERROR(IF('Calc - Sparklines'!T49="","",'Calc - Sparklines'!T49),"N/A") -> 694263507.6 | F52: N/A | G52: ='Calc - Sparklines'!X49 ->  | H52: N/A | I52: ='Calc - Sparklines'!AH49 -> 1.029335698 | J52: ='Calc - Sparklines'!AI49 -> 1.312952905 | K52: N/A
B53: CR(iii.a) | C53: Total number of inappropriate Out of Area bed days | D53: ='Calc - Sparklines'!D50 -> Q4 2022/23 | E53: =IFERROR(IF('Calc - Sparklines'!T50="","",'Calc - Sparklines'!T50),"N/A") -> 58515 | F53: N/A | G53: ='Calc - Sparklines'!X50 ->  | H53: ▼ | I53: ='Calc - Sparklines'!AH50 -> 0.1266968326 | J53: ='Calc - Sparklines'!AI50 -> -0.09671194813 | K53: N/A
B54: CR(iii.b) | C54: Number of inappropriate Mental Health Out of Area Placements started in the period | D54: ='Calc - Sparklines'!D51 -> Q4 2022/23 | E54: =IFERROR(IF('Calc - Sparklines'!T51="","",'Calc - Sparklines'!T51),"N/A") -> 1220 | F54: N/A | G54: ='Calc - Sparklines'!X51 ->  | H54: ▼ | I54: ='Calc - Sparklines'!AH51 -> 0.4104046243 | J54: ='Calc - Sparklines'!AI51 -> -0.2583586626 | K54: N/A
B55: CR(iv.a) | C55: Number of detentions under the Mental Health Act | D55: ='Calc - Sparklines'!D52 -> 2021/22 | E55: =IFERROR(IF('Calc - Sparklines'!T52="","",'Calc - Sparklines'!T52),"N/A") -> 53337 | F55: N/A | G55: ='Calc - Sparklines'!X52 ->  | H55: ▼ | I55: ='Calc - Sparklines'!AH52 -> 0.001840755837 | J55: ='Calc - Sparklines'!AI52 -> 0.04802232134 | K55: =IF($O$3=1,"N/A", IF($O$3=2,"National measure only", IF($O$3=3,"National measure only", IF($O$3=4,"National measure only","")))) -> N/A
B56: CR(iv.b) | C56: Standardised rate of detentions for people detained under the MHA from a White British ethnicity | D56: ='Calc - Sparklines'!D53 -> 2021/22 | E56: =IFERROR(IF('Calc - Sparklines'!T53="","",'Calc - Sparklines'!T53),"N/A") -> 69.3 | F56: N/A | G56: ='Calc - Sparklines'!X53 ->  | H56: ▼ | I56: ='Calc - Sparklines'!AH53 -> -0.03212290503 | J56: ='Calc - Sparklines'!AI53 -> -0.0170212766 | K56: N/A
B57: CR(iv.c) | C57: Standardised rate of detentions for people detained under the MHA from a Black or Black British ethnicity | D57: ='Calc - Sparklines'!D54 -> 2021/22 | E57: =IFERROR(IF('Calc - Sparklines'!T54="","",'Calc - Sparklines'!T54),"N/A") -> 341.7 | F57: N/A | G57: ='Calc - Sparklines'!X54 ->  | H57: ▼ | I57: ='Calc - Sparklines'!AH54 -> -0.005240174672 | J57: ='Calc - Sparklines'!AI54 -> 0.06216972334 | K57: N/A
B58: CR(iv.d) | C58: Number of Section 136 Place of Safety orders to hospital | D58: ='Calc - Sparklines'!D55 -> 2021/22 | E58: =IFERROR(IF('Calc - Sparklines'!T55="","",'Calc - Sparklines'!T55),"N/A") -> 20875 | F58: N/A | G58: ='Calc - Sparklines'!X55 ->  | H58: ▼ | I58: ='Calc - Sparklines'!AH55 -> 0.03582593162 | J58: ='Calc - Sparklines'!AI55 -> 0.1184034289 | K58: N/A
B59: CR(v.a) | C59: Number of Section 136 detentions taken to police cells as a place of safety | D59: ='Calc - Sparklines'!D56 -> 2021/22 | E59: =IFERROR(IF('Calc - Sparklines'!T56="","",'Calc - Sparklines'!T56),"N/A") -> 254 | F59: N/A | G59: ='Calc - Sparklines'!X56 ->  | H59: ▼ | I59: ='Calc - Sparklines'!AH56 -> 1.267857143 | J59: ='Calc - Sparklines'!AI56 -> 0.984375 | K59: N/A
B60: CR(v.b) | C60: Number of Section 136 detentions taken to police cells as a place of safety that are under 18 | D60: ='Calc - Sparklines'!D57 -> 2021/22 | E60: =IFERROR(IF('Calc - Sparklines'!T57="","",'Calc - Sparklines'!T57),"N/A") -> 1 | F60: N/A | G60: ='Calc - Sparklines'!X57 ->  | H60: ▼ | I60: ='Calc - Sparklines'!AH57 -> 1 | J60: ='Calc - Sparklines'!AI57 -> -0.6666666667 | K60: N/A
B61: CR(vii.a) | C61: Adults in acute mental health beds Length of Stay rate (over 60 days) | D61: ='Calc - Sparklines'!D58 -> Q4 2022/23 | E61: =IFERROR(IF('Calc - Sparklines'!T58="","",'Calc - Sparklines'!T58),"N/A") -> 9.20041 | F61: =E61 -> 9.20041 | G61: ='Calc - Sparklines'!X58 ->  | H61: ▼ | I61: ='Calc - Sparklines'!AH58 -> 0.08240117647 | J61: ='Calc - Sparklines'!AI58 -> 0.08240117647 | K61: N/A
B62: CR(vii.b) | C62: Older Adults in acute mental health beds Length of Stay rate (over 90 days) | D62: ='Calc - Sparklines'!D59 -> Q4 2022/23 | E62: =IFERROR(IF('Calc - Sparklines'!T59="","",'Calc - Sparklines'!T59),"N/A") -> 9.78593 | F62: =E62 -> 9.78593 | G62: ='Calc - Sparklines'!X59 ->  | H62: ▼ | I62: ='Calc - Sparklines'!AH59 -> -0.001435714286 | J62: ='Calc - Sparklines'!AI59 -> -0.001435714286 | K62: N/A
B63: CR(viii) | C63: Proportion of discharges from hospital followed up within 72 hours ## | D63: ='Calc - Sparklines'!D60 -> Q4 2022/23 | E63: =IFERROR(IF('Calc - Sparklines'!T60="","",'Calc - Sparklines'!T60),"N/A") -> 0.7451434139 | F63: =E63 -> 0.7451434139 | G63: ='Calc - Sparklines'!X60 ->  | H63: ▲ | I63: ='Calc - Sparklines'!AH60 -> 0.001536846668 | J63: ='Calc - Sparklines'!AI60 -> -0.03228128062 | K63: N/A
B64: Acute hospital mental health liaison
B65: AC(i) | C65: % of acute hospitals meeting the ‘core 24’ service standard | D65: ='Calc - Sparklines'!D62 -> 2022/23 | E65: =IFERROR(IF('Calc - Sparklines'!T62="","",'Calc - Sparklines'!T62),"N/A") -> 0.6081871345 | F65: =E65 -> 0.6081871345 | G65: ='Calc - Sparklines'!X62 ->  | H65: ▲ | I65: ='Calc - Sparklines'!AH62 -> 0.255245958 | J65: ='Calc - Sparklines'!AI62 -> 0.2767585631 | K65: =IF($O$3=1,"Chart available at ICB level only", IF($O$3=2,"Chart available at ICB level only", IF($O$3=3,"", IF($O$3=4,"National, Regional and ICB Measure only","")))) -> Chart available at ICB level only
B66: AC(i.a) | C66: % of teams that are that are open/available 24/7 | D66: ='Calc - Sparklines'!D63 -> 2022/23 | E66: =IFERROR(IF('Calc - Sparklines'!T63="","",'Calc - Sparklines'!T63),"N/A") -> 0.918128655 | F66: N/A | G66: ='Calc - Sparklines'!X63 -> N/A | H66: ▲ | I66: ='Calc - Sparklines'!AH63 ->  | J66: ='Calc - Sparklines'!AI63 ->  | K66: =IF($O$3=1,"Chart available at ICB level only", IF($O$3=2,"Chart available at ICB level only", IF($O$3=3,"", IF($O$3=4,"National, Regional and ICB Measure only","")))) -> Chart available at ICB level only
B67: AC(ii) | C67: Mental health liaison staffing levels | D67: ='Calc - Sparklines'!D64 -> 2022/23 | E67: =IFERROR(IF('Calc - Sparklines'!T64="","",'Calc - Sparklines'!T64),"N/A") -> 2847.58 | F67: N/A | G67: ='Calc - Sparklines'!X64 ->  | H67: ▲ | I67: ='Calc - Sparklines'!AH64 -> 0.1556924625 | J67: ='Calc - Sparklines'!AI64 -> 0.2291906778 | K67: =IF($O$3=1,"Chart available at ICB level only", IF($O$3=2,"Chart available at ICB level only", IF($O$3=3,"", IF($O$3=4,"National, Regional and ICB Measure only","")))) -> Chart available at ICB level only
B68: AC(iii) | C68: A&E and Ward Liaison mental health spend | D68: ='Calc - Sparklines'!D65 -> 2022/23 | E68: =IFERROR(IF('Calc - Sparklines'!T65="","",'Calc - Sparklines'!T65),"N/A") -> 302132001.3 | F68: N/A | G68: ='Calc - Sparklines'!X65 ->  | H68: N/A | I68: ='Calc - Sparklines'!AH65 -> 0.8844897639 | J68: ='Calc - Sparklines'!AI65 -> 1.132916183 | K68: N/A
B69: Health & Justice
B70: Health & Justice Metrics are under review
B71: Mental Health Service Backlog
B72: MHSB(i) | C72: Number of referrals to community-based mental health and learning disability services, yet to receive their second contact (experimental analysis) " | D72: ='Calc - Sparklines'!D69 -> End of Q4 22/23 | E72: =IFERROR(IF('Calc - Sparklines'!T69="","",'Calc - Sparklines'!T69),"N/A") -> 1394537 | F72: N/A | G72: ='Calc - Sparklines'!X69 ->  | H72: ▼ | I72: ='Calc - Sparklines'!AH69 -> 0.1084063376 | J72: ='Calc - Sparklines'!AI69 ->  | K72: =IF($O$3=1,"N/A", IF($O$3=2,"N/A", IF($O$3=3,"National and Regional measure only", IF($O$3=4,"National and Regional measure only","")))) -> N/A
B73: MHSB(ii) | C73: Number of people with a severe mental illness (SMI) eligible but waiting for all 6 components of a physical health check in the last 12 months | D73: ='Calc - Sparklines'!D70 -> Q4 2022/23 | E73: =IFERROR(IF('Calc - Sparklines'!T70="","",'Calc - Sparklines'!T70),"N/A") -> 222182 | F73: N/A | G73: ='Calc - Sparklines'!X70 ->  | H73: ▼ | I73: ='Calc - Sparklines'!AH70 -> -0.2655383293 | J73: ='Calc - Sparklines'!AI70 ->  | K73: =IF($O$3=1,"N/A", IF($O$3=2,"N/A", IF($O$3=3,"National and Regional measure only", IF($O$3=4,"National and Regional measure only","")))) -> N/A
B74: Meeting commitment to increase mental health funding
B75: MHF(i) | C75: ICB spend on MH as a % of ICB base allocations | D75: ='Calc - Sparklines'!D72 -> 2022/23 | E75: =IFERROR(IF('Calc - Sparklines'!T72="","",'Calc - Sparklines'!T72),"N/A") -> 0.1398696092 | F75: N/A | G75: ='Calc - Sparklines'!X72 -> N/A | H75: ▲ | I75: ='Calc - Sparklines'!AH72 -> 0.008769264948 | J75: ='Calc - Sparklines'!AI72 -> 0.01726379092 | K75: N/A
B76: MHF(ii.a) | C76: Mental health actual spend in 2021/22 ^ | D76: ='Calc - Sparklines'!D73 -> 2021/22 | E76: =IFERROR(IF('Calc - Sparklines'!T73="","",'Calc - Sparklines'!T73),"N/A") -> 1.268074142e+10 | F76: N/A | G76: ='Calc - Sparklines'!X73 ->  | H76: ▲ | I76: ='Calc - Sparklines'!AH73 -> 0.04861647675 | J76: ='Calc - Sparklines'!AI73 -> 0.1253985513 | K76: N/A
B77: MHF(ii.b) | C77: Mental health actual spend in 2022/23 ^ | D77: ='Calc - Sparklines'!D74 -> 2022/23 | E77: =IFERROR(IF('Calc - Sparklines'!T74="","",'Calc - Sparklines'!T74),"N/A") -> 1.364252609e+10 | F77: N/A | G77: ='Calc - Sparklines'!X74 ->  | H77: ▲ | I77: ='Calc - Sparklines'!AH74 -> 0.2920284203 | J77: ='Calc - Sparklines'!AI74 -> 0.3534760731 | K77: N/A
B78: MHF(iii) | C78: MH investment standard achieved? ^^ | D78: ='Calc - Sparklines'!D75 -> 2022/23 | E78: =IFERROR(IF('Calc - Sparklines'!T75="","",'Calc - Sparklines'!T75),"N/A") -> N | F78: =IF(E78="Y",1,IF(E78="n",0,"N/A")) -> 0 | G78: N/A | H78: N/A | I78: Only relevant for spend | K78: N/A
O79: =IF(ISERROR('Calc - Spinecharts'!J76),"", IF(AND('Calc - Spinecharts'!G76>='Calc - Spinecharts'!I76,'Calc - Spinecharts'!G76<='Calc - Spinecharts'!K76),"Yes","No")) -> Yes
B81: Meeting commitment to increase mental health funding | D81: Local spend on mental health (£m) | E81: NHSE Specialised Commissioning spend on mental health (£m) | F81: Total NHS spend on mental health (£m) | G81: ICB spend on MH as a % of ICB base allocations | H81: MH Investment Standard met?^^ | I81: No. ICBs meeting MHIS ^^ | K81: % ICBs meeting MHIS ^^
B82: Total actual spend - 2016/17 | D82: 9722.8 | E82: 1879.1 | F82: 11601.9 | G82: 0.136 | H82: Y | I82: 177 out of 209 | K82: 0.85
B83: Total actual spend - 2017/18 | D83: 10079.6 | E83: =F83-D83 -> 1896.4 | F83: 11976 | G83: 0.137 | H83: Y | I83: 186 out of 207 | K83: 0.9
B84: Total actual spend - 2018/19 ^ | D84: 10558.99845 | E84: 1954.2 | F84: =D84+E84 -> 12513.19845 | G84: 0.138 | H84: Y | I84: 179 out of 195 | K84: 0.91795
B85: Total actual spend - 2019/20 ^ | D85: =11267778340.445/1000000 -> 11267.77834 | E85: 2057 | F85: =D85+E85 -> 13324.77834 | G85: 0.14 | H85: Y | I85: 181 out of 191 | K85: =181/191 -> 0.9476439791
B86: Total actual spend - 2020/21 ^ | D86: =12092830602.347/1000000 -> 12092.8306 | E86: 2221 | F86: =D86+E86 -> 14313.8306 | G86: 0.1476546243 | H86: Y | I86: 135 out of 135 | K86: =135/135 -> 1
B87: Methodology change in how CCG base allocation was calculated
B88: Total actual spend - 2021/22 ^ | D88: =12680741420.2169/1000000 -> 12680.74142 | E88: =2254000000/1000000 -> 2254 | F88: =D88+E88 -> 14934.74142 | G88: 0.1377293264 | H88: Y | I88: 106 out of 106 | K88: =106/106 -> 1
B89: Total actual spend - 2022/23 ^ | D89: 13642.52609 | E89: 2334.49 | F89: 15977.01609 | G89: 0.14 | H89: N | I89: 41 out of 42 | K89: 0.976
B91: * | C91: The indicators within this dashboard should be interpreted with caution, some data are experimental and improvements or decreases could be due to data quality fluctuations. Please see Metadata tab for further details.
B92: ** | C92: Where fewer than three time periods are available trendlines are not shown. This may apply to data that has only been collected for a short period, or where an individual organisation has data in some periods that are suppressed due to small numbers. If the most recent period is suppressed no trendline will be shown.
B93: *** | C93: The spine chart shows the relative performance of the organisation against the relevant comparator group (either all Sub-ICBs or all ICBs) for the latest period. A position towards the left of the scale indicates a lower value and to the right indicates a higher value, please refer to the "Better is..." column to interpret if the organisation is performing better or worse than the comparator group. Not all indicators presented with spine charts have been normalised, so interpretation needs to be undertaken with caution. Please use the trend lines to add context where available.
B94: **** | C94: There are two columns for 12 Month % Change and 24 Month % Change to aid interpretation of the data. These will be shown where there is data available for the relevant period and organisation, otherwise the cells appear grey. Green figures indicate a positive change for the indicator (which may be higher or lower depending on the indicator - please use the "Better is" column for reference) and red figures where there has been a negative change. Where the "Better is" column is N/A, figures appear in black. Where the indicator is a %, the percentage point change will be shown.
C95: These indicators have unfortunately been impacted by the cyber incident, which has meant that, for the affected months, national level data cannot be considered an accurate reflection of activity. For MHSDS measures only, to assist users until the cyber incident and its effects are resolved, NHS Digital has produced national level estimates from August 2022, calculated through imputation and published as supplementary information. National level MHSDS estimates are also affected by an error in the December 2022 data from one provider, which reduced overall figures by an average of 1-2%. For more information please visit: https://digital.nhs.uk/data-and-information/publications/statistical/mental-health-services-monthly-statistics/national-estimates
B96: ⱡ ⱡ | C96: There are figures reported for Unknown Sub-ICBs or organisations, these are included in the England totals, however could not be assigned to a Sub-ICB/ICB/Region. The England totals therefore differ slightly to the aggregate of Sub-ICBs. Number of Unknowns for each Quarter 2020/21 onwards are as follows: CYP (iii.a): Q1: 0, Q2: 10, Q3: 92, Q4: 158, Q1 2021/22: 1,339, Q2 21/22: 1,431, Q3 21/22: 811, Q4 21/22: 660, Q1 22/23: 731, Q2 22/23 114, Q3 22/23 108, Q4 22/23 90. CYP (iii.b): Q1: 0, Q2: 1, Q3: 0, Q4: 2, Q1 2021/22: 4, Q2 21/22: 8, Q3 2021/22: 8, Q4 21/22: 6, Q1 22/23: 13, Q2 22/23 33, Q3 22/23 31, Q4 22/23 32.
B97: + | C97: Data on CYP eating disorder service waiting times at national and regional level is presented for the most recent quarter available. Due to low numbers Sub-ICBs and ICB percentages are calculated using data from the last 12 months. Please note CYP ED data was affected by the cyber incident in August 2022. National level data included in this dashboard has been calculated through imputation - this data should be viewed with caution and not considered an accurate reflection of activity.
B98: <><> | C98: Please see metadata for the CYP Crisis Long Term Plan ambition metric for further information on the methodology, data quality and completeness.
B99: ++ | C99: *NHS Talking Therapies is the new name for IAPT services Published data has been used for these indicators from 2022/23.
B100: ++ | C100: If the value is * for the indicator, the column will show "N/A" as no value is reported by the organisation.
B101: ## | C101: This metric was formerly listed under SP(iii.c).
B102: " | C102: This measure excludes inpatient services. Regional figures have been rounded to the nearest five, therefore will not match the national totals. England total also includes referrals coded as Missing/Invalid.
B103: ^ | C103: Total actual mental health spend reported here includes spending on learning disabilities and dementia, which is not included in the MHIS or the baseline spend for the commitment in the NHS Long Term Plan to increase mental health spending by at least £2.3bn a year by 2023/24. Those differences mean that some ICBs, which are increasing investment in mental health services as required by the MHIS, will have a total mental health spend shown in this dashboard that is increasing more slowly or even decreasing. In 2021/22 spend on learning disabilities and dementia was £2.97bn. For 2022/23, in both planning and reporting, ICBs now have the option to report separately baseline spend on learning disability and autism via separate categories. A combined learning disability and autism category remains available where separate spend is not separately identifiable. This means for this year planned spend on learning disabilities is £0.60bn, dementia is £0.76bn, learning disability and dementia (not separately identified) is £1.89bn and Autism is £0.03bn.
B104: ^^ | C104: The MHIS calculation does not include spend on learning disabilities and dementia, which is included in the total mental health spend presented here. As planned spend does not include any in-year funding allocations these are also excluded from the outturn spend it’s compared to. It also does not include Specialised commissioning spend in the mental health investment standard compliance calculation. Excluding spend on learning disabilities and dementia, and the in-year allocation, as per the MHIS calculation, nationally spend on mental health increased 5.0% in 2021/22 from 2020/21. Based on planned spend in 2022/23 this is an increase of 5.6% from 2021/22 and actual spend is a 7.4% increase from 2021/22.

Sheet ICB New vs Old Names
B2: Org level | C2: Org Code | D2: Old Name | E2: New Name | F2: Local Name | G2: Boundary changes | H2: % total Population change
B3: ICB | C3: QWO | D3: West Yorkshire And Harrogate (Health & Care Partnership) STP | E3: NHS West Yorkshire ICB | F3: NHS West Yorkshire ICB | G3: =INDEX('ICB.Boundary Changes Q1 22.23'!E:E,MATCH(C3,'ICB.Boundary Changes Q1 22.23'!B:B,0)) -> No | H3: =INDEX('ICB.Boundary Changes Q1 22.23'!F:F,MATCH(C3,'ICB.Boundary Changes Q1 22.23'!B:B,0)) -> 0
B4: ICB | C4: QOQ | D4: Humber, Coast And Vale STP | E4: NHS Humber and North Yorkshire ICB | F4: NHS Humber and North Yorkshire ICB | G4: =INDEX('ICB.Boundary Changes Q1 22.23'!E:E,MATCH(C4,'ICB.Boundary Changes Q1 22.23'!B:B,0)) -> No | H4: =INDEX('ICB.Boundary Changes Q1 22.23'!F:F,MATCH(C4,'ICB.Boundary Changes Q1 22.23'!B:B,0)) -> 0
B5: ICB | C5: QHM | D5: Cumbria And North East STP | E5: NHS North East and North Cumbria ICB | F5: NHS North East and North Cumbria ICB | G5: =INDEX('ICB.Boundary Changes Q1 22.23'!E:E,MATCH(C5,'ICB.Boundary Changes Q1 22.23'!B:B,0)) -> No | H5: =INDEX('ICB.Boundary Changes Q1 22.23'!F:F,MATCH(C5,'ICB.Boundary Changes Q1 22.23'!B:B,0)) -> 0
B6: ICB | C6: QF7 | D6: South Yorkshire And Bassetlaw STP | E6: NHS South Yorkshire ICB | F6: NHS South Yorkshire ICB | G6: =INDEX('ICB.Boundary Changes Q1 22.23'!E:E,MATCH(C6,'ICB.Boundary Changes Q1 22.23'!B:B,0)) -> Yes | H6: =INDEX('ICB.Boundary Changes Q1 22.23'!F:F,MATCH(C6,'ICB.Boundary Changes Q1 22.23'!B:B,0)) -> -0.07592668845
B7: ICB | C7: QYG | D7: Cheshire And Merseyside STP | E7: NHS Cheshire and Merseyside ICB | F7: NHS Cheshire and Merseyside ICB | G7: =INDEX('ICB.Boundary Changes Q1 22.23'!E:E,MATCH(C7,'ICB.Boundary Changes Q1 22.23'!B:B,0)) -> No | H7: =INDEX('ICB.Boundary Changes Q1 22.23'!F:F,MATCH(C7,'ICB.Boundary Changes Q1 22.23'!B:B,0)) -> 0
B8: ICB | C8: QOP | D8: Greater Manchester Health And Social Care Partnership (STP) | E8: NHS Greater Manchester ICB | F8: NHS Greater Manchester ICB | G8: =INDEX('ICB.Boundary Changes Q1 22.23'!E:E,MATCH(C8,'ICB.Boundary Changes Q1 22.23'!B:B,0)) -> Yes | H8: =INDEX('ICB.Boundary Changes Q1 22.23'!F:F,MATCH(C8,'ICB.Boundary Changes Q1 22.23'!B:B,0)) -> -0.01045485756
B9: ICB | C9: QE1 | D9: Healthier Lancashire And South Cumbria | E9: NHS Lancashire and South Cumbria ICB | F9: NHS Lancashire and South Cumbria ICB | G9: =INDEX('ICB.Boundary Changes Q1 22.23'!E:E,MATCH(C9,'ICB.Boundary Changes Q1 22.23'!B:B,0)) -> No | H9: =INDEX('ICB.Boundary Changes Q1 22.23'!F:F,MATCH(C9,'ICB.Boundary Changes Q1 22.23'!B:B,0)) -> 0
B10: ICB | C10: QUE | D10: Cambridgeshire And Peterborough STP | E10: NHS Cambridgeshire and Peterborough ICB | F10: NHS Cambridgeshire and Peterborough ICB | G10: =INDEX('ICB.Boundary Changes Q1 22.23'!E:E,MATCH(C10,'ICB.Boundary Changes Q1 22.23'!B:B,0)) -> Yes | H10: =INDEX('ICB.Boundary Changes Q1 22.23'!F:F,MATCH(C10,'ICB.Boundary Changes Q1 22.23'!B:B,0)) -> -0.01076384067
B11: ICB | C11: QMM | D11: Norfolk And Waveney Health & Care Partnership (STP) | E11: NHS Norfolk and Waveney ICB | F11: NHS Norfolk and Waveney ICB | G11: =INDEX('ICB.Boundary Changes Q1 22.23'!E:E,MATCH(C11,'ICB.Boundary Changes Q1 22.23'!B:B,0)) -> No | H11: =INDEX('ICB.Boundary Changes Q1 22.23'!F:F,MATCH(C11,'ICB.Boundary Changes Q1 22.23'!B:B,0)) -> 0
B12: ICB | C12: QM7 | D12: Hertfordshire And West Essex STP | E12: NHS Hertfordshire and West Essex ICB | F12: NHS Hertfordshire and West Essex ICB | G12: =INDEX('ICB.Boundary Changes Q1 22.23'!E:E,MATCH(C12,'ICB.Boundary Changes Q1 22.23'!B:B,0)) -> No | H12: =INDEX('ICB.Boundary Changes Q1 22.23'!F:F,MATCH(C12,'ICB.Boundary Changes Q1 22.23'!B:B,0)) -> 0
B13: ICB | C13: QJG | D13: Suffolk And North East Essex STP | E13: NHS Suffolk and North East Essex ICB | F13: NHS Suffolk and North East Essex ICB | G13: =INDEX('ICB.Boundary Changes Q1 22.23'!E:E,MATCH(C13,'ICB.Boundary Changes Q1 22.23'!B:B,0)) -> No | H13: =INDEX('ICB.Boundary Changes Q1 22.23'!F:F,MATCH(C13,'ICB.Boundary Changes Q1 22.23'!B:B,0)) -> 0
B14: ICB | C14: QHG | D14: Bedfordshire, Luton And Milton Keynes STP | E14: NHS Bedfordshire, Luton and Milton Keynes ICB | F14: NHS Bedfordshire, Luton and Milton Keynes ICB | G14: =INDEX('ICB.Boundary Changes Q1 22.23'!E:E,MATCH(C14,'ICB.Boundary Changes Q1 22.23'!B:B,0)) -> No | H14: =INDEX('ICB.Boundary Changes Q1 22.23'!F:F,MATCH(C14,'ICB.Boundary Changes Q1 22.23'!B:B,0)) -> 0
B15: ICB | C15: QH8 | D15: Mid And South Essex STP | E15: NHS Mid and South Essex ICB | F15: NHS Mid and South Essex ICB | G15: =INDEX('ICB.Boundary Changes Q1 22.23'!E:E,MATCH(C15,'ICB.Boundary Changes Q1 22.23'!B:B,0)) -> No | H15: =INDEX('ICB.Boundary Changes Q1 22.23'!F:F,MATCH(C15,'ICB.Boundary Changes Q1 22.23'!B:B,0)) -> 0
B16: ICB | C16: QWU | D16: Coventry And Warwickshire STP | E16: NHS Coventry and Warwickshire ICB | F16: NHS Coventry and Warwickshire ICB | G16: =INDEX('ICB.Boundary Changes Q1 22.23'!E:E,MATCH(C16,'ICB.Boundary Changes Q1 22.23'!B:B,0)) -> No | H16: =INDEX('ICB.Boundary Changes Q1 22.23'!F:F,MATCH(C16,'ICB.Boundary Changes Q1 22.23'!B:B,0)) -> 0
B17: ICB | C17: QUA | D17: The Black Country And West Birmingham STP | E17: NHS Black Country ICB | F17: NHS Black Country ICB | G17: =INDEX('ICB.Boundary Changes Q1 22.23'!E:E,MATCH(C17,'ICB.Boundary Changes Q1 22.23'!B:B,0)) -> Yes | H17: =INDEX('ICB.Boundary Changes Q1 22.23'!F:F,MATCH(C17,'ICB.Boundary Changes Q1 22.23'!B:B,0)) -> -0.1520647396
B18: ICB | C18: QT1 | D18: Nottingham And Nottinghamshire Health And Care STP | E18: NHS Nottingham and Nottinghamshire ICB | F18: NHS Nottingham and Nottinghamshire ICB | G18: =INDEX('ICB.Boundary Changes Q1 22.23'!E:E,MATCH(C18,'ICB.Boundary Changes Q1 22.23'!B:B,0)) -> Yes | H18: =INDEX('ICB.Boundary Changes Q1 22.23'!F:F,MATCH(C18,'ICB.Boundary Changes Q1 22.23'!B:B,0)) -> 0.1091347546
B19: ICB | C19: QPM | D19: Northamptonshire STP | E19: NHS Northamptonshire ICB | F19: NHS Northamptonshire ICB | G19: =INDEX('ICB.Boundary Changes Q1 22.23'!E:E,MATCH(C19,'ICB.Boundary Changes Q1 22.23'!B:B,0)) -> Yes | H19: =INDEX('ICB.Boundary Changes Q1 22.23'!F:F,MATCH(C19,'ICB.Boundary Changes Q1 22.23'!B:B,0)) -> 0.01371969784
B20: ICB | C20: QOC | D20: Shropshire And Telford And Wrekin STP | E20: NHS Shropshire, Telford and Wrekin ICB | F20: NHS Shropshire, Telford and Wrekin ICB | G20: =INDEX('ICB.Boundary Changes Q1 22.23'!E:E,MATCH(C20,'ICB.Boundary Changes Q1 22.23'!B:B,0)) -> No | H20: =INDEX('ICB.Boundary Changes Q1 22.23'!F:F,MATCH(C20,'ICB.Boundary Changes Q1 22.23'!B:B,0)) -> 0
B21: ICB | C21: QNC | D21: Staffordshire And Stoke On Trent STP | E21: NHS Staffordshire and Stoke-on-Trent ICB | F21: NHS Staffordshire and Stoke-on-Trent ICB | G21: =INDEX('ICB.Boundary Changes Q1 22.23'!E:E,MATCH(C21,'ICB.Boundary Changes Q1 22.23'!B:B,0)) -> No | H21: =INDEX('ICB.Boundary Changes Q1 22.23'!F:F,MATCH(C21,'ICB.Boundary Changes Q1 22.23'!B:B,0)) -> 0
B22: ICB | C22: QK1 | D22: Leicester, Leicestershire And Rutland STP | E22: NHS Leicester, Leicestershire and Rutland ICB | F22: NHS Leicester, Leicestershire and Rutland ICB | G22: =INDEX('ICB.Boundary Changes Q1 22.23'!E:E,MATCH(C22,'ICB.Boundary Changes Q1 22.23'!B:B,0)) -> Yes | H22: =INDEX('ICB.Boundary Changes Q1 22.23'!F:F,MATCH(C22,'ICB.Boundary Changes Q1 22.23'!B:B,0)) -> 0.003190285419
B23: ICB | C23: QJM | D23: Lincolnshire STP | E23: NHS Lincolnshire ICB | F23: NHS Lincolnshire ICB | G23: =INDEX('ICB.Boundary Changes Q1 22.23'!E:E,MATCH(C23,'ICB.Boundary Changes Q1 22.23'!B:B,0)) -> Yes | H23: =INDEX('ICB.Boundary Changes Q1 22.23'!F:F,MATCH(C23,'ICB.Boundary Changes Q1 22.23'!B:B,0)) -> -0.004642353716
B24: ICB | C24: QJ2 | D24: Joined Up Care Derbyshire STP | E24: NHS Derby and Derbyshire ICB | F24: NHS Derby and Derbyshire ICB | G24: =INDEX('ICB.Boundary Changes Q1 22.23'!E:E,MATCH(C24,'ICB.Boundary Changes Q1 22.23'!B:B,0)) -> Yes | H24: =INDEX('ICB.Boundary Changes Q1 22.23'!F:F,MATCH(C24,'ICB.Boundary Changes Q1 22.23'!B:B,0)) -> 0.03085276609
B25: ICB | C25: QHL | D25: Birmingham And Solihull STP | E25: NHS Birmingham and Solihull ICB | F25: NHS Birmingham and Solihull ICB | G25: =INDEX('ICB.Boundary Changes Q1 22.23'!E:E,MATCH(C25,'ICB.Boundary Changes Q1 22.23'!B:B,0)) -> Yes | H25: =INDEX('ICB.Boundary Changes Q1 22.23'!F:F,MATCH(C25,'ICB.Boundary Changes Q1 22.23'!B:B,0)) -> 0.1695833327
B26: ICB | C26: QGH | D26: Herefordshire And Worcestershire STP | E26: NHS Herefordshire and Worcestershire ICB | F26: NHS Herefordshire and Worcestershire ICB | G26: =INDEX('ICB.Boundary Changes Q1 22.23'!E:E,MATCH(C26,'ICB.Boundary Changes Q1 22.23'!B:B,0)) -> No | H26: =INDEX('ICB.Boundary Changes Q1 22.23'!F:F,MATCH(C26,'ICB.Boundary Changes Q1 22.23'!B:B,0)) -> 0
B27: ICB | C27: QXU | D27: Surrey Heartlands Health & Care Partnership (STP) | E27: NHS Surrey Heartlands ICB | F27: NHS Surrey Heartlands ICB | G27: =INDEX('ICB.Boundary Changes Q1 22.23'!E:E,MATCH(C27,'ICB.Boundary Changes Q1 22.23'!B:B,0)) -> No | H27: =INDEX('ICB.Boundary Changes Q1 22.23'!F:F,MATCH(C27,'ICB.Boundary Changes Q1 22.23'!B:B,0)) -> 0
B28: ICB | C28: QU9 | D28: Buckinghamshire, Oxfordshire And Berkshire West STP | E28: NHS Buckinghamshire, Oxfordshire and Berkshire West ICB | F28: NHS Buckinghamshire, Oxfordshire and Berkshire West ICB | G28: =INDEX('ICB.Boundary Changes Q1 22.23'!E:E,MATCH(C28,'ICB.Boundary Changes Q1 22.23'!B:B,0)) -> No | H28: =INDEX('ICB.Boundary Changes Q1 22.23'!F:F,MATCH(C28,'ICB.Boundary Changes Q1 22.23'!B:B,0)) -> 0
B29: ICB | C29: QRL | D29: Hampshire And The Isle Of Wight STP | E29: NHS Hampshire and Isle Of Wight ICB | F29: NHS Hampshire and Isle Of Wight ICB | G29: =INDEX('ICB.Boundary Changes Q1 22.23'!E:E,MATCH(C29,'ICB.Boundary Changes Q1 22.23'!B:B,0)) -> No | H29: =INDEX('ICB.Boundary Changes Q1 22.23'!F:F,MATCH(C29,'ICB.Boundary Changes Q1 22.23'!B:B,0)) -> 0
B30: ICB | C30: QNX | D30: Sussex And East Surrey STP | E30: NHS Sussex ICB | F30: NHS Sussex ICB | G30: =INDEX('ICB.Boundary Changes Q1 22.23'!E:E,MATCH(C30,'ICB.Boundary Changes Q1 22.23'!B:B,0)) -> No | H30: =INDEX('ICB.Boundary Changes Q1 22.23'!F:F,MATCH(C30,'ICB.Boundary Changes Q1 22.23'!B:B,0)) -> 0
B31: ICB | C31: QNQ | D31: Frimley Health & Care ICS (STP) | E31: NHS Frimley ICB | F31: NHS Frimley ICB | G31: =INDEX('ICB.Boundary Changes Q1 22.23'!E:E,MATCH(C31,'ICB.Boundary Changes Q1 22.23'!B:B,0)) -> No | H31: =INDEX('ICB.Boundary Changes Q1 22.23'!F:F,MATCH(C31,'ICB.Boundary Changes Q1 22.23'!B:B,0)) -> 0
B32: ICB | C32: QKS | D32: Kent And Medway STP | E32: NHS Kent and Medway ICB | F32: NHS Kent and Medway ICB | G32: =INDEX('ICB.Boundary Changes Q1 22.23'!E:E,MATCH(C32,'ICB.Boundary Changes Q1 22.23'!B:B,0)) -> No | H32: =INDEX('ICB.Boundary Changes Q1 22.23'!F:F,MATCH(C32,'ICB.Boundary Changes Q1 22.23'!B:B,0)) -> 0
B33: ICB | C33: QVV | D33: Dorset STP | E33: NHS Dorset ICB | F33: NHS Dorset ICB | G33: =INDEX('ICB.Boundary Changes Q1 22.23'!E:E,MATCH(C33,'ICB.Boundary Changes Q1 22.23'!B:B,0)) -> No | H33: =INDEX('ICB.Boundary Changes Q1 22.23'!F:F,MATCH(C33,'ICB.Boundary Changes Q1 22.23'!B:B,0)) -> 0
B34: ICB | C34: QUY | D34: Bristol, North Somerset And South Gloucestershire STP | E34: NHS Bristol, North Somerset and South Gloucestershire ICB | F34: NHS Bristol, North Somerset and South Gloucestershire ICB | G34: =INDEX('ICB.Boundary Changes Q1 22.23'!E:E,MATCH(C34,'ICB.Boundary Changes Q1 22.23'!B:B,0)) -> No | H34: =INDEX('ICB.Boundary Changes Q1 22.23'!F:F,MATCH(C34,'ICB.Boundary Changes Q1 22.23'!B:B,0)) -> 0
B35: ICB | C35: QT6 | D35: Cornwall And The Isles Of Scilly Health & Social Care Partnership (STP) | E35: NHS Cornwall and The Isles Of Scilly ICB | F35: NHS Cornwall and The Isles Of Scilly ICB | G35: =INDEX('ICB.Boundary Changes Q1 22.23'!E:E,MATCH(C35,'ICB.Boundary Changes Q1 22.23'!B:B,0)) -> No | H35: =INDEX('ICB.Boundary Changes Q1 22.23'!F:F,MATCH(C35,'ICB.Boundary Changes Q1 22.23'!B:B,0)) -> 0
B36: ICB | C36: QSL | D36: Somerset STP | E36: NHS Somerset ICB | F36: NHS Somerset ICB | G36: =INDEX('ICB.Boundary Changes Q1 22.23'!E:E,MATCH(C36,'ICB.Boundary Changes Q1 22.23'!B:B,0)) -> No | H36: =INDEX('ICB.Boundary Changes Q1 22.23'!F:F,MATCH(C36,'ICB.Boundary Changes Q1 22.23'!B:B,0)) -> 0
B37: ICB | C37: QR1 | D37: Gloucestershire STP | E37: NHS Gloucestershire ICB | F37: NHS Gloucestershire ICB | G37: =INDEX('ICB.Boundary Changes Q1 22.23'!E:E,MATCH(C37,'ICB.Boundary Changes Q1 22.23'!B:B,0)) -> No | H37: =INDEX('ICB.Boundary Changes Q1 22.23'!F:F,MATCH(C37,'ICB.Boundary Changes Q1 22.23'!B:B,0)) -> 0
B38: ICB | C38: QOX | D38: Bath And North East Somerset, Swindon And Wiltshire STP | E38: NHS Bath and North East Somerset, Swindon and Wiltshire ICB | F38: NHS Bath and North East Somerset, Swindon and Wiltshire ICB | G38: =INDEX('ICB.Boundary Changes Q1 22.23'!E:E,MATCH(C38,'ICB.Boundary Changes Q1 22.23'!B:B,0)) -> No | H38: =INDEX('ICB.Boundary Changes Q1 22.23'!F:F,MATCH(C38,'ICB.Boundary Changes Q1 22.23'!B:B,0)) -> 0
B39: ICB | C39: QJK | D39: Devon STP | E39: NHS Devon ICB | F39: NHS Devon ICB | G39: =INDEX('ICB.Boundary Changes Q1 22.23'!E:E,MATCH(C39,'ICB.Boundary Changes Q1 22.23'!B:B,0)) -> No | H39: =INDEX('ICB.Boundary Changes Q1 22.23'!F:F,MATCH(C39,'ICB.Boundary Changes Q1 22.23'!B:B,0)) -> 0
B40: ICB | C40: QWE | D40: South West London Health & Care Partnership (STP) | E40: NHS South West London ICB | F40: NHS South West London ICB | G40: =INDEX('ICB.Boundary Changes Q1 22.23'!E:E,MATCH(C40,'ICB.Boundary Changes Q1 22.23'!B:B,0)) -> No | H40: =INDEX('ICB.Boundary Changes Q1 22.23'!F:F,MATCH(C40,'ICB.Boundary Changes Q1 22.23'!B:B,0)) -> 0
B41: ICB | C41: QRV | D41: North West London Health & Care Partnership (STP) | E41: NHS North West London ICB | F41: NHS North West London ICB | G41: =INDEX('ICB.Boundary Changes Q1 22.23'!E:E,MATCH(C41,'ICB.Boundary Changes Q1 22.23'!B:B,0)) -> No | H41: =INDEX('ICB.Boundary Changes Q1 22.23'!F:F,MATCH(C41,'ICB.Boundary Changes Q1 22.23'!B:B,0)) -> 0
B42: ICB | C42: QMJ | D42: North London Partners In Health & Care (STP) | E42: NHS North Central London ICB | F42: NHS North Central London ICB | G42: =INDEX('ICB.Boundary Changes Q1 22.23'!E:E,MATCH(C42,'ICB.Boundary Changes Q1 22.23'!B:B,0)) -> No | H42: =INDEX('ICB.Boundary Changes Q1 22.23'!F:F,MATCH(C42,'ICB.Boundary Changes Q1 22.23'!B:B,0)) -> 0
B43: ICB | C43: QMF | D43: East London Health & Care Partnership (STP) | E43: NHS North East London ICB | F43: NHS North East London ICB | G43: =INDEX('ICB.Boundary Changes Q1 22.23'!E:E,MATCH(C43,'ICB.Boundary Changes Q1 22.23'!B:B,0)) -> No | H43: =INDEX('ICB.Boundary Changes Q1 22.23'!F:F,MATCH(C43,'ICB.Boundary Changes Q1 22.23'!B:B,0)) -> 0
B44: ICB | C44: QKK | D44: Our Healthier South East London STP | E44: NHS South East London ICB | F44: NHS South East London ICB | G44: =INDEX('ICB.Boundary Changes Q1 22.23'!E:E,MATCH(C44,'ICB.Boundary Changes Q1 22.23'!B:B,0)) -> No | H44: =INDEX('ICB.Boundary Changes Q1 22.23'!F:F,MATCH(C44,'ICB.Boundary Changes Q1 22.23'!B:B,0)) -> 0
B45: Sub-ICB | C45: X2C4Y | D45: NHS Kirklees CCG | E45: NHS West Yorkshire ICB - X2C4Y Kirklees | F45: NHS KIRKLEES (SUB ICB LOCATION) | G45: =INDEX('ICB.Boundary Changes Q1 22.23'!E:E,MATCH(C45,'ICB.Boundary Changes Q1 22.23'!B:B,0)) -> No | H45: =INDEX('ICB.Boundary Changes Q1 22.23'!F:F,MATCH(C45,'ICB.Boundary Changes Q1 22.23'!B:B,0)) -> 0
B46: Sub-ICB | C46: 36J | D46: NHS Bradford District and Craven CCG | E46: NHS West Yorkshire ICB - 36J Bradford District and Craven | F46: NHS BRADFORD DISTRICT AND CRAVEN (SUB ICB LOCATION) | G46: =INDEX('ICB.Boundary Changes Q1 22.23'!E:E,MATCH(C46,'ICB.Boundary Changes Q1 22.23'!B:B,0)) -> No | H46: =INDEX('ICB.Boundary Changes Q1 22.23'!F:F,MATCH(C46,'ICB.Boundary Changes Q1 22.23'!B:B,0)) -> 0
B47: Sub-ICB | C47: 15F | D47: NHS Leeds CCG | E47: NHS West Yorkshire ICB - 15F Leeds | F47: NHS LEEDS (SUB ICB LOCATION) | G47: =INDEX('ICB.Boundary Changes Q1 22.23'!E:E,MATCH(C47,'ICB.Boundary Changes Q1 22.23'!B:B,0)) -> No | H47: =INDEX('ICB.Boundary Changes Q1 22.23'!F:F,MATCH(C47,'ICB.Boundary Changes Q1 22.23'!B:B,0)) -> 0
B48: Sub-ICB | C48: 03R | D48: NHS Wakefield CCG | E48: NHS West Yorkshire ICB - 03R Wakefield | F48: NHS WAKEFIELD (SUB ICB LOCATION) | G48: =INDEX('ICB.Boundary Changes Q1 22.23'!E:E,MATCH(C48,'ICB.Boundary Changes Q1 22.23'!B:B,0)) -> No | H48: =INDEX('ICB.Boundary Changes Q1 22.23'!F:F,MATCH(C48,'ICB.Boundary Changes Q1 22.23'!B:B,0)) -> 0
B49: Sub-ICB | C49: 02T | D49: NHS Calderdale CCG | E49: NHS West Yorkshire ICB - 02T Calderdale | F49: NHS CALDERDALE (SUB ICB LOCATION) | G49: =INDEX('ICB.Boundary Changes Q1 22.23'!E:E,MATCH(C49,'ICB.Boundary Changes Q1 22.23'!B:B,0)) -> No | H49: =INDEX('ICB.Boundary Changes Q1 22.23'!F:F,MATCH(C49,'ICB.Boundary Changes Q1 22.23'!B:B,0)) -> 0
B50: Sub-ICB | C50: 42D | D50: NHS North Yorkshire CCG | E50: NHS Humber and North Yorkshire ICB - 42D North Yorkshire | F50: NHS NORTH YORKSHIRE (SUB ICB LOCATION) | G50: =INDEX('ICB.Boundary Changes Q1 22.23'!E:E,MATCH(C50,'ICB.Boundary Changes Q1 22.23'!B:B,0)) -> No | H50: =INDEX('ICB.Boundary Changes Q1 22.23'!F:F,MATCH(C50,'ICB.Boundary Changes Q1 22.23'!B:B,0)) -> 0
B51: Sub-ICB | C51: 03Q | D51: NHS Vale of York CCG | E51: NHS Humber and North Yorkshire ICB - 03Q Vale of York | F51: NHS VALE OF YORK (SUB ICB LOCATION) | G51: =INDEX('ICB.Boundary Changes Q1 22.23'!E:E,MATCH(C51,'ICB.Boundary Changes Q1 22.23'!B:B,0)) -> No | H51: =INDEX('ICB.Boundary Changes Q1 22.23'!F:F,MATCH(C51,'ICB.Boundary Changes Q1 22.23'!B:B,0)) -> 0
B52: Sub-ICB | C52: 03K | D52: NHS North Lincolnshire CCG | E52: NHS Humber and North Yorkshire ICB - 03K North Lincolnshire | F52: NHS NORTH LINCOLNSHIRE (SUB ICB LOCATION) | G52: =INDEX('ICB.Boundary Changes Q1 22.23'!E:E,MATCH(C52,'ICB.Boundary Changes Q1 22.23'!B:B,0)) -> No | H52: =INDEX('ICB.Boundary Changes Q1 22.23'!F:F,MATCH(C52,'ICB.Boundary Changes Q1 22.23'!B:B,0)) -> 0
B53: Sub-ICB | C53: 03H | D53: NHS North East Lincolnshire CCG | E53: NHS Humber and North Yorkshire ICB - 03H North East Lincolnshire | F53: NHS NORTH EAST LINCOLNSHIRE (SUB ICB LOCATION) | G53: =INDEX('ICB.Boundary Changes Q1 22.23'!E:E,MATCH(C53,'ICB.Boundary Changes Q1 22.23'!B:B,0)) -> No | H53: =INDEX('ICB.Boundary Changes Q1 22.23'!F:F,MATCH(C53,'ICB.Boundary Changes Q1 22.23'!B:B,0)) -> 0
B54: Sub-ICB | C54: 03F | D54: NHS Hull CCG | E54: NHS Humber and North Yorkshire ICB - 03F Hull | F54: NHS HULL (SUB ICB LOCATION) | G54: =INDEX('ICB.Boundary Changes Q1 22.23'!E:E,MATCH(C54,'ICB.Boundary Changes Q1 22.23'!B:B,0)) -> No | H54: =INDEX('ICB.Boundary Changes Q1 22.23'!F:F,MATCH(C54,'ICB.Boundary Changes Q1 22.23'!B:B,0)) -> 0
B55: Sub-ICB | C55: 02Y | D55: NHS East Riding of Yorkshire CCG | E55: NHS Humber and North Yorkshire ICB - 02Y East Riding of Yorkshire | F55: NHS EAST RIDING OF YORKSHIRE (SUB ICB LOCATION) | G55: =INDEX('ICB.Boundary Changes Q1 22.23'!E:E,MATCH(C55,'ICB.Boundary Changes Q1 22.23'!B:B,0)) -> No | H55: =INDEX('ICB.Boundary Changes Q1 22.23'!F:F,MATCH(C55,'ICB.Boundary Changes Q1 22.23'!B:B,0)) -> 0
B56: Sub-ICB | C56: 99C | D56: NHS North Tyneside CCG | E56: NHS North East and North Cumbria ICB - 99C North Tyneside | F56: NHS NORTH TYNESIDE (SUB ICB LOCATION) | G56: =INDEX('ICB.Boundary Changes Q1 22.23'!E:E,MATCH(C56,'ICB.Boundary Changes Q1 22.23'!B:B,0)) -> No | H56: =INDEX('ICB.Boundary Changes Q1 22.23'!F:F,MATCH(C56,'ICB.Boundary Changes Q1 22.23'!B:B,0)) -> 0
B57: Sub-ICB | C57: 84H | D57: NHS County Durham CCG | E57: NHS North East and North Cumbria ICB - 84H County Durham | F57: NHS COUNTY DURHAM (SUB ICB LOCATION) | G57: =INDEX('ICB.Boundary Changes Q1 22.23'!E:E,MATCH(C57,'ICB.Boundary Changes Q1 22.23'!B:B,0)) -> No | H57: =INDEX('ICB.Boundary Changes Q1 22.23'!F:F,MATCH(C57,'ICB.Boundary Changes Q1 22.23'!B:B,0)) -> 0
B58: Sub-ICB | C58: 16C | D58: NHS Tees Valley CCG | E58: NHS North East and North Cumbria ICB - 16C Tees Valley | F58: NHS TEES VALLEY (SUB ICB LOCATION) | G58: =INDEX('ICB.Boundary Changes Q1 22.23'!E:E,MATCH(C58,'ICB.Boundary Changes Q1 22.23'!B:B,0)) -> No | H58: =INDEX('ICB.Boundary Changes Q1 22.23'!F:F,MATCH(C58,'ICB.Boundary Changes Q1 22.23'!B:B,0)) -> 0
B59: Sub-ICB | C59: 13T | D59: NHS Newcastle Gateshead CCG | E59: NHS North East and North Cumbria ICB - 13T Newcastle Gateshead | F59: NHS NEWCASTLE GATESHEAD (SUB ICB LOCATION) | G59: =INDEX('ICB.Boundary Changes Q1 22.23'!E:E,MATCH(C59,'ICB.Boundary Changes Q1 22.23'!B:B,0)) -> No | H59: =INDEX('ICB.Boundary Changes Q1 22.23'!F:F,MATCH(C59,'ICB.Boundary Changes Q1 22.23'!B:B,0)) -> 0
B60: Sub-ICB | C60: 01H | D60: NHS North Cumbria CCG | E60: NHS North East and North Cumbria ICB - 01H North Cumbria | F60: NHS NORTH CUMBRIA (SUB ICB LOCATION) | G60: =INDEX('ICB.Boundary Changes Q1 22.23'!E:E,MATCH(C60,'ICB.Boundary Changes Q1 22.23'!B:B,0)) -> No | H60: =INDEX('ICB.Boundary Changes Q1 22.23'!F:F,MATCH(C60,'ICB.Boundary Changes Q1 22.23'!B:B,0)) -> 0
B61: Sub-ICB | C61: 00P | D61: NHS Sunderland CCG | E61: NHS North East and North Cumbria ICB - 00P Sunderland | F61: NHS SUNDERLAND (SUB ICB LOCATION) | G61: =INDEX('ICB.Boundary Changes Q1 22.23'!E:E,MATCH(C61,'ICB.Boundary Changes Q1 22.23'!B:B,0)) -> No | H61: =INDEX('ICB.Boundary Changes Q1 22.23'!F:F,MATCH(C61,'ICB.Boundary Changes Q1 22.23'!B:B,0)) -> 0
B62: Sub-ICB | C62: 00N | D62: NHS South Tyneside CCG | E62: NHS North East and North Cumbria ICB - 00N South Tyneside | F62: NHS SOUTH TYNESIDE (SUB ICB LOCATION) | G62: =INDEX('ICB.Boundary Changes Q1 22.23'!E:E,MATCH(C62,'ICB.Boundary Changes Q1 22.23'!B:B,0)) -> No | H62: =INDEX('ICB.Boundary Changes Q1 22.23'!F:F,MATCH(C62,'ICB.Boundary Changes Q1 22.23'!B:B,0)) -> 0
B63: Sub-ICB | C63: 00L | D63: NHS Northumberland CCG | E63: NHS North East and North Cumbria ICB - 00L Northumberland | F63: NHS NORTHUMBERLAND (SUB ICB LOCATION) | G63: =INDEX('ICB.Boundary Changes Q1 22.23'!E:E,MATCH(C63,'ICB.Boundary Changes Q1 22.23'!B:B,0)) -> No | H63: =INDEX('ICB.Boundary Changes Q1 22.23'!F:F,MATCH(C63,'ICB.Boundary Changes Q1 22.23'!B:B,0)) -> 0
B64: Sub-ICB | C64: 03N | D64: NHS Sheffield CCG | E64: NHS South Yorkshire ICB - 03N Sheffield | F64: NHS SHEFFIELD (SUB ICB LOCATION) | G64: =INDEX('ICB.Boundary Changes Q1 22.23'!E:E,MATCH(C64,'ICB.Boundary Changes Q1 22.23'!B:B,0)) -> No | H64: =INDEX('ICB.Boundary Changes Q1 22.23'!F:F,MATCH(C64,'ICB.Boundary Changes Q1 22.23'!B:B,0)) -> 0
B65: Sub-ICB | C65: 03L | D65: NHS Rotherham CCG | E65: NHS South Yorkshire ICB - 03L Rotherham | F65: NHS ROTHERHAM (SUB ICB LOCATION) | G65: =INDEX('ICB.Boundary Changes Q1 22.23'!E:E,MATCH(C65,'ICB.Boundary Changes Q1 22.23'!B:B,0)) -> No | H65: =INDEX('ICB.Boundary Changes Q1 22.23'!F:F,MATCH(C65,'ICB.Boundary Changes Q1 22.23'!B:B,0)) -> 0
B66: Sub-ICB | C66: 02X | D66: NHS Doncaster CCG | E66: NHS South Yorkshire ICB - 02X Doncaster | F66: NHS DONCASTER (SUB ICB LOCATION) | G66: =INDEX('ICB.Boundary Changes Q1 22.23'!E:E,MATCH(C66,'ICB.Boundary Changes Q1 22.23'!B:B,0)) -> No | H66: =INDEX('ICB.Boundary Changes Q1 22.23'!F:F,MATCH(C66,'ICB.Boundary Changes Q1 22.23'!B:B,0)) -> 0
B67: Sub-ICB | C67: 02P | D67: NHS Barnsley CCG | E67: NHS South Yorkshire ICB - 02P Barnsley | F67: NHS BARNSLEY (SUB ICB LOCATION) | G67: =INDEX('ICB.Boundary Changes Q1 22.23'!E:E,MATCH(C67,'ICB.Boundary Changes Q1 22.23'!B:B,0)) -> No | H67: =INDEX('ICB.Boundary Changes Q1 22.23'!F:F,MATCH(C67,'ICB.Boundary Changes Q1 22.23'!B:B,0)) -> 0
B68: Sub-ICB | C68: 99A | D68: NHS Liverpool CCG | E68: NHS Cheshire and Merseyside ICB - 99A Liverpool | F68: NHS LIVERPOOL (SUB ICB LOCATION) | G68: =INDEX('ICB.Boundary Changes Q1 22.23'!E:E,MATCH(C68,'ICB.Boundary Changes Q1 22.23'!B:B,0)) -> No | H68: =INDEX('ICB.Boundary Changes Q1 22.23'!F:F,MATCH(C68,'ICB.Boundary Changes Q1 22.23'!B:B,0)) -> 0
B69: Sub-ICB | C69: 27D | D69: NHS Cheshire CCG | E69: NHS Cheshire and Merseyside ICB - 27D Cheshire | F69: NHS CHESHIRE (SUB ICB LOCATION) | G69: =INDEX('ICB.Boundary Changes Q1 22.23'!E:E,MATCH(C69,'ICB.Boundary Changes Q1 22.23'!B:B,0)) -> No | H69: =INDEX('ICB.Boundary Changes Q1 22.23'!F:F,MATCH(C69,'ICB.Boundary Changes Q1 22.23'!B:B,0)) -> 0
B70: Sub-ICB | C70: 12F | D70: NHS Wirral CCG | E70: NHS Cheshire and Merseyside ICB - 12F Wirral | F70: NHS WIRRAL (SUB ICB LOCATION) | G70: =INDEX('ICB.Boundary Changes Q1 22.23'!E:E,MATCH(C70,'ICB.Boundary Changes Q1 22.23'!B:B,0)) -> No | H70: =INDEX('ICB.Boundary Changes Q1 22.23'!F:F,MATCH(C70,'ICB.Boundary Changes Q1 22.23'!B:B,0)) -> 0
B71: Sub-ICB | C71: 02E | D71: NHS Warrington CCG | E71: NHS Cheshire and Merseyside ICB - 02E Warrington | F71: NHS WARRINGTON (SUB ICB LOCATION) | G71: =INDEX('ICB.Boundary Changes Q1 22.23'!E:E,MATCH(C71,'ICB.Boundary Changes Q1 22.23'!B:B,0)) -> No | H71: =INDEX('ICB.Boundary Changes Q1 22.23'!F:F,MATCH(C71,'ICB.Boundary Changes Q1 22.23'!B:B,0)) -> 0
B72: Sub-ICB | C72: 01X | D72: NHS St Helens CCG | E72: NHS Cheshire and Merseyside ICB - 01X St Helens | F72: NHS ST HELENS (SUB ICB LOCATION) | G72: =INDEX('ICB.Boundary Changes Q1 22.23'!E:E,MATCH(C72,'ICB.Boundary Changes Q1 22.23'!B:B,0)) -> No | H72: =INDEX('ICB.Boundary Changes Q1 22.23'!F:F,MATCH(C72,'ICB.Boundary Changes Q1 22.23'!B:B,0)) -> 0
B73: Sub-ICB | C73: 01V | D73: NHS Southport and Formby CCG | E73: NHS Cheshire and Merseyside ICB - 01V Southport and Formby | F73: NHS SOUTHPORT AND FORMBY (SUB ICB LOCATION) | G73: =INDEX('ICB.Boundary Changes Q1 22.23'!E:E,MATCH(C73,'ICB.Boundary Changes Q1 22.23'!B:B,0)) -> No | H73: =INDEX('ICB.Boundary Changes Q1 22.23'!F:F,MATCH(C73,'ICB.Boundary Changes Q1 22.23'!B:B,0)) -> 0
B74: Sub-ICB | C74: 01T | D74: NHS South Sefton CCG | E74: NHS Cheshire and Merseyside ICB - 01T South Sefton | F74: NHS SOUTH SEFTON (SUB ICB LOCATION) | G74: =INDEX('ICB.Boundary Changes Q1 22.23'!E:E,MATCH(C74,'ICB.Boundary Changes Q1 22.23'!B:B,0)) -> No | H74: =INDEX('ICB.Boundary Changes Q1 22.23'!F:F,MATCH(C74,'ICB.Boundary Changes Q1 22.23'!B:B,0)) -> 0
B75: Sub-ICB | C75: 01J | D75: NHS Knowsley CCG | E75: NHS Cheshire and Merseyside ICB - 01J Knowsley | F75: NHS KNOWSLEY (SUB ICB LOCATION) | G75: =INDEX('ICB.Boundary Changes Q1 22.23'!E:E,MATCH(C75,'ICB.Boundary Changes Q1 22.23'!B:B,0)) -> No | H75: =INDEX('ICB.Boundary Changes Q1 22.23'!F:F,MATCH(C75,'ICB.Boundary Changes Q1 22.23'!B:B,0)) -> 0
B76: Sub-ICB | C76: 01F | D76: NHS Halton CCG | E76: NHS Cheshire and Merseyside ICB - 01F Halton | F76: NHS HALTON (SUB ICB LOCATION) | G76: =INDEX('ICB.Boundary Changes Q1 22.23'!E:E,MATCH(C76,'ICB.Boundary Changes Q1 22.23'!B:B,0)) -> No | H76: =INDEX('ICB.Boundary Changes Q1 22.23'!F:F,MATCH(C76,'ICB.Boundary Changes Q1 22.23'!B:B,0)) -> 0
B77: Sub-ICB | C77: 14L | D77: NHS Manchester CCG | E77: NHS Greater Manchester ICB - 14L Manchester | F77: NHS MANCHESTER (SUB ICB LOCATION) | G77: =INDEX('ICB.Boundary Changes Q1 22.23'!E:E,MATCH(C77,'ICB.Boundary Changes Q1 22.23'!B:B,0)) -> No | H77: =INDEX('ICB.Boundary Changes Q1 22.23'!F:F,MATCH(C77,'ICB.Boundary Changes Q1 22.23'!B:B,0)) -> 0
B78: Sub-ICB | C78: 02H | D78: NHS Wigan Borough CCG | E78: NHS Greater Manchester ICB - 02H Wigan Borough | F78: NHS WIGAN BOROUGH (SUB ICB LOCATION) | G78: =INDEX('ICB.Boundary Changes Q1 22.23'!E:E,MATCH(C78,'ICB.Boundary Changes Q1 22.23'!B:B,0)) -> No | H78: =INDEX('ICB.Boundary Changes Q1 22.23'!F:F,MATCH(C78,'ICB.Boundary Changes Q1 22.23'!B:B,0)) -> 0
B79: Sub-ICB | C79: 02A | D79: NHS Trafford CCG | E79: NHS Greater Manchester ICB - 02A Trafford | F79: NHS TRAFFORD (SUB ICB LOCATION) | G79: =INDEX('ICB.Boundary Changes Q1 22.23'!E:E,MATCH(C79,'ICB.Boundary Changes Q1 22.23'!B:B,0)) -> No | H79: =INDEX('ICB.Boundary Changes Q1 22.23'!F:F,MATCH(C79,'ICB.Boundary Changes Q1 22.23'!B:B,0)) -> 0
B80: Sub-ICB | C80: 01Y | D80: NHS Tameside and Glossop CCG | E80: NHS Greater Manchester ICB - 01Y Tameside and Glossop | F80: NHS TAMESIDE (SUB ICB LOCATION) | G80: =INDEX('ICB.Boundary Changes Q1 22.23'!E:E,MATCH(C80,'ICB.Boundary Changes Q1 22.23'!B:B,0)) -> Yes | H80: =INDEX('ICB.Boundary Changes Q1 22.23'!F:F,MATCH(C80,'ICB.Boundary Changes Q1 22.23'!B:B,0)) -> -0.1309406499
B81: Sub-ICB | C81: 01W | D81: NHS Stockport CCG | E81: NHS Greater Manchester ICB - 01W Stockport | F81: NHS STOCKPORT (SUB ICB LOCATION) | G81: =INDEX('ICB.Boundary Changes Q1 22.23'!E:E,MATCH(C81,'ICB.Boundary Changes Q1 22.23'!B:B,0)) -> No | H81: =INDEX('ICB.Boundary Changes Q1 22.23'!F:F,MATCH(C81,'ICB.Boundary Changes Q1 22.23'!B:B,0)) -> 0
B82: Sub-ICB | C82: 01G | D82: NHS Salford CCG | E82: NHS Greater Manchester ICB - 01G Salford | F82: NHS SALFORD (SUB ICB LOCATION) | G82: =INDEX('ICB.Boundary Changes Q1 22.23'!E:E,MATCH(C82,'ICB.Boundary Changes Q1 22.23'!B:B,0)) -> No | H82: =INDEX('ICB.Boundary Changes Q1 22.23'!F:F,MATCH(C82,'ICB.Boundary Changes Q1 22.23'!B:B,0)) -> 0
B83: Sub-ICB | C83: 01D | D83: NHS Heywood, Middleton and Rochdale CCG | E83: NHS Greater Manchester ICB - 01D Heywood, Middleton and Rochdale | F83: NHS HEYWOOD, MIDDLETON AND ROCHDALE (SUB ICB LOCATION) | G83: =INDEX('ICB.Boundary Changes Q1 22.23'!E:E,MATCH(C83,'ICB.Boundary Changes Q1 22.23'!B:B,0)) -> No | H83: =INDEX('ICB.Boundary Changes Q1 22.23'!F:F,MATCH(C83,'ICB.Boundary Changes Q1 22.23'!B:B,0)) -> 0
B84: Sub-ICB | C84: 00Y | D84: NHS Oldham CCG | E84: NHS Greater Manchester ICB - 00Y Oldham | F84: NHS OLDHAM (SUB ICB LOCATION) | G84: =INDEX('ICB.Boundary Changes Q1 22.23'!E:E,MATCH(C84,'ICB.Boundary Changes Q1 22.23'!B:B,0)) -> No | H84: =INDEX('ICB.Boundary Changes Q1 22.23'!F:F,MATCH(C84,'ICB.Boundary Changes Q1 22.23'!B:B,0)) -> 0
B85: Sub-ICB | C85: 00V | D85: NHS Bury CCG | E85: NHS Greater Manchester ICB - 00V Bury | F85: NHS BURY (SUB ICB LOCATION) | G85: =INDEX('ICB.Boundary Changes Q1 22.23'!E:E,MATCH(C85,'ICB.Boundary Changes Q1 22.23'!B:B,0)) -> No | H85: =INDEX('ICB.Boundary Changes Q1 22.23'!F:F,MATCH(C85,'ICB.Boundary Changes Q1 22.23'!B:B,0)) -> 0
B86: Sub-ICB | C86: 00T | D86: NHS Bolton CCG | E86: NHS Greater Manchester ICB - 00T Bolton | F86: NHS BOLTON (SUB ICB LOCATION) | G86: =INDEX('ICB.Boundary Changes Q1 22.23'!E:E,MATCH(C86,'ICB.Boundary Changes Q1 22.23'!B:B,0)) -> No | H86: =INDEX('ICB.Boundary Changes Q1 22.23'!F:F,MATCH(C86,'ICB.Boundary Changes Q1 22.23'!B:B,0)) -> 0
B87: Sub-ICB | C87: 02M | D87: NHS Fylde and Wyre CCG | E87: NHS Lancashire and South Cumbria ICB - 02M Fylde and Wyre | F87: NHS FYLDE AND WYRE (SUB ICB LOCATION) | G87: =INDEX('ICB.Boundary Changes Q1 22.23'!E:E,MATCH(C87,'ICB.Boundary Changes Q1 22.23'!B:B,0)) -> No | H87: =INDEX('ICB.Boundary Changes Q1 22.23'!F:F,MATCH(C87,'ICB.Boundary Changes Q1 22.23'!B:B,0)) -> 0
B88: Sub-ICB | C88: 02G | D88: NHS West Lancashire CCG | E88: NHS Lancashire and South Cumbria ICB - 02G West Lancashire | F88: NHS WEST LANCASHIRE (SUB ICB LOCATION) | G88: =INDEX('ICB.Boundary Changes Q1 22.23'!E:E,MATCH(C88,'ICB.Boundary Changes Q1 22.23'!B:B,0)) -> No | H88: =INDEX('ICB.Boundary Changes Q1 22.23'!F:F,MATCH(C88,'ICB.Boundary Changes Q1 22.23'!B:B,0)) -> 0
B89: Sub-ICB | C89: 01K | D89: NHS Morecambe Bay CCG | E89: NHS Lancashire and South Cumbria ICB - 01K Morecambe Bay | F89: NHS MORECAMBE BAY (SUB ICB LOCATION) | G89: =INDEX('ICB.Boundary Changes Q1 22.23'!E:E,MATCH(C89,'ICB.Boundary Changes Q1 22.23'!B:B,0)) -> No | H89: =INDEX('ICB.Boundary Changes Q1 22.23'!F:F,MATCH(C89,'ICB.Boundary Changes Q1 22.23'!B:B,0)) -> 0
B90: Sub-ICB | C90: 01E | D90: NHS Greater Preston CCG | E90: NHS Lancashire and South Cumbria ICB - 01E Greater Preston | F90: NHS GREATER PRESTON (SUB ICB LOCATION) | G90: =INDEX('ICB.Boundary Changes Q1 22.23'!E:E,MATCH(C90,'ICB.Boundary Changes Q1 22.23'!B:B,0)) -> No | H90: =INDEX('ICB.Boundary Changes Q1 22.23'!F:F,MATCH(C90,'ICB.Boundary Changes Q1 22.23'!B:B,0)) -> 0
B91: Sub-ICB | C91: 01A | D91: NHS East Lancashire CCG | E91: NHS Lancashire and South Cumbria ICB - 01A East Lancashire | F91: NHS EAST LANCASHIRE (SUB ICB LOCATION) | G91: =INDEX('ICB.Boundary Changes Q1 22.23'!E:E,MATCH(C91,'ICB.Boundary Changes Q1 22.23'!B:B,0)) -> No | H91: =INDEX('ICB.Boundary Changes Q1 22.23'!F:F,MATCH(C91,'ICB.Boundary Changes Q1 22.23'!B:B,0)) -> 0
B92: Sub-ICB | C92: 00X | D92: NHS Chorley and South Ribble CCG | E92: NHS Lancashire and South Cumbria ICB - 00X Chorley and South Ribble | F92: NHS CHORLEY AND SOUTH RIBBLE (SUB ICB LOCATION) | G92: =INDEX('ICB.Boundary Changes Q1 22.23'!E:E,MATCH(C92,'ICB.Boundary Changes Q1 22.23'!B:B,0)) -> No | H92: =INDEX('ICB.Boundary Changes Q1 22.23'!F:F,MATCH(C92,'ICB.Boundary Changes Q1 22.23'!B:B,0)) -> 0
B93: Sub-ICB | C93: 00R | D93: NHS Blackpool CCG | E93: NHS Lancashire and South Cumbria ICB - 00R Blackpool | F93: NHS BLACKPOOL (SUB ICB LOCATION) | G93: =INDEX('ICB.Boundary Changes Q1 22.23'!E:E,MATCH(C93,'ICB.Boundary Changes Q1 22.23'!B:B,0)) -> No | H93: =INDEX('ICB.Boundary Changes Q1 22.23'!F:F,MATCH(C93,'ICB.Boundary Changes Q1 22.23'!B:B,0)) -> 0
B94: Sub-ICB | C94: 00Q | D94: NHS Blackburn with Darwen CCG | E94: NHS Lancashire and South Cumbria ICB - 00Q Blackburn With Darwen | F94: NHS BLACKBURN WITH DARWEN (SUB ICB LOCATION) | G94: =INDEX('ICB.Boundary Changes Q1 22.23'!E:E,MATCH(C94,'ICB.Boundary Changes Q1 22.23'!B:B,0)) -> No | H94: =INDEX('ICB.Boundary Changes Q1 22.23'!F:F,MATCH(C94,'ICB.Boundary Changes Q1 22.23'!B:B,0)) -> 0
B95: Sub-ICB | C95: 06H | D95: NHS Cambridgeshire and Peterborough CCG | E95: NHS Cambridgeshire and Peterborough ICB - 06H | F95: NHS CAMBRIDGESHIRE AND PETERBOROUGH (SUB ICB LOCATION) | G95: =INDEX('ICB.Boundary Changes Q1 22.23'!E:E,MATCH(C95,'ICB.Boundary Changes Q1 22.23'!B:B,0)) -> Yes | H95: =INDEX('ICB.Boundary Changes Q1 22.23'!F:F,MATCH(C95,'ICB.Boundary Changes Q1 22.23'!B:B,0)) -> -0.01076384067
B96: Sub-ICB | C96: 26A | D96: NHS Norfolk and Waveney CCG | E96: NHS Norfolk and Waveney ICB - 26A | F96: NHS NORFOLK AND WAVENEY (SUB ICB LOCATION) | G96: =INDEX('ICB.Boundary Changes Q1 22.23'!E:E,MATCH(C96,'ICB.Boundary Changes Q1 22.23'!B:B,0)) -> No | H96: =INDEX('ICB.Boundary Changes Q1 22.23'!F:F,MATCH(C96,'ICB.Boundary Changes Q1 22.23'!B:B,0)) -> 0
B97: Sub-ICB | C97: 07H | D97: NHS West Essex CCG | E97: NHS Hertfordshire and West Essex ICB - 07H West Essex | F97: NHS WEST ESSEX (SUB ICB LOCATION) | G97: =INDEX('ICB.Boundary Changes Q1 22.23'!E:E,MATCH(C97,'ICB.Boundary Changes Q1 22.23'!B:B,0)) -> No | H97: =INDEX('ICB.Boundary Changes Q1 22.23'!F:F,MATCH(C97,'ICB.Boundary Changes Q1 22.23'!B:B,0)) -> 0
B98: Sub-ICB | C98: 06N | D98: NHS Herts Valley CCG | E98: NHS Hertfordshire and West Essex ICB - 06N Herts Valleys | F98: NHS HERTS VALLEYS (SUB ICB LOCATION) | G98: =INDEX('ICB.Boundary Changes Q1 22.23'!E:E,MATCH(C98,'ICB.Boundary Changes Q1 22.23'!B:B,0)) -> No | H98: =INDEX('ICB.Boundary Changes Q1 22.23'!F:F,MATCH(C98,'ICB.Boundary Changes Q1 22.23'!B:B,0)) -> 0
B99: Sub-ICB | C99: 06K | D99: NHS East and North Hertfordshire CCG | E99: NHS Hertfordshire and West Essex ICB - 06K East and North Hertfordshire | F99: NHS EAST AND NORTH HERTFORDSHIRE (SUB ICB LOCATION) | G99: =INDEX('ICB.Boundary Changes Q1 22.23'!E:E,MATCH(C99,'ICB.Boundary Changes Q1 22.23'!B:B,0)) -> No | H99: =INDEX('ICB.Boundary Changes Q1 22.23'!F:F,MATCH(C99,'ICB.Boundary Changes Q1 22.23'!B:B,0)) -> 0
B100: Sub-ICB | C100: 07K | D100: NHS West Suffolk CCG | E100: NHS Suffolk and North East Essex ICB - 07K West Suffolk | F100: NHS WEST SUFFOLK (SUB ICB LOCATION) | G100: =INDEX('ICB.Boundary Changes Q1 22.23'!E:E,MATCH(C100,'ICB.Boundary Changes Q1 22.23'!B:B,0)) -> No | H100: =INDEX('ICB.Boundary Changes Q1 22.23'!F:F,MATCH(C100,'ICB.Boundary Changes Q1 22.23'!B:B,0)) -> 0
B101: Sub-ICB | C101: 06T | D101: NHS North East Essex CCG | E101: NHS Suffolk and North East Essex ICB - 06T North East Essex | F101: NHS NORTH EAST ESSEX (SUB ICB LOCATION) | G101: =INDEX('ICB.Boundary Changes Q1 22.23'!E:E,MATCH(C101,'ICB.Boundary Changes Q1 22.23'!B:B,0)) -> No | H101: =INDEX('ICB.Boundary Changes Q1 22.23'!F:F,MATCH(C101,'ICB.Boundary Changes Q1 22.23'!B:B,0)) -> 0
B102: Sub-ICB | C102: 06L | D102: NHS Ipswich and East Suffolk CCG | E102: NHS Suffolk and North East Essex ICB - 06L Ipswich and East Suffolk | F102: NHS IPSWICH AND EAST SUFFOLK (SUB ICB LOCATION) | G102: =INDEX('ICB.Boundary Changes Q1 22.23'!E:E,MATCH(C102,'ICB.Boundary Changes Q1 22.23'!B:B,0)) -> No | H102: =INDEX('ICB.Boundary Changes Q1 22.23'!F:F,MATCH(C102,'ICB.Boundary Changes Q1 22.23'!B:B,0)) -> 0
B103: Sub-ICB | C103: M1J4Y | D103: NHS Bedfordshire, Luton and Milton Keynes CCG | E103: NHS Bedfordshire, Luton and Milton Keynes ICB - M1J4Y | F103: NHS BEDFORDSHIRE, LUTON AND MILTON KEYNES (SUB ICB LOCATION) | G103: =INDEX('ICB.Boundary Changes Q1 22.23'!E:E,MATCH(C103,'ICB.Boundary Changes Q1 22.23'!B:B,0)) -> No | H103: =INDEX('ICB.Boundary Changes Q1 22.23'!F:F,MATCH(C103,'ICB.Boundary Changes Q1 22.23'!B:B,0)) -> 0
B104: Sub-ICB | C104: 99G | D104: NHS Southend CCG | E104: NHS Mid and South Essex ICB - 99G Southend | F104: NHS SOUTHEND (SUB ICB LOCATION) | G104: =INDEX('ICB.Boundary Changes Q1 22.23'!E:E,MATCH(C104,'ICB.Boundary Changes Q1 22.23'!B:B,0)) -> No | H104: =INDEX('ICB.Boundary Changes Q1 22.23'!F:F,MATCH(C104,'ICB.Boundary Changes Q1 22.23'!B:B,0)) -> 0
B105: Sub-ICB | C105: 99F | D105: NHS Castle Point and Rochford CCG | E105: NHS Mid and South Essex ICB - 99F Castle Point and Rochford | F105: NHS CASTLE POINT AND ROCHFORD (SUB ICB LOCATION) | G105: =INDEX('ICB.Boundary Changes Q1 22.23'!E:E,MATCH(C105,'ICB.Boundary Changes Q1 22.23'!B:B,0)) -> No | H105: =INDEX('ICB.Boundary Changes Q1 22.23'!F:F,MATCH(C105,'ICB.Boundary Changes Q1 22.23'!B:B,0)) -> 0
B106: Sub-ICB | C106: 99E | D106: NHS Basildon and Brentwood CCG | E106: NHS Mid and South Essex ICB - 99E Basildon and Brentwood | F106: NHS BASILDON AND BRENTWOOD (SUB ICB LOCATION) | G106: =INDEX('ICB.Boundary Changes Q1 22.23'!E:E,MATCH(C106,'ICB.Boundary Changes Q1 22.23'!B:B,0)) -> No | H106: =INDEX('ICB.Boundary Changes Q1 22.23'!F:F,MATCH(C106,'ICB.Boundary Changes Q1 22.23'!B:B,0)) -> 0
B107: Sub-ICB | C107: 07G | D107: NHS Thurrock CCG | E107: NHS Mid and South Essex ICB - 07G Thurrock | F107: NHS THURROCK (SUB ICB LOCATION) | G107: =INDEX('ICB.Boundary Changes Q1 22.23'!E:E,MATCH(C107,'ICB.Boundary Changes Q1 22.23'!B:B,0)) -> No | H107: =INDEX('ICB.Boundary Changes Q1 22.23'!F:F,MATCH(C107,'ICB.Boundary Changes Q1 22.23'!B:B,0)) -> 0
B108: Sub-ICB | C108: 06Q | D108: NHS Mid Essex CCG | E108: NHS Mid and South Essex ICB - 06Q Mid Essex | F108: NHS MID ESSEX (SUB ICB LOCATION) | G108: =INDEX('ICB.Boundary Changes Q1 22.23'!E:E,MATCH(C108,'ICB.Boundary Changes Q1 22.23'!B:B,0)) -> No | H108: =INDEX('ICB.Boundary Changes Q1 22.23'!F:F,MATCH(C108,'ICB.Boundary Changes Q1 22.23'!B:B,0)) -> 0
B109: Sub-ICB | C109: B2M3M | D109: NHS Coventry and Warwickshire CCG | E109: NHS Coventry and Warwickshire ICB - B2M3M | F109: NHS COVENTRY AND WARWICKSHIRE (SUB ICB LOCATION) | G109: =INDEX('ICB.Boundary Changes Q1 22.23'!E:E,MATCH(C109,'ICB.Boundary Changes Q1 22.23'!B:B,0)) -> No | H109: =INDEX('ICB.Boundary Changes Q1 22.23'!F:F,MATCH(C109,'ICB.Boundary Changes Q1 22.23'!B:B,0)) -> 0
B110: Sub-ICB | C110: D2P2L | D110: NHS Black Country and West Birmingham CCG | E110: NHS Black Country ICB - D2P2L | F110: NHS BLACK COUNTRY (SUB ICB LOCATION) | G110: =INDEX('ICB.Boundary Changes Q1 22.23'!E:E,MATCH(C110,'ICB.Boundary Changes Q1 22.23'!B:B,0)) -> Yes | H110: =INDEX('ICB.Boundary Changes Q1 22.23'!F:F,MATCH(C110,'ICB.Boundary Changes Q1 22.23'!B:B,0)) -> -0.1520647396
B111: Sub-ICB | C111: 52R | D111: NHS Nottingham and Nottinghamshire CCG | E111: NHS Nottingham and Nottinghamshire ICB - 52R Nottingham & Nottinghamshire | F111: NHS NOTTINGHAM AND NOTTINGHAMSHIRE (SUB ICB LOCATION) | G111: =INDEX('ICB.Boundary Changes Q1 22.23'!E:E,MATCH(C111,'ICB.Boundary Changes Q1 22.23'!B:B,0)) -> No | H111: =INDEX('ICB.Boundary Changes Q1 22.23'!F:F,MATCH(C111,'ICB.Boundary Changes Q1 22.23'!B:B,0)) -> 0
B112: Sub-ICB | C112: 02Q | D112: NHS Bassetlaw CCG | E112: NHS Nottingham and Nottinghamshire ICB - 02Q Bassetlaw | F112: NHS BASSETLAW (SUB ICB LOCATION) | G112: =INDEX('ICB.Boundary Changes Q1 22.23'!E:E,MATCH(C112,'ICB.Boundary Changes Q1 22.23'!B:B,0)) -> No | H112: =INDEX('ICB.Boundary Changes Q1 22.23'!F:F,MATCH(C112,'ICB.Boundary Changes Q1 22.23'!B:B,0)) -> 0
B113: Sub-ICB | C113: 78H | D113: NHS Northamptonshire CCG | E113: NHS Northamptonshire ICB - 78H | F113: NHS NORTHAMPTONSHIRE (SUB ICB LOCATION) | G113: =INDEX('ICB.Boundary Changes Q1 22.23'!E:E,MATCH(C113,'ICB.Boundary Changes Q1 22.23'!B:B,0)) -> Yes | H113: =INDEX('ICB.Boundary Changes Q1 22.23'!F:F,MATCH(C113,'ICB.Boundary Changes Q1 22.23'!B:B,0)) -> 0.01371969784
B114: Sub-ICB | C114: M2L0M | D114: NHS Shropshire and Telford and Wrekin CCG | E114: NHS Shropshire, Telford and Wrekin ICB - M2L0M | F114: NHS SHROPSHIRE, TELFORD AND WREKIN (SUB ICB LOCATION) | G114: =INDEX('ICB.Boundary Changes Q1 22.23'!E:E,MATCH(C114,'ICB.Boundary Changes Q1 22.23'!B:B,0)) -> No | H114: =INDEX('ICB.Boundary Changes Q1 22.23'!F:F,MATCH(C114,'ICB.Boundary Changes Q1 22.23'!B:B,0)) -> 0
B115: Sub-ICB | C115: 05W | D115: NHS Stoke on Trent CCG | E115: NHS Staffordshire and Stoke-on-Trent ICB - 05W Stoke on Trent | F115: NHS STOKE ON TRENT (SUB ICB LOCATION) | G115: =INDEX('ICB.Boundary Changes Q1 22.23'!E:E,MATCH(C115,'ICB.Boundary Changes Q1 22.23'!B:B,0)) -> No | H115: =INDEX('ICB.Boundary Changes Q1 22.23'!F:F,MATCH(C115,'ICB.Boundary Changes Q1 22.23'!B:B,0)) -> 0
B116: Sub-ICB | C116: 05V | D116: NHS Stafford and Surrounds CCG | E116: NHS Staffordshire and Stoke-on-Trent ICB - 05V Stafford and Surrounds | F116: NHS STAFFORD AND SURROUNDS (SUB ICB LOCATION) | G116: =INDEX('ICB.Boundary Changes Q1 22.23'!E:E,MATCH(C116,'ICB.Boundary Changes Q1 22.23'!B:B,0)) -> No | H116: =INDEX('ICB.Boundary Changes Q1 22.23'!F:F,MATCH(C116,'ICB.Boundary Changes Q1 22.23'!B:B,0)) -> 0
B117: Sub-ICB | C117: 05Q | D117: NHS South East Staffordshire and Seisdon Peninsula CCG | E117: NHS Staffordshire and Stoke-on-Trent ICB - 05Q SE Staffs and Seisdon Peninsula | F117: NHS SOUTH EAST STAFFORDSHIRE AND SEISDON PENINSULA (SUB ICB LOCATION) | G117: =INDEX('ICB.Boundary Changes Q1 22.23'!E:E,MATCH(C117,'ICB.Boundary Changes Q1 22.23'!B:B,0)) -> No | H117: =INDEX('ICB.Boundary Changes Q1 22.23'!F:F,MATCH(C117,'ICB.Boundary Changes Q1 22.23'!B:B,0)) -> 0
B118: Sub-ICB | C118: 05G | D118: NHS North Staffordshire CCG | E118: NHS Staffordshire and Stoke-on-Trent ICB - 05G North Staffordshire | F118: NHS NORTH STAFFORDSHIRE (SUB ICB LOCATION) | G118: =INDEX('ICB.Boundary Changes Q1 22.23'!E:E,MATCH(C118,'ICB.Boundary Changes Q1 22.23'!B:B,0)) -> No | H118: =INDEX('ICB.Boundary Changes Q1 22.23'!F:F,MATCH(C118,'ICB.Boundary Changes Q1 22.23'!B:B,0)) -> 0
B119: Sub-ICB | C119: 05D | D119: NHS East Staffordshire CCG | E119: NHS Staffordshire and Stoke-on-Trent ICB - 05D East Staffordshire | F119: NHS EAST STAFFORDSHIRE (SUB ICB LOCATION) | G119: =INDEX('ICB.Boundary Changes Q1 22.23'!E:E,MATCH(C119,'ICB.Boundary Changes Q1 22.23'!B:B,0)) -> No | H119: =INDEX('ICB.Boundary Changes Q1 22.23'!F:F,MATCH(C119,'ICB.Boundary Changes Q1 22.23'!B:B,0)) -> 0
B120: Sub-ICB | C120: 04Y | D120: NHS Cannock Chase CCG | E120: NHS Staffordshire and Stoke-on-Trent ICB - 04Y Cannock Chase | F120: NHS CANNOCK CHASE (SUB ICB LOCATION) | G120: =INDEX('ICB.Boundary Changes Q1 22.23'!E:E,MATCH(C120,'ICB.Boundary Changes Q1 22.23'!B:B,0)) -> No | H120: =INDEX('ICB.Boundary Changes Q1 22.23'!F:F,MATCH(C120,'ICB.Boundary Changes Q1 22.23'!B:B,0)) -> 0
B121: Sub-ICB | C121: 04V | D121: NHS West Leicestershire CCG | E121: NHS Leicester, Leicestershire and Rutland ICB - 04V West Leicestershire | F121: NHS WEST LEICESTERSHIRE (SUB ICB LOCATION) | G121: =INDEX('ICB.Boundary Changes Q1 22.23'!E:E,MATCH(C121,'ICB.Boundary Changes Q1 22.23'!B:B,0)) -> No | H121: =INDEX('ICB.Boundary Changes Q1 22.23'!F:F,MATCH(C121,'ICB.Boundary Changes Q1 22.23'!B:B,0)) -> 0
B122: Sub-ICB | C122: 04C | D122: NHS Leicester City CCG | E122: NHS Leicester, Leicestershire and Rutland ICB - 04C Leicester City | F122: NHS LEICESTER CITY (SUB ICB LOCATION) | G122: =INDEX('ICB.Boundary Changes Q1 22.23'!E:E,MATCH(C122,'ICB.Boundary Changes Q1 22.23'!B:B,0)) -> No | H122: =INDEX('ICB.Boundary Changes Q1 22.23'!F:F,MATCH(C122,'ICB.Boundary Changes Q1 22.23'!B:B,0)) -> 0
B123: Sub-ICB | C123: 03W | D123: NHS East Leicestershire and Rutland CCG | E123: NHS Leicester, Leicestershire and Rutland ICB - 03W East Leicestershire & Rutland | F123: NHS EAST LEICESTERSHIRE AND RUTLAND (SUB ICB LOCATION) | G123: =INDEX('ICB.Boundary Changes Q1 22.23'!E:E,MATCH(C123,'ICB.Boundary Changes Q1 22.23'!B:B,0)) -> Yes | H123: =INDEX('ICB.Boundary Changes Q1 22.23'!F:F,MATCH(C123,'ICB.Boundary Changes Q1 22.23'!B:B,0)) -> 0.01090702187
B124: Sub-ICB | C124: 71E | D124: NHS Lincolnshire CCG | E124: NHS Lincolnshire ICB - 71E | F124: NHS LINCOLNSHIRE (SUB ICB LOCATION) | G124: =INDEX('ICB.Boundary Changes Q1 22.23'!E:E,MATCH(C124,'ICB.Boundary Changes Q1 22.23'!B:B,0)) -> Yes | H124: =INDEX('ICB.Boundary Changes Q1 22.23'!F:F,MATCH(C124,'ICB.Boundary Changes Q1 22.23'!B:B,0)) -> -0.004642353716
B125: Sub-ICB | C125: 15M | D125: NHS Derby and Derbyshire CCG | E125: NHS Derby and Derbyshire ICB - 15M | F125: NHS DERBY, DERBYSHIRE AND GLOSSOP (SUB ICB LOCATION) | G125: =INDEX('ICB.Boundary Changes Q1 22.23'!E:E,MATCH(C125,'ICB.Boundary Changes Q1 22.23'!B:B,0)) -> Yes | H125: =INDEX('ICB.Boundary Changes Q1 22.23'!F:F,MATCH(C125,'ICB.Boundary Changes Q1 22.23'!B:B,0)) -> 0.03085276609
B126: Sub-ICB | C126: 15E | D126: NHS Birmingham and Solihull CCG | E126: NHS Birmingham and Solihull ICB - 15E | F126: NHS BIRMINGHAM, SOLIHULL AND WEST BIRMINGHAM (SUB ICB LOCATION) | G126: =INDEX('ICB.Boundary Changes Q1 22.23'!E:E,MATCH(C126,'ICB.Boundary Changes Q1 22.23'!B:B,0)) -> Yes | H126: =INDEX('ICB.Boundary Changes Q1 22.23'!F:F,MATCH(C126,'ICB.Boundary Changes Q1 22.23'!B:B,0)) -> 0.1695833327
B127: Sub-ICB | C127: 18C | D127: NHS Herefordshire CCG | E127: NHS Herefordshire and Worcestershire ICB - 18C | F127: NHS HEREFORDSHIRE AND WORCESTERSHIRE (SUB ICB LOCATION) | G127: =INDEX('ICB.Boundary Changes Q1 22.23'!E:E,MATCH(C127,'ICB.Boundary Changes Q1 22.23'!B:B,0)) -> No | H127: =INDEX('ICB.Boundary Changes Q1 22.23'!F:F,MATCH(C127,'ICB.Boundary Changes Q1 22.23'!B:B,0)) -> 0
B128: Sub-ICB | C128: 92A | D128: NHS Surrey Heartlands CCG | E128: NHS Surrey Heartlands ICB - 92A | F128: NHS SURREY HEARTLANDS (SUB ICB LOCATION) | G128: =INDEX('ICB.Boundary Changes Q1 22.23'!E:E,MATCH(C128,'ICB.Boundary Changes Q1 22.23'!B:B,0)) -> No | H128: =INDEX('ICB.Boundary Changes Q1 22.23'!F:F,MATCH(C128,'ICB.Boundary Changes Q1 22.23'!B:B,0)) -> 0
B129: Sub-ICB | C129: 15A | D129: NHS Berkshire West CCG | E129: NHS Buckinghamshire, Oxfordshire and Berkshire West ICB - 15A Berkshire West | F129: NHS BERKSHIRE WEST (SUB ICB LOCATION) | G129: =INDEX('ICB.Boundary Changes Q1 22.23'!E:E,MATCH(C129,'ICB.Boundary Changes Q1 22.23'!B:B,0)) -> No | H129: =INDEX('ICB.Boundary Changes Q1 22.23'!F:F,MATCH(C129,'ICB.Boundary Changes Q1 22.23'!B:B,0)) -> 0
B130: Sub-ICB | C130: 14Y | D130: NHS Buckinghamshire CCG | E130: NHS Buckinghamshire, Oxfordshire and Berkshire West ICB - 14Y Buckinghamshire | F130: NHS BUCKINGHAMSHIRE (SUB ICB LOCATION) | G130: =INDEX('ICB.Boundary Changes Q1 22.23'!E:E,MATCH(C130,'ICB.Boundary Changes Q1 22.23'!B:B,0)) -> No | H130: =INDEX('ICB.Boundary Changes Q1 22.23'!F:F,MATCH(C130,'ICB.Boundary Changes Q1 22.23'!B:B,0)) -> 0
B131: Sub-ICB | C131: 10Q | D131: NHS Oxfordshire CCG | E131: NHS Buckinghamshire, Oxfordshire and Berkshire West ICB - 10Q Oxfordshire | F131: NHS OXFORDSHIRE (SUB ICB LOCATION) | G131: =INDEX('ICB.Boundary Changes Q1 22.23'!E:E,MATCH(C131,'ICB.Boundary Changes Q1 22.23'!B:B,0)) -> No | H131: =INDEX('ICB.Boundary Changes Q1 22.23'!F:F,MATCH(C131,'ICB.Boundary Changes Q1 22.23'!B:B,0)) -> 0
B132: Sub-ICB | C132: D9Y0V | D132: NHS Hampshire, Southampton and Isle of Wight CCG | E132: NHS Hampshire and Isle Of Wight ICB - D9Y0V Hampshire, Southampton & Isle of Wight | F132: NHS HAMPSHIRE, SOUTHAMPTON AND ISLE OF WIGHT (SUB ICB LOCATION) | G132: =INDEX('ICB.Boundary Changes Q1 22.23'!E:E,MATCH(C132,'ICB.Boundary Changes Q1 22.23'!B:B,0)) -> No | H132: =INDEX('ICB.Boundary Changes Q1 22.23'!F:F,MATCH(C132,'ICB.Boundary Changes Q1 22.23'!B:B,0)) -> 0
B133: Sub-ICB | C133: 10R | D133: NHS Portsmouth CCG | E133: NHS Hampshire and Isle Of Wight ICB - 10R Portsmouth | F133: NHS PORTSMOUTH (SUB ICB LOCATION) | G133: =INDEX('ICB.Boundary Changes Q1 22.23'!E:E,MATCH(C133,'ICB.Boundary Changes Q1 22.23'!B:B,0)) -> No | H133: =INDEX('ICB.Boundary Changes Q1 22.23'!F:F,MATCH(C133,'ICB.Boundary Changes Q1 22.23'!B:B,0)) -> 0
B134: Sub-ICB | C134: 97R | D134: NHS East Sussex CCG | E134: NHS Sussex ICB - 97R East Sussex | F134: NHS EAST SUSSEX (SUB ICB LOCATION) | G134: =INDEX('ICB.Boundary Changes Q1 22.23'!E:E,MATCH(C134,'ICB.Boundary Changes Q1 22.23'!B:B,0)) -> No | H134: =INDEX('ICB.Boundary Changes Q1 22.23'!F:F,MATCH(C134,'ICB.Boundary Changes Q1 22.23'!B:B,0)) -> 0
B135: Sub-ICB | C135: 70F | D135: NHS West Sussex CCG | E135: NHS Sussex ICB - 70F West Sussex | F135: NHS WEST SUSSEX (SUB ICB LOCATION) | G135: =INDEX('ICB.Boundary Changes Q1 22.23'!E:E,MATCH(C135,'ICB.Boundary Changes Q1 22.23'!B:B,0)) -> No | H135: =INDEX('ICB.Boundary Changes Q1 22.23'!F:F,MATCH(C135,'ICB.Boundary Changes Q1 22.23'!B:B,0)) -> 0
B136: Sub-ICB | C136: 09D | D136: NHS Brighton and Hove CCG | E136: NHS Sussex ICB - 09D Brighton and Hove | F136: NHS BRIGHTON AND HOVE (SUB ICB LOCATION) | G136: =INDEX('ICB.Boundary Changes Q1 22.23'!E:E,MATCH(C136,'ICB.Boundary Changes Q1 22.23'!B:B,0)) -> No | H136: =INDEX('ICB.Boundary Changes Q1 22.23'!F:F,MATCH(C136,'ICB.Boundary Changes Q1 22.23'!B:B,0)) -> 0
B137: Sub-ICB | C137: D4U1Y | D137: NHS Frimley CCG | E137: NHS Frimley ICB - D4U1Y | F137: NHS FRIMLEY (SUB ICB LOCATION) | G137: =INDEX('ICB.Boundary Changes Q1 22.23'!E:E,MATCH(C137,'ICB.Boundary Changes Q1 22.23'!B:B,0)) -> No | H137: =INDEX('ICB.Boundary Changes Q1 22.23'!F:F,MATCH(C137,'ICB.Boundary Changes Q1 22.23'!B:B,0)) -> 0
B138: Sub-ICB | C138: 91Q | D138: NHS Kent and Medway CCG | E138: NHS Kent and Medway ICB - 91Q | F138: NHS KENT AND MEDWAY (SUB ICB LOCATION) | G138: =INDEX('ICB.Boundary Changes Q1 22.23'!E:E,MATCH(C138,'ICB.Boundary Changes Q1 22.23'!B:B,0)) -> No | H138: =INDEX('ICB.Boundary Changes Q1 22.23'!F:F,MATCH(C138,'ICB.Boundary Changes Q1 22.23'!B:B,0)) -> 0
B139: Sub-ICB | C139: 11J | D139: NHS Dorset CCG | E139: NHS Dorset ICB - 11J | F139: NHS DORSET (SUB ICB LOCATION) | G139: =INDEX('ICB.Boundary Changes Q1 22.23'!E:E,MATCH(C139,'ICB.Boundary Changes Q1 22.23'!B:B,0)) -> No | H139: =INDEX('ICB.Boundary Changes Q1 22.23'!F:F,MATCH(C139,'ICB.Boundary Changes Q1 22.23'!B:B,0)) -> 0
B140: Sub-ICB | C140: 15C | D140: NHS Bristol, North Somerset and South Gloucestershire CCG | E140: NHS Bristol, North Somerset and South Gloucestershire ICB - 15C | F140: NHS BRISTOL, NORTH SOMERSET AND SOUTH GLOUCESTERSHIRE (SUB ICB LOCATION) | G140: =INDEX('ICB.Boundary Changes Q1 22.23'!E:E,MATCH(C140,'ICB.Boundary Changes Q1 22.23'!B:B,0)) -> No | H140: =INDEX('ICB.Boundary Changes Q1 22.23'!F:F,MATCH(C140,'ICB.Boundary Changes Q1 22.23'!B:B,0)) -> 0
B141: Sub-ICB | C141: 11N | D141: NHS Kernow CCG | E141: NHS Cornwall and The Isles Of Scilly ICB - 11N | F141: NHS KERNOW (SUB ICB LOCATION) | G141: =INDEX('ICB.Boundary Changes Q1 22.23'!E:E,MATCH(C141,'ICB.Boundary Changes Q1 22.23'!B:B,0)) -> No | H141: =INDEX('ICB.Boundary Changes Q1 22.23'!F:F,MATCH(C141,'ICB.Boundary Changes Q1 22.23'!B:B,0)) -> 0
B142: Sub-ICB | C142: 11X | D142: NHS Somerset CCG | E142: NHS Somerset ICB - 11X | F142: NHS SOMERSET (SUB ICB LOCATION) | G142: =INDEX('ICB.Boundary Changes Q1 22.23'!E:E,MATCH(C142,'ICB.Boundary Changes Q1 22.23'!B:B,0)) -> No | H142: =INDEX('ICB.Boundary Changes Q1 22.23'!F:F,MATCH(C142,'ICB.Boundary Changes Q1 22.23'!B:B,0)) -> 0
B143: Sub-ICB | C143: 11M | D143: NHS Gloucestershire CCG | E143: NHS Gloucestershire ICB - 11M | F143: NHS GLOUCESTERSHIRE (SUB ICB LOCATION) | G143: =INDEX('ICB.Boundary Changes Q1 22.23'!E:E,MATCH(C143,'ICB.Boundary Changes Q1 22.23'!B:B,0)) -> No | H143: =INDEX('ICB.Boundary Changes Q1 22.23'!F:F,MATCH(C143,'ICB.Boundary Changes Q1 22.23'!B:B,0)) -> 0
B144: Sub-ICB | C144: 92G | D144: NHS Bath and North East Somerset, Swindon and Wiltshire CCG | E144: NHS Bath and North East Somerset, Swindon and Wiltshire ICB - 92G | F144: NHS BATH AND NORTH EAST SOMERSET, SWINDON AND WILTSHIRE (SUB ICB LOCATION) | G144: =INDEX('ICB.Boundary Changes Q1 22.23'!E:E,MATCH(C144,'ICB.Boundary Changes Q1 22.23'!B:B,0)) -> No | H144: =INDEX('ICB.Boundary Changes Q1 22.23'!F:F,MATCH(C144,'ICB.Boundary Changes Q1 22.23'!B:B,0)) -> 0
B145: Sub-ICB | C145: 15N | D145: NHS Devon CCG | E145: NHS Devon ICB - 15N | F145: NHS DEVON (SUB ICB LOCATION) | G145: =INDEX('ICB.Boundary Changes Q1 22.23'!E:E,MATCH(C145,'ICB.Boundary Changes Q1 22.23'!B:B,0)) -> No | H145: =INDEX('ICB.Boundary Changes Q1 22.23'!F:F,MATCH(C145,'ICB.Boundary Changes Q1 22.23'!B:B,0)) -> 0
B146: Sub-ICB | C146: 36L | D146: NHS South West London CCG | E146: NHS South West London ICB - 36L | F146: NHS SOUTH WEST LONDON (SUB ICB LOCATION) | G146: =INDEX('ICB.Boundary Changes Q1 22.23'!E:E,MATCH(C146,'ICB.Boundary Changes Q1 22.23'!B:B,0)) -> No | H146: =INDEX('ICB.Boundary Changes Q1 22.23'!F:F,MATCH(C146,'ICB.Boundary Changes Q1 22.23'!B:B,0)) -> 0
B147: Sub-ICB | C147: W2U3Z | D147: NHS North West London CCG | E147: NHS North West London ICB - W2U3Z | F147: NHS NORTH WEST LONDON (SUB ICB LOCATION) | G147: =INDEX('ICB.Boundary Changes Q1 22.23'!E:E,MATCH(C147,'ICB.Boundary Changes Q1 22.23'!B:B,0)) -> No | H147: =INDEX('ICB.Boundary Changes Q1 22.23'!F:F,MATCH(C147,'ICB.Boundary Changes Q1 22.23'!B:B,0)) -> 0
B148: Sub-ICB | C148: 93C | D148: NHS North Central London CCG | E148: NHS North Central London ICB - 93C | F148: NHS NORTH CENTRAL LONDON (SUB ICB LOCATION) | G148: =INDEX('ICB.Boundary Changes Q1 22.23'!E:E,MATCH(C148,'ICB.Boundary Changes Q1 22.23'!B:B,0)) -> No | H148: =INDEX('ICB.Boundary Changes Q1 22.23'!F:F,MATCH(C148,'ICB.Boundary Changes Q1 22.23'!B:B,0)) -> 0
B149: Sub-ICB | C149: A3A8R | D149: NHS North East London CCG | E149: NHS North East London ICB - A3A8R | F149: NHS NORTH EAST LONDON (SUB ICB LOCATION) | G149: =INDEX('ICB.Boundary Changes Q1 22.23'!E:E,MATCH(C149,'ICB.Boundary Changes Q1 22.23'!B:B,0)) -> No | H149: =INDEX('ICB.Boundary Changes Q1 22.23'!F:F,MATCH(C149,'ICB.Boundary Changes Q1 22.23'!B:B,0)) -> 0
B150: Sub-ICB | C150: 72Q | D150: NHS South East London CCG | E150: NHS South East London ICB - 72Q | F150: NHS SOUTH EAST LONDON (SUB ICB LOCATION) | G150: =INDEX('ICB.Boundary Changes Q1 22.23'!E:E,MATCH(C150,'ICB.Boundary Changes Q1 22.23'!B:B,0)) -> No | H150: =INDEX('ICB.Boundary Changes Q1 22.23'!F:F,MATCH(C150,'ICB.Boundary Changes Q1 22.23'!B:B,0)) -> 0

Sheet ICB.Boundary Changes Q1 22.23 (hidden)
N1: GP Populations (Oct 2021) | P1: Current | R1: New | T1: Difference
A2: Org level | B2: Code | C2: Old Name | D2: New Name | E2: Boundary/Population changes (Yes/No) | F2: % total Pop change | G2: ICB migration | H2: Region Migration | I2: No Change (Yes/No) | J2: System move | N2: GP Populations re-mapped to April 2022 health geographies | P2: Apr-21 boundaries | R2: Apr-22 boundaries
A3: England | C3: ENGLAND
A4: Region | B4: Y63 | C4: North East and Yorkshire | E4: =IF(F4<>0,"Yes","No") -> Yes | F4: =VLOOKUP(B4,N:V,9,FALSE) -> -0.01332406195 | G4: Yes | H4: Yes | I4: =E4 -> Yes | N4: R22 | O4: NHS Region (7) | P4: Practices | Q4: Population | R4: Practices | S4: ALL | T4: Practices | U4: ALL | V4: % change
A5: Region | B5: Y62 | C5: North West | E5: Yes | F5: =VLOOKUP(B5,N:V,9,FALSE) -> -0.00431327403 | G5: Yes | H5: Yes | I5: Yes | O5: ENGLAND | P5: 6554 | Q5: 61194033 | R5: 6554 | S5: 61194033 | T5: 0 | U5: 0 | V5: 0
A6: Region | B6: Y61 | C6: East of England | E6: Yes | F6: -0.001548328668 | G6: Yes | H6: Yes | I6: Yes | N6: Y63 | O6: North East and Yorkshire | P6: 1014 | Q6: 9106157 | R6: 1005 | S6: 8984826 | T6: -9 | U6: -121331 | V6: -0.01332406195
A7: Region | B7: Y60 | C7: Midlands | E7: Yes | F7: 0.01458504349 | G7: Yes | H7: Yes | I7: Yes | N7: Y62 | O7: North West | P7: 992 | Q7: 7670971 | R7: 986 | S7: 7637884 | T7: -6 | U7: -33087 | V7: -0.00431327403
A8: Region | B8: Y59 | C8: South East | E8: No | F8: 0 | G8: No | H8: No | I8: No | N8: Y61 | O8: East of England | P8: 666 | Q8: 7057933 | R8: 665 | S8: 7047005 | T8: -1 | U8: -10928 | V8: -0.001548328668
A9: Region | B9: Y58 | C9: South West | E9: No | F9: 0 | G9: No | H9: No | I9: No | N9: Y60 | O9: Midlands | P9: 1287 | Q9: 11336682 | R9: 1303 | S9: 11502028 | T9: 16 | U9: 165346 | V9: 0.01458504349
A10: Region | B10: Y56 | C10: London | E10: No | F10: 0 | G10: No | H10: No | I10: No | N10: Y59 | O10: South East | P10: 839 | Q10: 9527034 | R10: 839 | S10: 9527034 | T10: 0 | U10: 0 | V10: 0
A11: STP | B11: QWO | C11: West Yorkshire And Harrogate (Health & Care Partnership) STP | D11: NHS West Yorkshire ICB | E11: =IF(F11<>0,"Yes","No") -> No | F11: =VLOOKUP(D11,O:V,8,FALSE) -> 0 | G11: No | H11: No | I11: =E11 -> No | N11: Y58 | O11: South West | P11: 560 | Q11: 5966996 | R11: 560 | S11: 5966996 | T11: 0 | U11: 0 | V11: 0
A12: STP | B12: QOQ | C12: Humber, Coast And Vale STP | D12: NHS Humber and North Yorkshire ICB | E12: =IF(F12<>0,"Yes","No") -> No | F12: =VLOOKUP(D12,O:V,8,FALSE) -> 0 | G12: No | H12: No | I12: =E12 -> No | N12: Y56 | O12: London | P12: 1196 | Q12: 10528260 | R12: 1196 | S12: 10528260 | T12: 0 | U12: 0 | V12: 0
A13: STP | B13: QHM | C13: Cumbria And North East STP | D13: NHS North East and North Cumbria ICB | E13: No | F13: 0 | G13: No | H13: No | I13: No
A14: STP | B14: QF7 | C14: South Yorkshire And Bassetlaw STP | D14: NHS South Yorkshire ICB | E14: Yes | F14: -0.07592668845 | G14: Yes | H14: Yes | I14: Yes
A15: STP | B15: QYG | C15: Cheshire And Merseyside STP | D15: NHS Cheshire and Merseyside ICB | E15: No | F15: 0 | G15: No | H15: No | I15: No | M15: R22 | N15: ICB22 | O15: Integrated Care Board ICB (42) | P15: Practices | Q15: Population | R15: Practices | S15: Population | T15: Practices | U15: Population | V15: % change
A16: STP | B16: QOP | C16: Greater Manchester Health And Social Care Partnership (STP) | D16: NHS Greater Manchester ICB | E16: Yes | F16: -0.01045485756 | G16: Yes | H16: Yes | I16: Yes | N16: Y63 | O16: North East and Yorkshire
A17: STP | B17: QE1 | C17: Healthier Lancashire And South Cumbria | D17: NHS Lancashire and South Cumbria ICB | E17: No | F17: 0 | G17: No | H17: No | I17: No | M17: Y63 | N17: QWO | O17: NHS West Yorkshire ICB | P17: 288 | Q17: 2607572 | R17: 288 | S17: 2607572 | T17: 0 | U17: 0 | V17: 0
A18: STP | B18: QUE | C18: Cambridgeshire And Peterborough STP | D18: NHS Cambridgeshire and Peterborough ICB | E18: Yes | F18: -0.01076384067 | G18: Yes | H18: Yes | I18: Yes | M18: Y63 | N18: QOQ | O18: NHS Humber and North Yorkshire ICB | P18: 181 | Q18: 1767414 | R18: 181 | S18: 1767414 | T18: 0 | U18: 0 | V18: 0
A19: STP | B19: QMM | C19: Norfolk And Waveney Health & Care Partnership (STP) | D19: NHS Norfolk and Waveney ICB | E19: No | F19: 0 | G19: No | H19: No | I19: No | M19: Y63 | N19: QHM | O19: NHS North East and North Cumbria ICB | P19: 360 | Q19: 3133169 | R19: 360 | S19: 3133169 | T19: 0 | U19: 0 | V19: 0
A20: STP | B20: QM7 | C20: Hertfordshire And West Essex STP | D20: NHS Hertfordshire and West Essex ICB | E20: No | F20: 0 | G20: No | H20: No | I20: No | M20: Y63 | N20: QF7 | O20: NHS South Yorkshire ICB | P20: 185 | Q20: 1598002 | R20: 176 | S20: 1476671 | T20: -9 | U20: -121331 | V20: -0.07592668845
A21: STP | B21: QJG | C21: Suffolk And North East Essex STP | D21: NHS Suffolk and North East Essex ICB | E21: No | F21: 0 | G21: No | H21: No | I21: No | N21: Y62 | O21: North West
A22: STP | B22: QHG | C22: Bedfordshire, Luton And Milton Keynes STP | D22: NHS Bedfordshire, Luton and Milton Keynes ICB | E22: No | F22: 0 | G22: No | H22: No | I22: No | M22: Y62 | N22: QYG | O22: NHS Cheshire and Merseyside ICB | P22: 355 | Q22: 2702059 | R22: 355 | S22: 2702059 | T22: 0 | U22: 0 | V22: 0
A23: STP | B23: QH8 | C23: Mid And South Essex STP | D23: NHS Mid and South Essex ICB | E23: No | F23: 0 | G23: No | H23: No | I23: No | M23: Y62 | N23: QOP | O23: NHS Greater Manchester ICB | P23: 434 | Q23: 3164749 | R23: 428 | S23: 3131662 | T23: -6 | U23: -33087 | V23: -0.01045485756
A24: STP | B24: QWU | C24: Coventry And Warwickshire STP | D24: NHS Coventry and Warwickshire ICB | E24: No | F24: 0 | G24: No | H24: No | I24: No | M24: Y62 | N24: QE1 | O24: NHS Lancashire and South Cumbria ICB | P24: 203 | Q24: 1804163 | R24: 203 | S24: 1804163 | T24: 0 | U24: 0 | V24: 0
A25: STP | B25: QUA | C25: The Black Country And West Birmingham STP | D25: NHS Black Country ICB | E25: Yes | F25: -0.1520647396 | G25: Yes | H25: No | I25: Yes | M25: Y61 | N25: QUE | O25: NHS Cambridgeshire and Peterborough ICB | P25: 85 | Q25: 1015251 | R25: 84 | S25: 1004323 | T25: -1 | U25: -10928 | V25: -0.01076384067
A26: STP | B26: QT1 | C26: Nottingham And Nottinghamshire Health And Care STP | D26: NHS Nottingham and Nottinghamshire ICB | E26: Yes | F26: 0.1091347546 | G26: Yes | H26: Yes | I26: Yes | M26: Y61 | N26: QMM | O26: NHS Norfolk and Waveney ICB | P26: 105 | Q26: 1079483 | R26: 105 | S26: 1079483 | T26: 0 | U26: 0 | V26: 0
A27: STP | B27: QPM | C27: Northamptonshire STP | D27: NHS Northamptonshire ICB | E27: Yes | F27: 0.01371969784 | G27: Yes | H27: Yes | I27: Yes | M27: Y61 | N27: QM7 | O27: NHS Hertfordshire and West Essex ICB | P27: 137 | Q27: 1606280 | R27: 137 | S27: 1606280 | T27: 0 | U27: 0 | V27: 0
A28: STP | B28: QOC | C28: Shropshire And Telford And Wrekin STP | D28: NHS Shropshire, Telford and Wrekin ICB | E28: No | F28: 0 | G28: No | H28: No | I28: No | M28: Y61 | N28: QJG | O28: NHS Suffolk and North East Essex ICB | P28: 93 | Q28: 1042188 | R28: 93 | S28: 1042188 | T28: 0 | U28: 0 | V28: 0
A29: STP | B29: QNC | C29: Staffordshire And Stoke On Trent STP | D29: NHS Staffordshire and Stoke-on-Trent ICB | E29: No | F29: 0 | G29: No | H29: No | I29: No | M29: Y61 | N29: QHG | O29: NHS Bedfordshire, Luton and Milton Keynes ICB | P29: 96 | Q29: 1065759 | R29: 96 | S29: 1065759 | T29: 0 | U29: 0 | V29: 0
A30: STP | B30: QK1 | C30: Leicester, Leicestershire And Rutland STP | D30: NHS Leicester, Leicestershire and Rutland ICB | E30: Yes | F30: 0.003190285419 | G30: Yes | H30: No | I30: Yes | M30: Y61 | N30: QH8 | O30: NHS Mid and South Essex ICB | P30: 150 | Q30: 1248972 | R30: 150 | S30: 1248972 | T30: 0 | U30: 0 | V30: 0
A31: STP | B31: QJM | C31: Lincolnshire STP | D31: NHS Lincolnshire ICB | E31: Yes | F31: -0.004642353716 | G31: Yes | H31: No | I31: Yes | N31: Y60 | O31: Midlands
A32: STP | B32: QJ2 | C32: Joined Up Care Derbyshire STP | D32: NHS Derby and Derbyshire ICB | E32: Yes | F32: 0.03085276609 | G32: Yes | H32: Yes | I32: Yes | M32: Y60 | N32: QWU | O32: NHS Coventry and Warwickshire ICB | P32: 119 | Q32: 1042097 | R32: 119 | S32: 1042097 | T32: 0 | U32: 0 | V32: 0
A33: STP | B33: QHL | C33: Birmingham And Solihull STP | D33: NHS Birmingham and Solihull ICB | E33: Yes | F33: 0.1695833327 | G33: Yes | H33: No | I33: Yes | M33: Y60 | N33: QUA | O33: NHS Black Country ICB | P33: 207 | Q33: 1497816 | R33: 181 | S33: 1270051 | T33: -26 | U33: -227765 | V33: -0.1520647396
A34: STP | B34: QGH | C34: Herefordshire And Worcestershire STP | D34: NHS Herefordshire and Worcestershire ICB | E34: No | F34: 0 | G34: No | H34: No | I34: No | M34: Y60 | N34: QT1 | O34: NHS Nottingham and Nottinghamshire ICB | P34: 127 | Q34: 1111754 | R34: 136 | S34: 1233085 | T34: 9 | U34: 121331 | V34: 0.1091347546
A35: STP | B35: QXU | C35: Surrey Heartlands Health & Care Partnership (STP) | D35: NHS Surrey Heartlands ICB | E35: No | F35: 0 | G35: No | H35: No | I35: No | M35: Y60 | N35: QPM | O35: NHS Northamptonshire ICB | P35: 68 | Q35: 796519 | R35: 69 | S35: 807447 | T35: 1 | U35: 10928 | V35: 0.01371969784
A36: STP | B36: QU9 | C36: Buckinghamshire, Oxfordshire And Berkshire West STP | D36: NHS Buckinghamshire, Oxfordshire and Berkshire West ICB | E36: No | F36: 0 | G36: No | H36: No | I36: No | M36: Y60 | N36: QOC | O36: NHS Shropshire, Telford and Wrekin ICB | P36: 52 | Q36: 516452 | R36: 52 | S36: 516452 | T36: 0 | U36: 0 | V36: 0
A37: STP | B37: QRL | C37: Hampshire And The Isle Of Wight STP | D37: NHS Hampshire and Isle Of Wight ICB | E37: No | F37: 0 | G37: No | H37: No | I37: No | M37: Y60 | N37: QNC | O37: NHS Staffordshire and Stoke-on-Trent ICB | P37: 145 | Q37: 1166953 | R37: 145 | S37: 1166953 | T37: 0 | U37: 0 | V37: 0
A38: STP | B38: QNX | C38: Sussex And East Surrey STP | D38: NHS Sussex ICB | E38: No | F38: 0 | G38: No | H38: No | I38: No | M38: Y60 | N38: QK1 | O38: NHS Leicester, Leicestershire and Rutland ICB | P38: 134 | Q38: 1171682 | R38: 135 | S38: 1175420 | T38: 1 | U38: 3738 | V38: 0.003190285419
A39: STP | B39: QNQ | C39: Frimley Health & Care ICS (STP) | D39: NHS Frimley ICB | E39: No | F39: 0 | G39: No | H39: No | I39: No | M39: Y60 | N39: QJM | O39: NHS Lincolnshire ICB | P39: 85 | Q39: 805195 | R39: 84 | S39: 801457 | T39: -1 | U39: -3738 | V39: -0.004642353716
A40: STP | B40: QKS | C40: Kent And Medway STP | D40: NHS Kent and Medway ICB | E40: No | F40: 0 | G40: No | H40: No | I40: No | M40: Y60 | N40: QJ2 | O40: NHS Derby and Derbyshire ICB | P40: 112 | Q40: 1072416 | R40: 118 | S40: 1105503 | T40: 6 | U40: 33087 | V40: 0.03085276609
A41: STP | B41: QVV | C41: Dorset STP | D41: NHS Dorset ICB | E41: No | F41: 0 | G41: No | H41: No | I41: No | M41: Y60 | N41: QHL | O41: NHS Birmingham and Solihull ICB | P41: 158 | Q41: 1343086 | R41: 184 | S41: 1570851 | T41: 26 | U41: 227765 | V41: 0.1695833327
A42: STP | B42: QUY | C42: Bristol, North Somerset And South Gloucestershire STP | D42: NHS Bristol, North Somerset and South Gloucestershire ICB | E42: No | F42: 0 | G42: No | H42: No | I42: No | M42: Y60 | N42: QGH | O42: NHS Herefordshire and Worcestershire ICB | P42: 80 | Q42: 812712 | R42: 80 | S42: 812712 | T42: 0 | U42: 0 | V42: 0
A43: STP | B43: QT6 | C43: Cornwall And The Isles Of Scilly Health & Social Care Partnership (STP) | D43: NHS Cornwall and The Isles Of Scilly ICB | E43: No | F43: 0 | G43: No | H43: No | I43: No | N43: Y59 | O43: South East
A44: STP | B44: QSL | C44: Somerset STP | D44: NHS Somerset ICB | E44: No | F44: 0 | G44: No | H44: No | I44: No | M44: Y59 | N44: QXU | O44: NHS Surrey Heartlands ICB | P44: 104 | Q44: 1120562 | R44: 104 | S44: 1120562 | T44: 0 | U44: 0 | V44: 0
A45: STP | B45: QR1 | C45: Gloucestershire STP | D45: NHS Gloucestershire ICB | E45: No | F45: 0 | G45: No | H45: No | I45: No | M45: Y59 | N45: QU9 | O45: NHS Buckinghamshire, Oxfordshire and Berkshire West ICB | P45: 159 | Q45: 1928269 | R45: 159 | S45: 1928269 | T45: 0 | U45: 0 | V45: 0
A46: STP | B46: QOX | C46: Bath And North East Somerset, Swindon And Wiltshire STP | D46: NHS Bath and North East Somerset, Swindon and Wiltshire ICB | E46: No | F46: 0 | G46: No | H46: No | I46: No | M46: Y59 | N46: QRL | O46: NHS Hampshire and Isle Of Wight ICB | P46: 147 | Q46: 1908852 | R46: 147 | S46: 1908852 | T46: 0 | U46: 0 | V46: 0
A47: STP | B47: QJK | C47: Devon STP | D47: NHS Devon ICB | E47: No | F47: 0 | G47: No | H47: No | I47: No | M47: Y59 | N47: QNX | O47: NHS Sussex ICB | P47: 162 | Q47: 1810541 | R47: 162 | S47: 1810541 | T47: 0 | U47: 0 | V47: 0
A48: STP | B48: QWE | C48: South West London Health & Care Partnership (STP) | D48: NHS South West London ICB | E48: No | F48: 0 | G48: No | H48: No | I48: No | M48: Y59 | N48: QNQ | O48: NHS Frimley ICB | P48: 72 | Q48: 806690 | R48: 72 | S48: 806690 | T48: 0 | U48: 0 | V48: 0
A49: STP | B49: QRV | C49: North West London Health & Care Partnership (STP) | D49: NHS North West London ICB | E49: No | F49: 0 | G49: No | H49: No | I49: No | M49: Y59 | N49: QKS | O49: NHS Kent and Medway ICB | P49: 195 | Q49: 1952120 | R49: 195 | S49: 1952120 | T49: 0 | U49: 0 | V49: 0
A50: STP | B50: QMJ | C50: North London Partners In Health & Care (STP) | D50: NHS North Central London ICB | E50: No | F50: 0 | G50: No | H50: No | I50: No | N50: Y58 | O50: South West
A51: STP | B51: QMF | C51: East London Health & Care Partnership (STP) | D51: NHS North East London ICB | E51: No | F51: 0 | G51: No | H51: No | I51: No | M51: Y58 | N51: QVV | O51: NHS Dorset ICB | P51: 73 | Q51: 816948 | R51: 73 | S51: 816948 | T51: 0 | U51: 0 | V51: 0
A52: STP | B52: QKK | C52: Our Healthier South East London STP | D52: NHS South East London ICB | E52: =IF(F52<>0,"Yes","No") -> No | F52: =VLOOKUP(D52,O:V,8,FALSE) -> 0 | G52: No | H52: No | I52: No | M52: Y58 | N52: QUY | O52: NHS Bristol, North Somerset and South Gloucestershire ICB | P52: 79 | Q52: 1049891 | R52: 79 | S52: 1049891 | T52: 0 | U52: 0 | V52: 0
B53: X2C4Y | C53: =INDEX(O:O,MATCH(B53,N:N,0)) -> NHS Kirklees CCG | D53: NHS West Yorkshire ICB - X2C4Y Kirklees | E53: =IF(F53<>0,"Yes","No") -> No | F53: =VLOOKUP(B53,N:V,9,FALSE) -> 0 | G53: No | H53: No | I53: No | M53: Y58 | N53: QT6 | O53: NHS Cornwall and The Isles Of Scilly ICB | P53: 58 | Q53: 596230 | R53: 58 | S53: 596230 | T53: 0 | U53: 0 | V53: 0
B54: 36J | C54: =INDEX(O:O,MATCH(B54,N:N,0)) -> NHS Bradford District and Craven CCG | D54: NHS West Yorkshire ICB - 36J Bradford District and Craven | E54: No | F54: =VLOOKUP(B54,N:V,9,FALSE) -> 0 | G54: No | H54: No | I54: No | M54: Y58 | N54: QSL | O54: NHS Somerset ICB | P54: 64 | Q54: 592863 | R54: 64 | S54: 592863 | T54: 0 | U54: 0 | V54: 0
B55: 15F | C55: NHS Leeds CCG | D55: NHS West Yorkshire ICB - 15F Leeds | E55: No | F55: 0 | G55: No | H55: No | I55: No | M55: Y58 | N55: QR1 | O55: NHS Gloucestershire ICB | P55: 72 | Q55: 671720 | R55: 72 | S55: 671720 | T55: 0 | U55: 0 | V55: 0
B56: 03R | C56: NHS Wakefield CCG | D56: NHS West Yorkshire ICB - 03R Wakefield | E56: No | F56: 0 | G56: No | H56: No | I56: No | M56: Y58 | N56: QOX | O56: NHS Bath and North East Somerset, Swindon and Wiltshire ICB | P56: 92 | Q56: 974548 | R56: 92 | S56: 974548 | T56: 0 | U56: 0 | V56: 0
B57: 02T | C57: NHS Calderdale CCG | D57: NHS West Yorkshire ICB - 02T Calderdale | E57: No | F57: 0 | G57: No | H57: No | I57: No | M57: Y58 | N57: QJK | O57: NHS Devon ICB | P57: 122 | Q57: 1264796 | R57: 122 | S57: 1264796 | T57: 0 | U57: 0 | V57: 0
B58: 42D | C58: NHS North Yorkshire CCG | D58: NHS Humber and North Yorkshire ICB - 42D North Yorkshire | E58: No | F58: 0 | G58: No | H58: No | I58: No | N58: Y56 | O58: London
B59: 03Q | C59: NHS Vale of York CCG | D59: NHS Humber and North Yorkshire ICB - 03Q Vale of York | E59: No | F59: 0 | G59: No | H59: No | I59: No | M59: Y56 | N59: QWE | O59: NHS South West London ICB | P59: 182 | Q59: 1719922 | R59: 182 | S59: 1719922 | T59: 0 | U59: 0 | V59: 0
B60: 03K | C60: NHS North Lincolnshire CCG | D60: NHS Humber and North Yorkshire ICB - 03K North Lincolnshire | E60: No | F60: 0 | G60: No | H60: No | I60: No | M60: Y56 | N60: QRV | O60: NHS North West London ICB | P60: 354 | Q60: 2719514 | R60: 354 | S60: 2719514 | T60: 0 | U60: 0 | V60: 0
B61: 03H | C61: NHS North East Lincolnshire CCG | D61: NHS Humber and North Yorkshire ICB - 03H North East Lincolnshire | E61: No | F61: 0 | G61: No | H61: No | I61: No | M61: Y56 | N61: QMJ | O61: NHS North Central London ICB | P61: 183 | Q61: 1724517 | R61: 183 | S61: 1724517 | T61: 0 | U61: 0 | V61: 0
B62: 03F | C62: NHS Hull CCG | D62: NHS Humber and North Yorkshire ICB - 03F Hull | E62: No | F62: 0 | G62: No | H62: No | I62: No | M62: Y56 | N62: QMF | O62: NHS North East London ICB | P62: 275 | Q62: 2325553 | R62: 275 | S62: 2325553 | T62: 0 | U62: 0 | V62: 0
B63: 02Y | C63: NHS East Riding of Yorkshire CCG | D63: NHS Humber and North Yorkshire ICB - 02Y East Riding of Yorkshire | E63: No | F63: 0 | G63: No | H63: No | I63: No | M63: Y56 | N63: QKK | O63: NHS South East London ICB | P63: 202 | Q63: 2038754 | R63: 202 | S63: 2038754 | T63: 0 | U63: 0 | V63: 0
B64: 99C | C64: NHS North Tyneside CCG | D64: NHS North East and North Cumbria ICB - 99C North Tyneside | E64: No | F64: 0 | G64: No | H64: No | I64: No
B65: 84H | C65: NHS County Durham CCG | D65: NHS North East and North Cumbria ICB - 84H County Durham | E65: No | F65: 0 | G65: No | H65: No | I65: No
B66: 16C | C66: NHS Tees Valley CCG | D66: NHS North East and North Cumbria ICB - 16C Tees Valley | E66: No | F66: 0 | G66: No | H66: No | I66: No | L66: R22 | M66: ICB22 | N66: CCG21 | O66: Clinical Commissioning Group (106) | P66: Practices | Q66: Population | R66: Practices | S66: Population | T66: Practices | U66: Population | V66: % change | X66: 2022 Sub-ICB Locality Name (106) - descriptive text added for multiple locations in ICB
B67: 13T | C67: NHS Newcastle Gateshead CCG | D67: NHS North East and North Cumbria ICB - 13T Newcastle Gateshead | E67: No | F67: 0 | G67: No | H67: No | I67: No | N67: Y63 | O67: North East and Yorkshire
B68: 01H | C68: NHS North Cumbria CCG | D68: NHS North East and North Cumbria ICB - 01H North Cumbria | E68: No | F68: 0 | G68: No | H68: No | I68: No | L68: Y63 | M68: QWO | N68: X2C4Y | O68: NHS Kirklees CCG | P68: 65 | Q68: 448820 | R68: 65 | S68: 448820 | T68: 0 | U68: 0 | V68: 0 | X68: NHS West Yorkshire ICB - X2C4Y Kirklees
B69: 00P | C69: NHS Sunderland CCG | D69: NHS North East and North Cumbria ICB - 00P Sunderland | E69: No | F69: 0 | G69: No | H69: No | I69: No | L69: Y63 | M69: QWO | N69: 36J | O69: NHS Bradford District and Craven CCG | P69: 72 | Q69: 645774 | R69: 72 | S69: 645774 | T69: 0 | U69: 0 | V69: 0 | X69: NHS West Yorkshire ICB - 36J Bradford District and Craven
B70: 00N | C70: NHS South Tyneside CCG | D70: NHS North East and North Cumbria ICB - 00N South Tyneside | E70: No | F70: 0 | G70: No | H70: No | I70: No | L70: Y63 | M70: QWO | N70: 15F | O70: NHS Leeds CCG | P70: 93 | Q70: 903337 | R70: 93 | S70: 903337 | T70: 0 | U70: 0 | V70: 0 | X70: NHS West Yorkshire ICB - 15F Leeds
B71: 00L | C71: NHS Northumberland CCG | D71: NHS North East and North Cumbria ICB - 00L Northumberland | E71: No | F71: 0 | G71: No | H71: No | I71: No | L71: Y63 | M71: QWO | N71: 03R | O71: NHS Wakefield CCG | P71: 36 | Q71: 387265 | R71: 36 | S71: 387265 | T71: 0 | U71: 0 | V71: 0 | X71: NHS West Yorkshire ICB - 03R Wakefield
B72: 03N | C72: NHS Sheffield CCG | D72: NHS South Yorkshire ICB - 03N Sheffield | E72: No | F72: 0 | G72: No | H72: No | I72: No | L72: Y63 | M72: QWO | N72: 02T | O72: NHS Calderdale CCG | P72: 22 | Q72: 222376 | R72: 22 | S72: 222376 | T72: 0 | U72: 0 | V72: 0 | X72: NHS West Yorkshire ICB - 02T Calderdale
B73: 03L | C73: NHS Rotherham CCG | D73: NHS South Yorkshire ICB - 03L Rotherham | E73: No | F73: 0 | G73: No | H73: No | I73: No | L73: Y63 | M73: QOQ | N73: 42D | O73: NHS North Yorkshire CCG | P73: 51 | Q73: 435468 | R73: 51 | S73: 435468 | T73: 0 | U73: 0 | V73: 0 | X73: NHS Humber and North Yorkshire ICB - 42D North Yorkshire
B74: 02X | C74: NHS Doncaster CCG | D74: NHS South Yorkshire ICB - 02X Doncaster | E74: No | F74: 0 | G74: No | H74: No | I74: No | L74: Y63 | M74: QOQ | N74: 03Q | O74: NHS Vale of York CCG | P74: 25 | Q74: 365295 | R74: 25 | S74: 365295 | T74: 0 | U74: 0 | V74: 0 | X74: NHS Humber and North Yorkshire ICB - 03Q Vale of York
B75: 02P | C75: NHS Barnsley CCG | D75: NHS South Yorkshire ICB - 02P Barnsley | E75: No | F75: 0 | G75: No | H75: No | I75: No | L75: Y63 | M75: QOQ | N75: 03K | O75: NHS North Lincolnshire CCG | P75: 19 | Q75: 183423 | R75: 19 | S75: 183423 | T75: 0 | U75: 0 | V75: 0 | X75: NHS Humber and North Yorkshire ICB - 03K North Lincolnshire
B76: 99A | C76: NHS Liverpool CCG | D76: NHS Cheshire and Merseyside ICB - 99A Liverpool | E76: No | F76: 0 | G76: No | H76: No | I76: =E76 -> No | L76: Y63 | M76: QOQ | N76: 03H | O76: NHS North East Lincolnshire CCG | P76: 25 | Q76: 171188 | R76: 25 | S76: 171188 | T76: 0 | U76: 0 | V76: 0 | X76: NHS Humber and North Yorkshire ICB - 03H North East Lincolnshire
B77: 27D | C77: NHS Cheshire CCG | D77: NHS Cheshire and Merseyside ICB - 27D Cheshire | E77: No | F77: 0 | G77: No | H77: No | I77: No | L77: Y63 | M77: QOQ | N77: 03F | O77: NHS Hull CCG | P77: 32 | Q77: 304485 | R77: 32 | S77: 304485 | T77: 0 | U77: 0 | V77: 0 | X77: NHS Humber and North Yorkshire ICB - 03F Hull
B78: 12F | C78: NHS Wirral CCG | D78: NHS Cheshire and Merseyside ICB - 12F Wirral | E78: No | F78: 0 | G78: No | H78: No | I78: No | L78: Y63 | M78: QOQ | N78: 02Y | O78: NHS East Riding of Yorkshire CCG | P78: 29 | Q78: 307555 | R78: 29 | S78: 307555 | T78: 0 | U78: 0 | V78: 0 | X78: NHS Humber and North Yorkshire ICB - 02Y East Riding of Yorkshire
B79: 02E | C79: NHS Warrington CCG | D79: NHS Cheshire and Merseyside ICB - 02E Warrington | E79: No | F79: 0 | G79: No | H79: No | I79: No | L79: Y63 | M79: QHM | N79: 99C | O79: NHS North Tyneside CCG | P79: 25 | Q79: 223819 | R79: 25 | S79: 223819 | T79: 0 | U79: 0 | V79: 0 | X79: NHS North East and North Cumbria ICB - 99C North Tyneside
B80: 01X | C80: NHS St Helens CCG | D80: NHS Cheshire and Merseyside ICB - 01X St Helens | E80: No | F80: 0 | G80: No | H80: No | I80: No | L80: Y63 | M80: QHM | N80: 84H | O80: NHS County Durham CCG | P80: 61 | Q80: 557176 | R80: 61 | S80: 557176 | T80: 0 | U80: 0 | V80: 0 | X80: NHS North East and North Cumbria ICB - 84H County Durham
B81: 01V | C81: NHS Southport and Formby CCG | D81: NHS Cheshire and Merseyside ICB - 01V Southport and Formby | E81: No | F81: 0 | G81: No | H81: No | I81: No | L81: Y63 | M81: QHM | N81: 16C | O81: NHS Tees Valley CCG | P81: 81 | Q81: 713754 | R81: 81 | S81: 713754 | T81: 0 | U81: 0 | V81: 0 | X81: NHS North East and North Cumbria ICB - 16C Tees Valley
B82: 01T | C82: NHS South Sefton CCG | D82: NHS Cheshire and Merseyside ICB - 01T South Sefton | E82: No | F82: 0 | G82: No | H82: No | I82: No | L82: Y63 | M82: QHM | N82: 13T | O82: NHS Newcastle Gateshead CCG | P82: 60 | Q82: 533536 | R82: 60 | S82: 533536 | T82: 0 | U82: 0 | V82: 0 | X82: NHS North East and North Cumbria ICB - 13T Newcastle Gateshead
B83: 01J | C83: NHS Knowsley CCG | D83: NHS Cheshire and Merseyside ICB - 01J Knowsley | E83: No | F83: 0 | G83: No | H83: No | I83: No | L83: Y63 | M83: QHM | N83: 01H | O83: NHS North Cumbria CCG | P83: 35 | Q83: 328484 | R83: 35 | S83: 328484 | T83: 0 | U83: 0 | V83: 0 | X83: NHS North East and North Cumbria ICB - 01H North Cumbria
B84: 01F | C84: NHS Halton CCG | D84: NHS Cheshire and Merseyside ICB - 01F Halton | E84: No | F84: 0 | G84: No | H84: No | I84: No | L84: Y63 | M84: QHM | N84: 00P | O84: NHS Sunderland CCG | P84: 39 | Q84: 284829 | R84: 39 | S84: 284829 | T84: 0 | U84: 0 | V84: 0 | X84: NHS North East and North Cumbria ICB - 00P Sunderland
B85: 14L | C85: NHS Manchester CCG | D85: NHS Greater Manchester ICB - 14L Manchester | E85: No | F85: 0 | G85: No | H85: No | I85: No | L85: Y63 | M85: QHM | N85: 00N | O85: NHS South Tyneside CCG | P85: 21 | Q85: 158755 | R85: 21 | S85: 158755 | T85: 0 | U85: 0 | V85: 0 | X85: NHS North East and North Cumbria ICB - 00N South Tyneside
B86: 02H | C86: NHS Wigan Borough CCG | D86: NHS Greater Manchester ICB - 02H Wigan Borough | E86: No | F86: 0 | G86: No | H86: No | I86: No | L86: Y63 | M86: QHM | N86: 00L | O86: NHS Northumberland CCG | P86: 38 | Q86: 332816 | R86: 38 | S86: 332816 | T86: 0 | U86: 0 | V86: 0 | X86: NHS North East and North Cumbria ICB - 00L Northumberland
B87: 02A | C87: NHS Trafford CCG | D87: NHS Greater Manchester ICB - 02A Trafford | E87: No | F87: 0 | G87: No | H87: No | I87: No | L87: Y63 | M87: QF7 | N87: 03N | O87: NHS Sheffield CCG | P87: 76 | Q87: 618334 | R87: 76 | S87: 618334 | T87: 0 | U87: 0 | V87: 0 | X87: NHS South Yorkshire ICB - 03N Sheffield
B88: 01Y | C88: NHS Tameside and Glossop CCG | D88: NHS Greater Manchester ICB - 01Y Tameside and Glossop | E88: Yes | F88: -0.1309406499 | G88: Yes | H88: Yes | I88: Yes | L88: Y63 | M88: QF7 | N88: 03L | O88: NHS Rotherham CCG | P88: 29 | Q88: 266334 | R88: 29 | S88: 266334 | T88: 0 | U88: 0 | V88: 0 | X88: NHS South Yorkshire ICB - 03L Rotherham
B89: 01W | C89: NHS Stockport CCG | D89: NHS Greater Manchester ICB - 01W Stockport | E89: No | F89: 0 | G89: No | H89: No | I89: No | L89: Y63 | M89: QF7 | N89: 02X | O89: NHS Doncaster CCG | P89: 38 | Q89: 327116 | R89: 38 | S89: 327116 | T89: 0 | U89: 0 | V89: 0 | X89: NHS South Yorkshire ICB - 02X Doncaster
B90: 01G | C90: NHS Salford CCG | D90: NHS Greater Manchester ICB - 01G Salford | E90: No | F90: 0 | G90: No | H90: No | I90: No | L90: Y63 | M90: QF7 | N90: 02P | O90: NHS Barnsley CCG | P90: 33 | Q90: 264887 | R90: 33 | S90: 264887 | T90: 0 | U90: 0 | V90: 0 | X90: NHS South Yorkshire ICB - 02P Barnsley
B91: 01D | C91: NHS Heywood, Middleton and Rochdale CCG | D91: NHS Greater Manchester ICB - 01D Heywood, Middleton and Rochdale | E91: No | F91: 0 | G91: No | H91: No | I91: No | N91: Y62 | O91: North West
B92: 00Y | C92: NHS Oldham CCG | D92: NHS Greater Manchester ICB - 00Y Oldham | E92: No | F92: 0 | G92: No | H92: No | I92: No | L92: Y62 | M92: QYG | N92: 99A | O92: NHS Liverpool CCG | P92: 85 | Q92: 559776 | R92: 85 | S92: 559776 | T92: 0 | U92: 0 | V92: 0 | X92: NHS Cheshire and Merseyside ICB - 99A Liverpool
B93: 00V | C93: NHS Bury CCG | D93: NHS Greater Manchester ICB - 00V Bury | E93: No | F93: 0 | G93: No | H93: No | I93: No | L93: Y62 | M93: QYG | N93: 27D | O93: NHS Cheshire CCG | P93: 79 | Q93: 792353 | R93: 79 | S93: 792353 | T93: 0 | U93: 0 | V93: 0 | X93: NHS Cheshire and Merseyside ICB - 27D Cheshire
B94: 00T | C94: NHS Bolton CCG | D94: NHS Greater Manchester ICB - 00T Bolton | E94: No | F94: 0 | G94: No | H94: No | I94: No | L94: Y62 | M94: QYG | N94: 12F | O94: NHS Wirral CCG | P94: 47 | Q94: 339312 | R94: 47 | S94: 339312 | T94: 0 | U94: 0 | V94: 0 | X94: NHS Cheshire and Merseyside ICB - 12F Wirral
B95: 02M | C95: NHS Fylde and Wyre CCG | D95: NHS Lancashire and South Cumbria ICB - 02M Fylde and Wyre | E95: No | F95: 0 | G95: No | H95: No | I95: No | L95: Y62 | M95: QYG | N95: 02E | O95: NHS Warrington CCG | P95: 26 | Q95: 222483 | R95: 26 | S95: 222483 | T95: 0 | U95: 0 | V95: 0 | X95: NHS Cheshire and Merseyside ICB - 02E Warrington
B96: 02G | C96: NHS West Lancashire CCG | D96: NHS Lancashire and South Cumbria ICB - 02G West Lancashire | E96: No | F96: 0 | G96: No | H96: No | I96: No | L96: Y62 | M96: QYG | N96: 01X | O96: NHS St Helens CCG | P96: 33 | Q96: 200083 | R96: 33 | S96: 200083 | T96: 0 | U96: 0 | V96: 0 | X96: NHS Cheshire and Merseyside ICB - 01X St Helens
B97: 01K | C97: NHS Morecambe Bay CCG | D97: NHS Lancashire and South Cumbria ICB - 01K Morecambe Bay | E97: No | F97: 0 | G97: No | H97: No | I97: No | L97: Y62 | M97: QYG | N97: 01V | O97: NHS Southport and Formby CCG | P97: 17 | Q97: 126407 | R97: 17 | S97: 126407 | T97: 0 | U97: 0 | V97: 0 | X97: NHS Cheshire and Merseyside ICB - 01V Southport and Formby
B98: 01E | C98: NHS Greater Preston CCG | D98: NHS Lancashire and South Cumbria ICB - 01E Greater Preston | E98: No | F98: 0 | G98: No | H98: No | I98: No | L98: Y62 | M98: QYG | N98: 01T | O98: NHS South Sefton CCG | P98: 29 | Q98: 156953 | R98: 29 | S98: 156953 | T98: 0 | U98: 0 | V98: 0 | X98: NHS Cheshire and Merseyside ICB - 01T South Sefton
B99: 01A | C99: NHS East Lancashire CCG | D99: NHS Lancashire and South Cumbria ICB - 01A East Lancashire | E99: No | F99: 0 | G99: No | H99: No | I99: No | L99: Y62 | M99: QYG | N99: 01J | O99: NHS Knowsley CCG | P99: 25 | Q99: 169629 | R99: 25 | S99: 169629 | T99: 0 | U99: 0 | V99: 0 | X99: NHS Cheshire and Merseyside ICB - 01J Knowsley
B100: 00X | C100: NHS Chorley and South Ribble CCG | D100: NHS Lancashire and South Cumbria ICB - 00X Chorley and South Ribble | E100: No | F100: 0 | G100: No | H100: No | I100: No | L100: Y62 | M100: QYG | N100: 01F | O100: NHS Halton CCG | P100: 14 | Q100: 135063 | R100: 14 | S100: 135063 | T100: 0 | U100: 0 | V100: 0 | X100: NHS Cheshire and Merseyside ICB - 01F Halton
B101: 00R | C101: NHS Blackpool CCG | D101: NHS Lancashire and South Cumbria ICB - 00R Blackpool | E101: No | F101: 0 | G101: No | H101: No | I101: No | L101: Y62 | M101: QOP | N101: 14L | O101: NHS Manchester CCG | P101: 85 | Q101: 684542 | R101: 85 | S101: 684542 | T101: 0 | U101: 0 | V101: 0 | X101: NHS Greater Manchester ICB - 14L Manchester
B102: 00Q | C102: NHS Blackburn with Darwen CCG | D102: NHS Lancashire and South Cumbria ICB - 00Q Blackburn With Darwen | E102: No | F102: 0 | G102: No | H102: No | I102: No | L102: Y62 | M102: QOP | N102: 02H | O102: NHS Wigan Borough CCG | P102: 57 | Q102: 336818 | R102: 57 | S102: 336818 | T102: 0 | U102: 0 | V102: 0 | X102: NHS Greater Manchester ICB - 02H Wigan Borough
B103: 06H | C103: NHS Cambridgeshire and Peterborough CCG | D103: NHS Cambridgeshire and Peterborough ICB - 06H | E103: Yes | F103: -0.01076384067 | G103: Yes | H103: Yes | I103: Yes | L103: Y62 | M103: QOP | N103: 02A | O103: NHS Trafford CCG | P103: 30 | Q103: 245214 | R103: 30 | S103: 245214 | T103: 0 | U103: 0 | V103: 0 | X103: NHS Greater Manchester ICB - 02A Trafford
B104: 26A | C104: NHS Norfolk and Waveney CCG | D104: NHS Norfolk and Waveney ICB - 26A | E104: No | F104: 0 | G104: No | H104: No | I104: No | L104: Y62 | M104: QOP | N104: 01Y | O104: NHS Tameside and Glossop CCG | P104: 37 | Q104: 252687 | R104: 31 | S104: 219600 | T104: -6 | U104: -33087 | V104: -0.1309406499 | X104: NHS Greater Manchester ICB - 01Y Tameside and Glossop
B105: 07H | C105: NHS West Essex CCG | D105: NHS Hertfordshire and West Essex ICB - 07H West Essex | E105: No | F105: 0 | G105: No | H105: No | I105: No | L105: Y62 | M105: QOP | N105: 01W | O105: NHS Stockport CCG | P105: 36 | Q105: 319439 | R105: 36 | S105: 319439 | T105: 0 | U105: 0 | V105: 0 | X105: NHS Greater Manchester ICB - 01W Stockport
B106: 06N | C106: NHS Herts Valley CCG | D106: NHS Hertfordshire and West Essex ICB - 06N Herts Valleys | E106: No | F106: 0 | G106: No | H106: No | I106: No | L106: Y62 | M106: QOP | N106: 01G | O106: NHS Salford CCG | P106: 38 | Q106: 296274 | R106: 38 | S106: 296274 | T106: 0 | U106: 0 | V106: 0 | X106: NHS Greater Manchester ICB - 01G Salford
B107: 06K | C107: NHS East and North Hertfordshire CCG | D107: NHS Hertfordshire and West Essex ICB - 06K East and North Hertfordshire | E107: No | F107: 0 | G107: No | H107: No | I107: No | L107: Y62 | M107: QOP | N107: 01D | O107: NHS Heywood, Middleton and Rochdale CCG | P107: 36 | Q107: 241329 | R107: 36 | S107: 241329 | T107: 0 | U107: 0 | V107: 0 | X107: NHS Greater Manchester ICB - 01D Heywood, Middleton and Rochdale
B108: 07K | C108: NHS West Suffolk CCG | D108: NHS Suffolk and North East Essex ICB - 07K West Suffolk | E108: No | F108: 0 | G108: No | H108: No | I108: No | L108: Y62 | M108: QOP | N108: 00Y | O108: NHS Oldham CCG | P108: 40 | Q108: 261501 | R108: 40 | S108: 261501 | T108: 0 | U108: 0 | V108: 0 | X108: NHS Greater Manchester ICB - 00Y Oldham
B109: 06T | C109: NHS North East Essex CCG | D109: NHS Suffolk and North East Essex ICB - 06T North East Essex | E109: No | F109: 0 | G109: No | H109: No | I109: No | L109: Y62 | M109: QOP | N109: 00V | O109: NHS Bury CCG | P109: 26 | Q109: 208302 | R109: 26 | S109: 208302 | T109: 0 | U109: 0 | V109: 0 | X109: NHS Greater Manchester ICB - 00V Bury
B110: 06L | C110: NHS Ipswich and East Suffolk CCG | D110: NHS Suffolk and North East Essex ICB - 06L Ipswich and East Suffolk | E110: No | F110: 0 | G110: No | H110: No | I110: No | L110: Y62 | M110: QOP | N110: 00T | O110: NHS Bolton CCG | P110: 49 | Q110: 318643 | R110: 49 | S110: 318643 | T110: 0 | U110: 0 | V110: 0 | X110: NHS Greater Manchester ICB - 00T Bolton
B111: M1J4Y | C111: NHS Bedfordshire, Luton and Milton Keynes CCG | D111: NHS Bedfordshire, Luton and Milton Keynes ICB - M1J4Y | E111: No | F111: 0 | G111: No | H111: No | I111: No | L111: Y62 | M111: QE1 | N111: 02M | O111: NHS Fylde and Wyre CCG | P111: 19 | Q111: 181846 | R111: 19 | S111: 181846 | T111: 0 | U111: 0 | V111: 0 | X111: NHS Lancashire and South Cumbria ICB - 02M Fylde and Wyre
B112: 99G | C112: NHS Southend CCG | D112: NHS Mid and South Essex ICB - 99G Southend | E112: No | F112: 0 | G112: No | H112: No | I112: No | L112: Y62 | M112: QE1 | N112: 02G | O112: NHS West Lancashire CCG | P112: 15 | Q112: 114284 | R112: 15 | S112: 114284 | T112: 0 | U112: 0 | V112: 0 | X112: NHS Lancashire and South Cumbria ICB - 02G West Lancashire
B113: 99F | C113: NHS Castle Point and Rochford CCG | D113: NHS Mid and South Essex ICB - 99F Castle Point and Rochford | E113: No | F113: 0 | G113: No | H113: No | I113: No | L113: Y62 | M113: QE1 | N113: 01K | O113: NHS Morecambe Bay CCG | P113: 32 | Q113: 351383 | R113: 32 | S113: 351383 | T113: 0 | U113: 0 | V113: 0 | X113: NHS Lancashire and South Cumbria ICB - 01K Morecambe Bay
B114: 99E | C114: NHS Basildon and Brentwood CCG | D114: NHS Mid and South Essex ICB - 99E Basildon and Brentwood | E114: No | F114: 0 | G114: No | H114: No | I114: No | L114: Y62 | M114: QE1 | N114: 01E | O114: NHS Greater Preston CCG | P114: 22 | Q114: 218803 | R114: 22 | S114: 218803 | T114: 0 | U114: 0 | V114: 0 | X114: NHS Lancashire and South Cumbria ICB - 01E Greater Preston
B115: 07G | C115: NHS Thurrock CCG | D115: NHS Mid and South Essex ICB - 07G Thurrock | E115: No | F115: 0 | G115: No | H115: No | I115: No | L115: Y62 | M115: QE1 | N115: 01A | O115: NHS East Lancashire CCG | P115: 48 | Q115: 394087 | R115: 48 | S115: 394087 | T115: 0 | U115: 0 | V115: 0 | X115: NHS Lancashire and South Cumbria ICB - 01A East Lancashire
B116: 06Q | C116: NHS Mid Essex CCG | D116: NHS Mid and South Essex ICB - 06Q Mid Essex | E116: No | F116: 0 | G116: No | H116: No | I116: No | L116: Y62 | M116: QE1 | N116: 00X | O116: NHS Chorley and South Ribble CCG | P116: 26 | Q116: 187690 | R116: 26 | S116: 187690 | T116: 0 | U116: 0 | V116: 0 | X116: NHS Lancashire and South Cumbria ICB - 00X Chorley and South Ribble
B117: B2M3M | C117: NHS Coventry and Warwickshire CCG | D117: NHS Coventry and Warwickshire ICB - B2M3M | E117: =IF(F117<>0,"Yes","No") -> No | F117: 0 | G117: No | H117: No | I117: No | L117: Y62 | M117: QE1 | N117: 00R | O117: NHS Blackpool CCG | P117: 19 | Q117: 175422 | R117: 19 | S117: 175422 | T117: 0 | U117: 0 | V117: 0 | X117: NHS Lancashire and South Cumbria ICB - 00R Blackpool
B118: D2P2L | C118: =INDEX(O:O,MATCH(B118,N:N,0)) -> NHS Black Country and West Birmingham CCG | D118: NHS Black Country ICB - D2P2L | E118: Yes | F118: =VLOOKUP(B118,N:V,9,FALSE) -> -0.1520647396 | G118: Yes | H118: No | I118: Yes | L118: Y62 | M118: QE1 | N118: 00Q | O118: NHS Blackburn with Darwen CCG | P118: 22 | Q118: 180648 | R118: 22 | S118: 180648 | T118: 0 | U118: 0 | V118: 0 | X118: NHS Lancashire and South Cumbria ICB - 00Q Blackburn With Darwen
B119: 52R | C119: NHS Nottingham and Nottinghamshire CCG | D119: NHS Nottingham and Nottinghamshire ICB - 52R Nottingham & Nottinghamshire | E119: No | F119: 0 | G119: No | H119: No | I119: No | N119: Y61 | O119: East of England
B120: 02Q | C120: NHS Bassetlaw CCG | D120: NHS Nottingham and Nottinghamshire ICB - 02Q Bassetlaw | E120: No | F120: 0 | G120: No | H120: No | I120: No | J120: Moved Region, from North East and Yorkshire to Midlands | L120: Y61 | M120: QUE | N120: 06H | O120: NHS Cambridgeshire and Peterborough CCG | P120: 85 | Q120: 1015251 | R120: 84 | S120: 1004323 | T120: -1 | U120: -10928 | V120: -0.01076384067 | X120: NHS Cambridgeshire and Peterborough ICB - 06H
B121: 78H | C121: NHS Northamptonshire CCG | D121: NHS Northamptonshire ICB - 78H | E121: Yes | F121: 0.01371969784 | G121: Yes | H121: Yes | I121: Yes | L121: Y61 | M121: QMM | N121: 26A | O121: NHS Norfolk and Waveney CCG | P121: 105 | Q121: 1079483 | R121: 105 | S121: 1079483 | T121: 0 | U121: 0 | V121: 0 | X121: NHS Norfolk and Waveney ICB - 26A
B122: M2L0M | C122: NHS Shropshire and Telford and Wrekin CCG | D122: NHS Shropshire, Telford and Wrekin ICB - M2L0M | E122: No | F122: 0 | G122: No | H122: No | I122: No | L122: Y61 | M122: QM7 | N122: 07H | O122: NHS West Essex CCG | P122: 31 | Q122: 323775 | R122: 31 | S122: 323775 | T122: 0 | U122: 0 | V122: 0 | X122: NHS Hertfordshire and West Essex ICB - 07H West Essex
B123: 05W | C123: NHS Stoke on Trent CCG | D123: NHS Staffordshire and Stoke-on-Trent ICB - 05W Stoke on Trent | E123: No | F123: 0 | G123: No | H123: No | I123: No | L123: Y61 | M123: QM7 | N123: 06N | O123: NHS Herts Valley CCG | P123: 54 | Q123: 666989 | R123: 54 | S123: 666989 | T123: 0 | U123: 0 | V123: 0 | X123: NHS Hertfordshire and West Essex ICB - 06N Herts Valleys
B124: 05V | C124: NHS Stafford and Surrounds CCG | D124: NHS Staffordshire and Stoke-on-Trent ICB - 05V Stafford and Surrounds | E124: No | F124: 0 | G124: No | H124: No | I124: No | L124: Y61 | M124: QM7 | N124: 06K | O124: NHS East and North Hertfordshire CCG | P124: 52 | Q124: 615516 | R124: 52 | S124: 615516 | T124: 0 | U124: 0 | V124: 0 | X124: NHS Hertfordshire and West Essex ICB - 06K East and North Hertfordshire
B125: 05Q | C125: NHS South East Staffordshire and Seisdon Peninsula CCG | D125: NHS Staffordshire and Stoke-on-Trent ICB - 05Q SE Staffs and Seisdon Peninsula | E125: No | F125: 0 | G125: No | H125: No | I125: No | L125: Y61 | M125: QJG | N125: 07K | O125: NHS West Suffolk CCG | P125: 24 | Q125: 261227 | R125: 24 | S125: 261227 | T125: 0 | U125: 0 | V125: 0 | X125: NHS Suffolk and North East Essex ICB - 07K West Suffolk
B126: 05G | C126: NHS North Staffordshire CCG | D126: NHS Staffordshire and Stoke-on-Trent ICB - 05G North Staffordshire | E126: No | F126: 0 | G126: No | H126: No | I126: No | L126: Y61 | M126: QJG | N126: 06T | O126: NHS North East Essex CCG | P126: 32 | Q126: 362832 | R126: 32 | S126: 362832 | T126: 0 | U126: 0 | V126: 0 | X126: NHS Suffolk and North East Essex ICB - 06T North East Essex
B127: 05D | C127: NHS East Staffordshire CCG | D127: NHS Staffordshire and Stoke-on-Trent ICB - 05D East Staffordshire | E127: No | F127: 0 | G127: No | H127: No | I127: No | L127: Y61 | M127: QJG | N127: 06L | O127: NHS Ipswich and East Suffolk CCG | P127: 37 | Q127: 418129 | R127: 37 | S127: 418129 | T127: 0 | U127: 0 | V127: 0 | X127: NHS Suffolk and North East Essex ICB - 06L Ipswich and East Suffolk
B128: 04Y | C128: NHS Cannock Chase CCG | D128: NHS Staffordshire and Stoke-on-Trent ICB - 04Y Cannock Chase | E128: No | F128: 0 | G128: No | H128: No | I128: No | L128: Y61 | M128: QHG | N128: M1J4Y | O128: NHS Bedfordshire, Luton and Milton Keynes CCG | P128: 96 | Q128: 1065759 | R128: 96 | S128: 1065759 | T128: 0 | U128: 0 | V128: 0 | X128: NHS Bedfordshire, Luton and Milton Keynes ICB - M1J4Y
B129: 04V | C129: NHS West Leicestershire CCG | D129: NHS Leicester, Leicestershire and Rutland ICB - 04V West Leicestershire | E129: No | F129: 0 | G129: No | H129: No | I129: No | L129: Y61 | M129: QH8 | N129: 99G | O129: NHS Southend CCG | P129: 25 | Q129: 190295 | R129: 25 | S129: 190295 | T129: 0 | U129: 0 | V129: 0 | X129: NHS Mid and South Essex ICB - 99G Southend
B130: 04C | C130: NHS Leicester City CCG | D130: NHS Leicester, Leicestershire and Rutland ICB - 04C Leicester City | E130: No | F130: 0 | G130: No | H130: No | I130: No | L130: Y61 | M130: QH8 | N130: 99F | O130: NHS Castle Point and Rochford CCG | P130: 23 | Q130: 185981 | R130: 23 | S130: 185981 | T130: 0 | U130: 0 | V130: 0 | X130: NHS Mid and South Essex ICB - 99F Castle Point and Rochford
B131: 03W | C131: NHS East Leicestershire and Rutland CCG | D131: NHS Leicester, Leicestershire and Rutland ICB - 03W East Leicestershire & Rutland | E131: Yes | F131: 0.01090702187 | G131: Yes | H131: No | I131: Yes | L131: Y61 | M131: QH8 | N131: 99E | O131: NHS Basildon and Brentwood CCG | P131: 35 | Q131: 285167 | R131: 35 | S131: 285167 | T131: 0 | U131: 0 | V131: 0 | X131: NHS Mid and South Essex ICB - 99E Basildon and Brentwood
B132: 71E | C132: NHS Lincolnshire CCG | D132: NHS Lincolnshire ICB - 71E | E132: Yes | F132: -0.004642353716 | G132: Yes | H132: No | I132: Yes | L132: Y61 | M132: QH8 | N132: 07G | O132: NHS Thurrock CCG | P132: 27 | Q132: 183822 | R132: 27 | S132: 183822 | T132: 0 | U132: 0 | V132: 0 | X132: NHS Mid and South Essex ICB - 07G Thurrock
B133: 15M | C133: NHS Derby and Derbyshire CCG | D133: NHS Derby and Derbyshire ICB - 15M | E133: Yes | F133: 0.03085276609 | G133: Yes | H133: Yes | I133: Yes | L133: Y61 | M133: QH8 | N133: 06Q | O133: NHS Mid Essex CCG | P133: 40 | Q133: 403707 | R133: 40 | S133: 403707 | T133: 0 | U133: 0 | V133: 0 | X133: NHS Mid and South Essex ICB - 06Q Mid Essex
B134: 15E | C134: NHS Birmingham and Solihull CCG | D134: NHS Birmingham and Solihull ICB - 15E | E134: Yes | F134: 0.1695833327 | G134: Yes | H134: No | I134: Yes | N134: Y60 | O134: Midlands
B135: 18C | C135: NHS Herefordshire CCG | D135: NHS Herefordshire and Worcestershire ICB - 18C | E135: No | F135: 0 | G135: No | H135: No | I135: No | L135: Y60 | M135: QWU | N135: B2M3M | O135: NHS Coventry and Warwickshire CCG | P135: 119 | Q135: 1042097 | R135: 119 | S135: 1042097 | T135: 0 | U135: 0 | V135: 0 | X135: NHS Coventry and Warwickshire ICB - B2M3M
B136: 92A | C136: NHS Surrey Heartlands CCG | D136: NHS Surrey Heartlands ICB - 92A | E136: No | F136: 0 | G136: No | H136: No | I136: No | L136: Y60 | M136: QUA | N136: D2P2L | O136: NHS Black Country and West Birmingham CCG | P136: 207 | Q136: 1497816 | R136: 181 | S136: 1270051 | T136: -26 | U136: -227765 | V136: -0.1520647396 | X136: NHS Black Country ICB - D2P2L
B137: 15A | C137: NHS Berkshire West CCG | D137: NHS Buckinghamshire, Oxfordshire and Berkshire West ICB - 15A Berkshire West | E137: No | F137: 0 | G137: No | H137: No | I137: No | L137: Y60 | M137: QT1 | N137: 52R | O137: NHS Nottingham and Nottinghamshire CCG | P137: 127 | Q137: 1111754 | R137: 127 | S137: 1111754 | T137: 0 | U137: 0 | V137: 0 | X137: NHS Nottingham and Nottinghamshire ICB - 52R Nottingham & Nottinghamshire
B138: 14Y | C138: NHS Buckinghamshire CCG | D138: NHS Buckinghamshire, Oxfordshire and Berkshire West ICB - 14Y Buckinghamshire | E138: No | F138: 0 | G138: No | H138: No | I138: No | L138: Y60 | M138: QT1 | N138: 02Q | O138: NHS Bassetlaw CCG | P138: 9 | Q138: 121331 | R138: 9 | S138: 121331 | T138: 0 | U138: 0 | V138: 0 | X138: NHS Nottingham and Nottinghamshire ICB - 02Q Bassetlaw
B139: 10Q | C139: NHS Oxfordshire CCG | D139: NHS Buckinghamshire, Oxfordshire and Berkshire West ICB - 10Q Oxfordshire | E139: No | F139: 0 | G139: No | H139: No | I139: No | L139: Y60 | M139: QPM | N139: 78H | O139: NHS Northamptonshire CCG | P139: 68 | Q139: 796519 | R139: 69 | S139: 807447 | T139: 1 | U139: 10928 | V139: 0.01371969784 | X139: NHS Northamptonshire ICB - 78H
B140: D9Y0V | C140: NHS Hampshire, Southampton and Isle of Wight CCG | D140: NHS Hampshire and Isle Of Wight ICB - D9Y0V Hampshire, Southampton & Isle of Wight | E140: No | F140: 0 | G140: No | H140: No | I140: =E140 -> No | L140: Y60 | M140: QOC | N140: M2L0M | O140: NHS Shropshire and Telford and Wrekin CCG | P140: 52 | Q140: 516452 | R140: 52 | S140: 516452 | T140: 0 | U140: 0 | V140: 0 | X140: NHS Shropshire, Telford and Wrekin ICB - M2L0M
B141: 10R | C141: NHS Portsmouth CCG | D141: NHS Hampshire and Isle Of Wight ICB - 10R Portsmouth | E141: No | F141: 0 | G141: No | H141: No | I141: No | L141: Y60 | M141: QNC | N141: 05W | O141: NHS Stoke on Trent CCG | P141: 38 | Q141: 296761 | R141: 38 | S141: 296761 | T141: 0 | U141: 0 | V141: 0 | X141: NHS Staffordshire and Stoke-on-Trent ICB - 05W Stoke on Trent
B142: 97R | C142: NHS East Sussex CCG | D142: NHS Sussex ICB - 97R East Sussex | E142: No | F142: 0 | G142: No | H142: No | I142: No | L142: Y60 | M142: QNC | N142: 05V | O142: NHS Stafford and Surrounds CCG | P142: 14 | Q142: 151477 | R142: 14 | S142: 151477 | T142: 0 | U142: 0 | V142: 0 | X142: NHS Staffordshire and Stoke-on-Trent ICB - 05V Stafford and Surrounds
B143: 70F | C143: NHS West Sussex CCG | D143: NHS Sussex ICB - 70F West Sussex | E143: No | F143: 0 | G143: No | H143: No | I143: No | L143: Y60 | M143: QNC | N143: 05Q | O143: NHS South East Staffordshire and Seisdon Peninsula CCG | P143: 23 | Q143: 217564 | R143: 23 | S143: 217564 | T143: 0 | U143: 0 | V143: 0 | X143: NHS Staffordshire and Stoke-on-Trent ICB - 05Q SE Staffs and Seisdon Peninsula
B144: 09D | C144: NHS Brighton and Hove CCG | D144: NHS Sussex ICB - 09D Brighton and Hove | E144: No | F144: 0 | G144: No | H144: No | I144: No | L144: Y60 | M144: QNC | N144: 05G | O144: NHS North Staffordshire CCG | P144: 30 | Q144: 217702 | R144: 30 | S144: 217702 | T144: 0 | U144: 0 | V144: 0 | X144: NHS Staffordshire and Stoke-on-Trent ICB - 05G North Staffordshire
B145: D4U1Y | C145: NHS Frimley CCG | D145: NHS Frimley ICB - D4U1Y | E145: No | F145: 0 | G145: No | H145: No | I145: No | L145: Y60 | M145: QNC | N145: 05D | O145: NHS East Staffordshire CCG | P145: 18 | Q145: 147604 | R145: 18 | S145: 147604 | T145: 0 | U145: 0 | V145: 0 | X145: NHS Staffordshire and Stoke-on-Trent ICB - 05D East Staffordshire
B146: 91Q | C146: NHS Kent and Medway CCG | D146: NHS Kent and Medway ICB - 91Q | E146: No | F146: 0 | G146: No | H146: No | I146: No | L146: Y60 | M146: QNC | N146: 04Y | O146: NHS Cannock Chase CCG | P146: 22 | Q146: 135845 | R146: 22 | S146: 135845 | T146: 0 | U146: 0 | V146: 0 | X146: NHS Staffordshire and Stoke-on-Trent ICB - 04Y Cannock Chase
B147: 11J | C147: NHS Dorset CCG | D147: NHS Dorset ICB - 11J | E147: No | F147: 0 | G147: No | H147: No | I147: No | L147: Y60 | M147: QK1 | N147: 04V | O147: NHS West Leicestershire CCG | P147: 46 | Q147: 406863 | R147: 46 | S147: 406863 | T147: 0 | U147: 0 | V147: 0 | X147: NHS Leicester, Leicestershire and Rutland ICB - 04V West Leicestershire
B148: 15C | C148: NHS Bristol, North Somerset and South Gloucestershire CCG | D148: NHS Bristol, North Somerset and South Gloucestershire ICB - 15C | E148: No | F148: 0 | G148: No | H148: No | I148: No | L148: Y60 | M148: QK1 | N148: 04C | O148: NHS Leicester City CCG | P148: 57 | Q148: 422104 | R148: 57 | S148: 422104 | T148: 0 | U148: 0 | V148: 0 | X148: NHS Leicester, Leicestershire and Rutland ICB - 04C Leicester City
B149: 11N | C149: NHS Kernow CCG | D149: NHS Cornwall and The Isles Of Scilly ICB - 11N | E149: No | F149: 0 | G149: No | H149: No | I149: No | L149: Y60 | M149: QK1 | N149: 03W | O149: NHS East Leicestershire and Rutland CCG | P149: 31 | Q149: 342715 | R149: 32 | S149: 346453 | T149: 1 | U149: 3738 | V149: 0.01090702187 | X149: NHS Leicester, Leicestershire and Rutland ICB - 03W East Leicestershire & Rutland
B150: 11X | C150: NHS Somerset CCG | D150: NHS Somerset ICB - 11X | E150: No | F150: 0 | G150: No | H150: No | I150: No | L150: Y60 | M150: QJM | N150: 71E | O150: NHS Lincolnshire CCG | P150: 85 | Q150: 805195 | R150: 84 | S150: 801457 | T150: -1 | U150: -3738 | V150: -0.004642353716 | X150: NHS Lincolnshire ICB - 71E
B151: 11M | C151: NHS Gloucestershire CCG | D151: NHS Gloucestershire ICB - 11M | E151: No | F151: 0 | G151: No | H151: No | I151: No | L151: Y60 | M151: QJ2 | N151: 15M | O151: NHS Derby and Derbyshire CCG | P151: 112 | Q151: 1072416 | R151: 118 | S151: 1105503 | T151: 6 | U151: 33087 | V151: 0.03085276609 | X151: NHS Derby and Derbyshire ICB - 15M
B152: 92G | C152: NHS Bath and North East Somerset, Swindon and Wiltshire CCG | D152: NHS Bath and North East Somerset, Swindon and Wiltshire ICB - 92G | E152: No | F152: 0 | G152: No | H152: No | I152: No | L152: Y60 | M152: QHL | N152: 15E | O152: NHS Birmingham and Solihull CCG | P152: 158 | Q152: 1343086 | R152: 184 | S152: 1570851 | T152: 26 | U152: 227765 | V152: 0.1695833327 | X152: NHS Birmingham and Solihull ICB - 15E
B153: 15N | C153: NHS Devon CCG | D153: NHS Devon ICB - 15N | E153: No | F153: 0 | G153: No | H153: No | I153: No | L153: Y60 | M153: QGH | N153: 18C | O153: NHS Herefordshire CCG | P153: 80 | Q153: 812712 | R153: 80 | S153: 812712 | T153: 0 | U153: 0 | V153: 0 | X153: NHS Herefordshire and Worcestershire ICB - 18C
B154: 36L | C154: NHS South West London CCG | D154: NHS South West London ICB - 36L | E154: No | F154: 0 | G154: No | H154: No | I154: No | N154: Y59 | O154: South East
B155: W2U3Z | C155: NHS North West London CCG | D155: NHS North West London ICB - W2U3Z | E155: No | F155: 0 | G155: No | H155: No | I155: No | L155: Y59 | M155: QXU | N155: 92A | O155: NHS Surrey Heartlands CCG | P155: 104 | Q155: 1120562 | R155: 104 | S155: 1120562 | T155: 0 | U155: 0 | V155: 0 | X155: NHS Surrey Heartlands ICB - 92A
B156: 93C | C156: NHS North Central London CCG | D156: NHS North Central London ICB - 93C | E156: No | F156: 0 | G156: No | H156: No | I156: No | L156: Y59 | M156: QU9 | N156: 15A | O156: NHS Berkshire West CCG | P156: 44 | Q156: 564073 | R156: 44 | S156: 564073 | T156: 0 | U156: 0 | V156: 0 | X156: NHS Buckinghamshire, Oxfordshire and Berkshire West ICB - 15A Berkshire West
B157: A3A8R | C157: NHS North East London CCG | D157: NHS North East London ICB - A3A8R | E157: No | F157: 0 | G157: No | H157: No | I157: No | L157: Y59 | M157: QU9 | N157: 14Y | O157: NHS Buckinghamshire CCG | P157: 48 | Q157: 576122 | R157: 48 | S157: 576122 | T157: 0 | U157: 0 | V157: 0 | X157: NHS Buckinghamshire, Oxfordshire and Berkshire West ICB - 14Y Buckinghamshire
B158: 72Q | C158: NHS South East London CCG | D158: NHS South East London ICB - 72Q | E158: No | F158: 0 | G158: No | H158: No | I158: No | L158: Y59 | M158: QU9 | N158: 10Q | O158: NHS Oxfordshire CCG | P158: 67 | Q158: 788074 | R158: 67 | S158: 788074 | T158: 0 | U158: 0 | V158: 0 | X158: NHS Buckinghamshire, Oxfordshire and Berkshire West ICB - 10Q Oxfordshire
L159: Y59 | M159: QRL | N159: D9Y0V | O159: NHS Hampshire, Southampton and Isle of Wight CCG | P159: 133 | Q159: 1680088 | R159: 133 | S159: 1680088 | T159: 0 | U159: 0 | V159: 0 | X159: NHS Hampshire and Isle Of Wight ICB - D9Y0V Hampshire, Southampton & Isle of Wight
L160: Y59 | M160: QRL | N160: 10R | O160: NHS Portsmouth CCG | P160: 14 | Q160: 228764 | R160: 14 | S160: 228764 | T160: 0 | U160: 0 | V160: 0 | X160: NHS Hampshire and Isle Of Wight ICB - 10R Portsmouth
L161: Y59 | M161: QNX | N161: 97R | O161: NHS East Sussex CCG | P161: 54 | Q161: 565546 | R161: 54 | S161: 565546 | T161: 0 | U161: 0 | V161: 0 | X161: NHS Sussex ICB - 97R East Sussex
L162: Y59 | M162: QNX | N162: 70F | O162: NHS West Sussex CCG | P162: 75 | Q162: 918077 | R162: 75 | S162: 918077 | T162: 0 | U162: 0 | V162: 0 | X162: NHS Sussex ICB - 70F West Sussex
L163: Y59 | M163: QNX | N163: 09D | O163: NHS Brighton and Hove CCG | P163: 33 | Q163: 326918 | R163: 33 | S163: 326918 | T163: 0 | U163: 0 | V163: 0 | X163: NHS Sussex ICB - 09D Brighton and Hove
L164: Y59 | M164: QNQ | N164: D4U1Y | O164: NHS Frimley CCG | P164: 72 | Q164: 806690 | R164: 72 | S164: 806690 | T164: 0 | U164: 0 | V164: 0 | X164: NHS Frimley ICB - D4U1Y
L165: Y59 | M165: QKS | N165: 91Q | O165: NHS Kent and Medway CCG | P165: 195 | Q165: 1952120 | R165: 195 | S165: 1952120 | T165: 0 | U165: 0 | V165: 0 | X165: NHS Kent and Medway ICB - 91Q
N166: Y58 | O166: South West
L167: Y58 | M167: QVV | N167: 11J | O167: NHS Dorset CCG | P167: 73 | Q167: 816948 | R167: 73 | S167: 816948 | T167: 0 | U167: 0 | V167: 0 | X167: NHS Dorset ICB - 11J
L168: Y58 | M168: QUY | N168: 15C | O168: NHS Bristol, North Somerset and South Gloucestershire CCG | P168: 79 | Q168: 1049891 | R168: 79 | S168: 1049891 | T168: 0 | U168: 0 | V168: 0 | X168: NHS Bristol, North Somerset and South Gloucestershire ICB - 15C
L169: Y58 | M169: QT6 | N169: 11N | O169: NHS Kernow CCG | P169: 58 | Q169: 596230 | R169: 58 | S169: 596230 | T169: 0 | U169: 0 | V169: 0 | X169: NHS Cornwall and The Isles Of Scilly ICB - 11N
L170: Y58 | M170: QSL | N170: 11X | O170: NHS Somerset CCG | P170: 64 | Q170: 592863 | R170: 64 | S170: 592863 | T170: 0 | U170: 0 | V170: 0 | X170: NHS Somerset ICB - 11X
L171: Y58 | M171: QR1 | N171: 11M | O171: NHS Gloucestershire CCG | P171: 72 | Q171: 671720 | R171: 72 | S171: 671720 | T171: 0 | U171: 0 | V171: 0 | X171: NHS Gloucestershire ICB - 11M
L172: Y58 | M172: QOX | N172: 92G | O172: NHS Bath and North East Somerset, Swindon and Wiltshire CCG | P172: 92 | Q172: 974548 | R172: 92 | S172: 974548 | T172: 0 | U172: 0 | V172: 0 | X172: NHS Bath and North East Somerset, Swindon and Wiltshire ICB - 92G
L173: Y58 | M173: QJK | N173: 15N | O173: NHS Devon CCG | P173: 122 | Q173: 1264796 | R173: 122 | S173: 1264796 | T173: 0 | U173: 0 | V173: 0 | X173: NHS Devon ICB - 15N
N174: Y56 | O174: London
L175: Y56 | M175: QWE | N175: 36L | O175: NHS South West London CCG | P175: 182 | Q175: 1719922 | R175: 182 | S175: 1719922 | T175: 0 | U175: 0 | V175: 0 | X175: NHS South West London ICB - 36L
L176: Y56 | M176: QRV | N176: W2U3Z | O176: NHS North West London CCG | P176: 354 | Q176: 2719514 | R176: 354 | S176: 2719514 | T176: 0 | U176: 0 | V176: 0 | X176: NHS North West London ICB - W2U3Z
L177: Y56 | M177: QMJ | N177: 93C | O177: NHS North Central London CCG | P177: 183 | Q177: 1724517 | R177: 183 | S177: 1724517 | T177: 0 | U177: 0 | V177: 0 | X177: NHS North Central London ICB - 93C
L178: Y56 | M178: QMF | N178: A3A8R | O178: NHS North East London CCG | P178: 275 | Q178: 2325553 | R178: 275 | S178: 2325553 | T178: 0 | U178: 0 | V178: 0 | X178: NHS North East London ICB - A3A8R
L179: Y56 | M179: QKK | N179: 72Q | O179: NHS South East London CCG | P179: 202 | Q179: 2038754 | R179: 202 | S179: 2038754 | T179: 0 | U179: 0 | V179: 0 | X179: NHS South East London ICB - 72Q

Sheet Calc - Sparklines (hidden)
A1: Selected CCG | C1: =Selected_Org_Name -> England
A2: Selected Org Code | C2: =Selected_Org_Code -> EN | E2: =IFERROR(IF(ISNUMBER( INDEX(INDIRECT(#REF!), MATCH('Calc - Sparklines'!$C$1,INDIRECT(#REF!),0), MATCH('Calc - Sparklines'!#REF!,INDIRECT(#REF!),0)-11))=FALSE,NA(), INDEX(INDIRECT(#REF!), MATCH('Calc - Sparklines'!$C$1,INDIRECT(#REF!),0), MATCH('Calc - Sparklines'!#REF!,INDIRECT(#REF!),0)-11)),NA()) ->  | F2: =ISNUMBER(#REF!) -> FALSE | G2: =ISNUMBER(#REF!) -> FALSE | H2: =ISNUMBER(#REF!) -> FALSE | I2: =ISNUMBER(#REF!) -> FALSE | J2: =ISNUMBER(#REF!) -> FALSE | K2: =ISNUMBER(#REF!) -> FALSE | L2: =ISNUMBER(#REF!) -> FALSE | M2: =ISNUMBER(#REF!) -> FALSE | N2: =ISNUMBER(#REF!) -> FALSE | O2: =ISNUMBER(#REF!) -> FALSE
E3: 11 | F3: 10 | G3: 9 | H3: 8 | I3: 7 | J3: 6 | K3: 5 | L3: 4 | M3: 3 | N3: 2 | O3: 1 | P3: 0 | Q3: Other measures | V3: =IFERROR(IF(ISNUMBER( INDEX(INDIRECT($Z38), MATCH('Calc - Sparklines'!$C$1,INDIRECT($AA38),0), MATCH('Calc - Sparklines'!$D38,INDIRECT($AB38),0)-N$3))=FALSE,NA(), INDEX(INDIRECT($Z38), MATCH('Calc - Sparklines'!$C$1,INDIRECT($AA38),0), MATCH('Calc - Sparklines'!$D38,INDIRECT($AB38),0)-N$3)),NA())
E4: 10 | F4: 10 | G4: 10 | H4: 10 | I4: 10 | J4: 10 | K4: 10 | L4: 8 | M4: 6 | N4: 4 | O4: 2 | P4: 0 | Q4: Finance measures
Q6: p | R6: p
I7: =OFFSET('Calc - Sparklines'!$P$14,,-'Calc - Sparklines'!$S$14,,-'Calc - Sparklines'!$R$14) -> 
AH8: Finance metrics, only include for Q4 actuals
AH9: Yearly metrics, compare against the previous period or the previous but one period
C10: Indicator | D10: Latest Period | E10: Period 1 | F10: Period 2 | G10: Period 3 | H10: Period 4 | I10: Period 5 | J10: Period 6 | K10: Period 7 | L10: Period 8 | M10: Period 9 | N10: Period 10 | O10: Period 11 | P10: Period 12 | R10: Available data points | S10: Periods out of date | T10: Latest value | U10: Previous Value | V10: Change | W10: Sparkline Named range | X10: Include sparkline? | Z10: Data Range | AA10: Organisation Range | AB10: Period Range
A11: Children and Young people Mental Health | B11: Children and Young people Mental Health | E11: =IFERROR(IF(ISNUMBER( INDEX(INDIRECT($Z11), MATCH('Calc - Sparklines'!$C$2,INDIRECT($AA11),0), MATCH('Calc - Sparklines'!$D11,INDIRECT($AB11),0)-E$3))=FALSE,NA(), INDEX(INDIRECT($Z11), MATCH('Calc - Sparklines'!$C$2,INDIRECT($AA11),0), MATCH('Calc - Sparklines'!$D11,INDIRECT($AB11),0)-E$3)),NA()) ->  | F11: =IFERROR(IF(ISNUMBER( INDEX(INDIRECT($Z11), MATCH('Calc - Sparklines'!$C$2,INDIRECT($AA11),0), MATCH('Calc - Sparklines'!$D11,INDIRECT($AB11),0)-F$3))=FALSE,NA(), INDEX(INDIRECT($Z11), MATCH('Calc - Sparklines'!$C$2,INDIRECT($AA11),0), MATCH('Calc - Sparklines'!$D11,INDIRECT($AB11),0)-F$3)),NA()) ->  | R11: =IF(COUNTA(K11:P11)-COUNTIF(K11:P11,"#N/A")<3, 0, COUNTA(K11:P11)) -> 0 | S11: =IF(P11="N/A",IF(O11="N/A",2,1),0) -> 0 | T11: =OFFSET(P11,,-S11) -> 0 | U11: =IF(ISERROR(O11),IF(ISERROR(N11),IF(ISERROR(M11),IF(ISERROR(L11),IF(ISERROR(K11),IF(ISERROR(J11),IF(ISERROR(I11),IF(ISERROR(H11),IF(ISERROR(G11),IF(ISERROR(F11),IF(ISERROR(E11), NA(), E11),F11),G11),H11),I11),J11),K11),L11),M11),N11),O11) -> 0 | V11: =IF(D11="","",IFERROR(IF(T11>U11,"▲", IF(T11<U11,"▼","◄►")),"N/A")) ->  | X11: =IF(ISNA(T11),"N/A",IF(R11<=2,"N/A","")) -> N/A | AD11: Heading
A12: CYP_i_a | B12: CYP(i.a) | C12: No of CYP accessing treatment by NHS funded community services (at least one contact) | D12: ='CYP(i_a)_FINAL CALC'!B6 -> Q4 2022/23 | E12: =IF('Calc - Sparklines'!$C$2="EN",IFERROR(IF(ISNUMBER( INDEX(INDIRECT($Z12), MATCH('Calc - Sparklines'!$AF12,INDIRECT($AA12),0), MATCH('Calc - Sparklines'!$D12,INDIRECT($AB12),0)-E$3))=FALSE,NA(), INDEX(INDIRECT($Z12), MATCH('Calc - Sparklines'!$AF12,INDIRECT($AA12),0), MATCH('Calc - Sparklines'!$D12,INDIRECT($AB12),0)-E$3)),NA()),IFERROR(IF(ISNUMBER( INDEX(INDIRECT($Z12), MATCH('Calc - Sparklines'!$C$2,INDIRECT($AA12),0), MATCH('Calc - Sparklines'!$D12,INDIRECT($AB12),0)-E$3))=FALSE,NA(), INDEX(INDIRECT($Z12), MATCH('Calc - Sparklines'!$C$2,INDIRECT($AA12),0), MATCH('Calc - Sparklines'!$D12,INDIRECT($AB12),0)-E$3)),NA())) ->  | F12: =IF('Calc - Sparklines'!$C$2="EN",IFERROR(IF(ISNUMBER( INDEX(INDIRECT($Z12), MATCH('Calc - Sparklines'!$AF12,INDIRECT($AA12),0), MATCH('Calc - Sparklines'!$D12,INDIRECT($AB12),0)-F$3))=FALSE,NA(), INDEX(INDIRECT($Z12), MATCH('Calc - Sparklines'!$AF12,INDIRECT($AA12),0), MATCH('Calc - Sparklines'!$D12,INDIRECT($AB12),0)-F$3)),NA()),IFERROR(IF(ISNUMBER( INDEX(INDIRECT($Z12), MATCH('Calc - Sparklines'!$C$2,INDIRECT($AA12),0), MATCH('Calc - Sparklines'!$D12,INDIRECT($AB12),0)-F$3))=FALSE,NA(), INDEX(INDIRECT($Z12), MATCH('Calc - Sparklines'!$C$2,INDIRECT($AA12),0), MATCH('Calc - Sparklines'!$D12,INDIRECT($AB12),0)-F$3)),NA())) ->  | G12: =IF('Calc - Sparklines'!$C$2="EN",IFERROR(IF(ISNUMBER( INDEX(INDIRECT($Z12), MATCH('Calc - Sparklines'!$AF12,INDIRECT($AA12),0), MATCH('Calc - Sparklines'!$D12,INDIRECT($AB12),0)-G$3))=FALSE,NA(), INDEX(INDIRECT($Z12), MATCH('Calc - Sparklines'!$AF12,INDIRECT($AA12),0), MATCH('Calc - Sparklines'!$D12,INDIRECT($AB12),0)-G$3)),NA()),IFERROR(IF(ISNUMBER( INDEX(INDIRECT($Z12), MATCH('Calc - Sparklines'!$C$2,INDIRECT($AA12),0), MATCH('Calc - Sparklines'!$D12,INDIRECT($AB12),0)-G$3))=FALSE,NA(), INDEX(INDIRECT($Z12), MATCH('Calc - Sparklines'!$C$2,INDIRECT($AA12),0), MATCH('Calc - Sparklines'!$D12,INDIRECT($AB12),0)-G$3)),NA())) ->  | H12: =IF('Calc - Sparklines'!$C$2="EN",IFERROR(IF(ISNUMBER( INDEX(INDIRECT($Z12), MATCH('Calc - Sparklines'!$AF12,INDIRECT($AA12),0), MATCH('Calc - Sparklines'!$D12,INDIRECT($AB12),0)-H$3))=FALSE,NA(), INDEX(INDIRECT($Z12), MATCH('Calc - Sparklines'!$AF12,INDIRECT($AA12),0), MATCH('Calc - Sparklines'!$D12,INDIRECT($AB12),0)-H$3)),NA()),IFERROR(IF(ISNUMBER( INDEX(INDIRECT($Z12), MATCH('Calc - Sparklines'!$C$2,INDIRECT($AA12),0), MATCH('Calc - Sparklines'!$D12,INDIRECT($AB12),0)-H$3))=FALSE,NA(), INDEX(INDIRECT($Z12), MATCH('Calc - Sparklines'!$C$2,INDIRECT($AA12),0), MATCH('Calc - Sparklines'!$D12,INDIRECT($AB12),0)-H$3)),NA())) -> 589705 | I12: =IF('Calc - Sparklines'!$C$2="EN",IFERROR(IF(ISNUMBER( INDEX(INDIRECT($Z12), MATCH('Calc - Sparklines'!$AF12,INDIRECT($AA12),0), MATCH('Calc - Sparklines'!$D12,INDIRECT($AB12),0)-I$3))=FALSE,NA(), INDEX(INDIRECT($Z12), MATCH('Calc - Sparklines'!$AF12,INDIRECT($AA12),0), MATCH('Calc - Sparklines'!$D12,INDIRECT($AB12),0)-I$3)),NA()),IFERROR(IF(ISNUMBER( INDEX(INDIRECT($Z12), MATCH('Calc - Sparklines'!$C$2,INDIRECT($AA12),0), MATCH('Calc - Sparklines'!$D12,INDIRECT($AB12),0)-I$3))=FALSE,NA(), INDEX(INDIRECT($Z12), MATCH('Calc - Sparklines'!$C$2,INDIRECT($AA12),0), MATCH('Calc - Sparklines'!$D12,INDIRECT($AB12),0)-I$3)),NA())) -> 605012 | J12: =IF('Calc - Sparklines'!$C$2="EN",IFERROR(IF(ISNUMBER( INDEX(INDIRECT($Z12), MATCH('Calc - Sparklines'!$AF12,INDIRECT($AA12),0), MATCH('Calc - Sparklines'!$D12,INDIRECT($AB12),0)-J$3))=FALSE,NA(), INDEX(INDIRECT($Z12), MATCH('Calc - Sparklines'!$AF12,INDIRECT($AA12),0), MATCH('Calc - Sparklines'!$D12,INDIRECT($AB12),0)-J$3)),NA()),IFERROR(IF(ISNUMBER( INDEX(INDIRECT($Z12), MATCH('Calc - Sparklines'!$C$2,INDIRECT($AA12),0), MATCH('Calc - Sparklines'!$D12,INDIRECT($AB12),0)-J$3))=FALSE,NA(), INDEX(INDIRECT($Z12), MATCH('Calc - Sparklines'!$C$2,INDIRECT($AA12),0), MATCH('Calc - Sparklines'!$D12,INDIRECT($AB12),0)-J$3)),NA())) -> 628454 | K12: =IF('Calc - Sparklines'!$C$2="EN",IFERROR(IF(ISNUMBER( INDEX(INDIRECT($Z12), MATCH('Calc - Sparklines'!$AF12,INDIRECT($AA12),0), MATCH('Calc - Sparklines'!$D12,INDIRECT($AB12),0)-K$3))=FALSE,NA(), INDEX(INDIRECT($Z12), MATCH('Calc - Sparklines'!$AF12,INDIRECT($AA12),0), MATCH('Calc - Sparklines'!$D12,INDIRECT($AB12),0)-K$3)),NA()),IFERROR(IF(ISNUMBER( INDEX(INDIRECT($Z12), MATCH('Calc - Sparklines'!$C$2,INDIRECT($AA12),0), MATCH('Calc - Sparklines'!$D12,INDIRECT($AB12),0)-K$3))=FALSE,NA(), INDEX(INDIRECT($Z12), MATCH('Calc - Sparklines'!$C$2,INDIRECT($AA12),0), MATCH('Calc - Sparklines'!$D12,INDIRECT($AB12),0)-K$3)),NA())) -> 640476 | L12: =IF('Calc - Sparklines'!$C$2="EN",IFERROR(IF(ISNUMBER( INDEX(INDIRECT($Z12), MATCH('Calc - Sparklines'!$AF12,INDIRECT($AA12),0), MATCH('Calc - Sparklines'!$D12,INDIRECT($AB12),0)-L$3))=FALSE,NA(), INDEX(INDIRECT($Z12), MATCH('Calc - Sparklines'!$AF12,INDIRECT($AA12),0), MATCH('Calc - Sparklines'!$D12,INDIRECT($AB12),0)-L$3)),NA()),IFERROR(IF(ISNUMBER( INDEX(INDIRECT($Z12), MATCH('Calc - Sparklines'!$C$2,INDIRECT($AA12),0), MATCH('Calc - Sparklines'!$D12,INDIRECT($AB12),0)-L$3))=FALSE,NA(), INDEX(INDIRECT($Z12), MATCH('Calc - Sparklines'!$C$2,INDIRECT($AA12),0), MATCH('Calc - Sparklines'!$D12,INDIRECT($AB12),0)-L$3)),NA())) -> 674485 | M12: =IF('Calc - Sparklines'!$C$2="EN",IFERROR(IF(ISNUMBER( INDEX(INDIRECT($Z12), MATCH('Calc - Sparklines'!$AF12,INDIRECT($AA12),0), MATCH('Calc - Sparklines'!$D12,INDIRECT($AB12),0)-M$3))=FALSE,NA(), INDEX(INDIRECT($Z12), MATCH('Calc - Sparklines'!$AF12,INDIRECT($AA12),0), MATCH('Calc - Sparklines'!$D12,INDIRECT($AB12),0)-M$3)),NA()),IFERROR(IF(ISNUMBER( INDEX(INDIRECT($Z12), MATCH('Calc - Sparklines'!$C$2,INDIRECT($AA12),0), MATCH('Calc - Sparklines'!$D12,INDIRECT($AB12),0)-M$3))=FALSE,NA(), INDEX(INDIRECT($Z12), MATCH('Calc - Sparklines'!$C$2,INDIRECT($AA12),0), MATCH('Calc - Sparklines'!$D12,INDIRECT($AB12),0)-M$3)),NA())) -> 691935 | N12: =IF('Calc - Sparklines'!$C$2="EN",IFERROR(IF(ISNUMBER( INDEX(INDIRECT($Z12), MATCH('Calc - Sparklines'!$AF12,INDIRECT($AA12),0), MATCH('Calc - Sparklines'!$D12,INDIRECT($AB12),0)-N$3))=FALSE,NA(), INDEX(INDIRECT($Z12), MATCH('Calc - Sparklines'!$AF12,INDIRECT($AA12),0), MATCH('Calc - Sparklines'!$D12,INDIRECT($AB12),0)-N$3)),NA()),IFERROR(IF(ISNUMBER( INDEX(INDIRECT($Z12), MATCH('Calc - Sparklines'!$C$2,INDIRECT($AA12),0), MATCH('Calc - Sparklines'!$D12,INDIRECT($AB12),0)-N$3))=FALSE,NA(), INDEX(INDIRECT($Z12), MATCH('Calc - Sparklines'!$C$2,INDIRECT($AA12),0), MATCH('Calc - Sparklines'!$D12,INDIRECT($AB12),0)-N$3)),NA())) -> 697350 | O12: =IF('Calc - Sparklines'!$C$2="EN",IFERROR(IF(ISNUMBER( INDEX(INDIRECT($Z12), MATCH('Calc - Sparklines'!$AF12,INDIRECT($AA12),0), MATCH('Calc - Sparklines'!$D12,INDIRECT($AB12),0)-O$3))=FALSE,NA(), INDEX(INDIRECT($Z12), MATCH('Calc - Sparklines'!$AF12,INDIRECT($AA12),0), MATCH('Calc - Sparklines'!$D12,INDIRECT($AB12),0)-O$3)),NA()),IFERROR(IF(ISNUMBER( INDEX(INDIRECT($Z12), MATCH('Calc - Sparklines'!$C$2,INDIRECT($AA12),0), MATCH('Calc - Sparklines'!$D12,INDIRECT($AB12),0)-O$3))=FALSE,NA(), INDEX(INDIRECT($Z12), MATCH('Calc - Sparklines'!$C$2,INDIRECT($AA12),0), MATCH('Calc - Sparklines'!$D12,INDIRECT($AB12),0)-O$3)),NA())) -> 704311 | P12: =IF('Calc - Sparklines'!$C$2="EN",IFERROR(IF(ISNUMBER( INDEX(INDIRECT($Z12), MATCH('Calc - Sparklines'!$AF12,INDIRECT($AA12),0), MATCH('Calc - Sparklines'!$D12,INDIRECT($AB12),0)-P$3))=FALSE,NA(), INDEX(INDIRECT($Z12), MATCH('Calc - Sparklines'!$AF12,INDIRECT($AA12),0), MATCH('Calc - Sparklines'!$D12,INDIRECT($AB12),0)-P$3)),NA()),IFERROR(IF(ISNUMBER( INDEX(INDIRECT($Z12), MATCH('Calc - Sparklines'!$C$2,INDIRECT($AA12),0), MATCH('Calc - Sparklines'!$D12,INDIRECT($AB12),0)-P$3))=FALSE,NA(), INDEX(INDIRECT($Z12), MATCH('Calc - Sparklines'!$C$2,INDIRECT($AA12),0), MATCH('Calc - Sparklines'!$D12,INDIRECT($AB12),0)-P$3)),NA())) -> 721506 | R12: =IF(COUNTA(K12:P12)-COUNTIF(K12:P12,"#N/A")<3, 0, COUNTA(K12:P12)) -> 6 | S12: =IF(P12="N/A",IF(O12="N/A",2,1),0) -> 0 | T12: =OFFSET(P12,,-S12) -> 721506 | U12: =IF(ISERROR(O12),IF(ISERROR(N12),IF(ISERROR(M12),IF(ISERROR(L12),IF(ISERROR(K12),IF(ISERROR(J12),IF(ISERROR(I12),IF(ISERROR(H12),IF(ISERROR(G12),IF(ISERROR(F12),IF(ISERROR(E12), NA(), E12),F12),G12),H12),I12),J12),K12),L12),M12),N12),O12) -> 704311 | V12: =IF(D12="","",IFERROR(IF(T12>U12,"▲", IF(T12<U12,"▼","◄►")),"N/A")) -> ▲ | W12: Sparkline65 | Z12: Data_Table_CYP_i_a | AA12: Data_Orgs_CYP_i_a | AB12: Data_Dates_CYP_i_a | AF12: =IF('Calc - Sparklines'!$C$2="EN",IF(ISNUMBER(MATCH('Calc - Sparklines'!$C$2,INDIRECT($AA12),0)),"EN","England"),0) -> England | AG12: =(MATCH('Calc - Sparklines'!$C$2,INDIRECT($AA12),0)) ->  | AH12: =IFERROR(P12/L12-1,"") -> 0.06971392989 | AI12: =IFERROR(P12/H12-1,"") -> 0.2235032771
A13: CYP_ii_a | B13: CYP(ii.a) | C13: % of CYP with eating disorders seen within 1 week (urgent) | D13: ='CYP(ii_a)_FINAL CALC'!B6 -> Q4 2022/23 | E13: =IF('Calc - Sparklines'!$C$2="EN",IFERROR(IF(ISNUMBER( INDEX(INDIRECT($Z13), MATCH('Calc - Sparklines'!$AF13,INDIRECT($AA13),0), MATCH('Calc - Sparklines'!$D13,INDIRECT($AB13),0)-E$3))=FALSE,NA(), INDEX(INDIRECT($Z13), MATCH('Calc - Sparklines'!$AF13,INDIRECT($AA13),0), MATCH('Calc - Sparklines'!$D13,INDIRECT($AB13),0)-E$3)),NA()),IFERROR(IF(ISNUMBER( INDEX(INDIRECT($Z13), MATCH('Calc - Sparklines'!$C$2,INDIRECT($AA13),0), MATCH('Calc - Sparklines'!$D13,INDIRECT($AB13),0)-E$3))=FALSE,NA(), INDEX(INDIRECT($Z13), MATCH('Calc - Sparklines'!$C$2,INDIRECT($AA13),0), MATCH('Calc - Sparklines'!$D13,INDIRECT($AB13),0)-E$3)),NA())) -> 0.8780487805 | F13: =IF('Calc - Sparklines'!$C$2="EN",IFERROR(IF(ISNUMBER( INDEX(INDIRECT($Z13), MATCH('Calc - Sparklines'!$AF13,INDIRECT($AA13),0), MATCH('Calc - Sparklines'!$D13,INDIRECT($AB13),0)-F$3))=FALSE,NA(), INDEX(INDIRECT($Z13), MATCH('Calc - Sparklines'!$AF13,INDIRECT($AA13),0), MATCH('Calc - Sparklines'!$D13,INDIRECT($AB13),0)-F$3)),NA()),IFERROR(IF(ISNUMBER( INDEX(INDIRECT($Z13), MATCH('Calc - Sparklines'!$C$2,INDIRECT($AA13),0), MATCH('Calc - Sparklines'!$D13,INDIRECT($AB13),0)-F$3))=FALSE,NA(), INDEX(INDIRECT($Z13), MATCH('Calc - Sparklines'!$C$2,INDIRECT($AA13),0), MATCH('Calc - Sparklines'!$D13,INDIRECT($AB13),0)-F$3)),NA())) -> 0.8528 | G13: =IF('Calc - Sparklines'!$C$2="EN",IFERROR(IF(ISNUMBER( INDEX(INDIRECT($Z13), MATCH('Calc - Sparklines'!$AF13,INDIRECT($AA13),0), MATCH('Calc - Sparklines'!$D13,INDIRECT($AB13),0)-G$3))=FALSE,NA(), INDEX(INDIRECT($Z13), MATCH('Calc - Sparklines'!$AF13,INDIRECT($AA13),0), MATCH('Calc - Sparklines'!$D13,INDIRECT($AB13),0)-G$3)),NA()),IFERROR(IF(ISNUMBER( INDEX(INDIRECT($Z13), MATCH('Calc - Sparklines'!$C$2,INDIRECT($AA13),0), MATCH('Calc - Sparklines'!$D13,INDIRECT($AB13),0)-G$3))=FALSE,NA(), INDEX(INDIRECT($Z13), MATCH('Calc - Sparklines'!$C$2,INDIRECT($AA13),0), MATCH('Calc - Sparklines'!$D13,INDIRECT($AB13),0)-G$3)),NA())) -> 0.7271428571 | H13: =IF('Calc - Sparklines'!$C$2="EN",IFERROR(IF(ISNUMBER( INDEX(INDIRECT($Z13), MATCH('Calc - Sparklines'!$AF13,INDIRECT($AA13),0), MATCH('Calc - Sparklines'!$D13,INDIRECT($AB13),0)-H$3))=FALSE,NA(), INDEX(INDIRECT($Z13), MATCH('Calc - Sparklines'!$AF13,INDIRECT($AA13),0), MATCH('Calc - Sparklines'!$D13,INDIRECT($AB13),0)-H$3)),NA()),IFERROR(IF(ISNUMBER( INDEX(INDIRECT($Z13), MATCH('Calc - Sparklines'!$C$2,INDIRECT($AA13),0), MATCH('Calc - Sparklines'!$D13,INDIRECT($AB13),0)-H$3))=FALSE,NA(), INDEX(INDIRECT($Z13), MATCH('Calc - Sparklines'!$C$2,INDIRECT($AA13),0), MATCH('Calc - Sparklines'!$D13,INDIRECT($AB13),0)-H$3)),NA())) -> 0.7051 | I13: =IF('Calc - Sparklines'!$C$2="EN",IFERROR(IF(ISNUMBER( INDEX(INDIRECT($Z13), MATCH('Calc - Sparklines'!$AF13,INDIRECT($AA13),0), MATCH('Calc - Sparklines'!$D13,INDIRECT($AB13),0)-I$3))=FALSE,NA(), INDEX(INDIRECT($Z13), MATCH('Calc - Sparklines'!$AF13,INDIRECT($AA13),0), MATCH('Calc - Sparklines'!$D13,INDIRECT($AB13),0)-I$3)),NA()),IFERROR(IF(ISNUMBER( INDEX(INDIRECT($Z13), MATCH('Calc - Sparklines'!$C$2,INDIRECT($AA13),0), MATCH('Calc - Sparklines'!$D13,INDIRECT($AB13),0)-I$3))=FALSE,NA(), INDEX(INDIRECT($Z13), MATCH('Calc - Sparklines'!$C$2,INDIRECT($AA13),0), MATCH('Calc - Sparklines'!$D13,INDIRECT($AB13),0)-I$3)),NA())) -> 0.6103 | J13: =IF('Calc - Sparklines'!$C$2="EN",IFERROR(IF(ISNUMBER( INDEX(INDIRECT($Z13), MATCH('Calc - Sparklines'!$AF13,INDIRECT($AA13),0), MATCH('Calc - Sparklines'!$D13,INDIRECT($AB13),0)-J$3))=FALSE,NA(), INDEX(INDIRECT($Z13), MATCH('Calc - Sparklines'!$AF13,INDIRECT($AA13),0), MATCH('Calc - Sparklines'!$D13,INDIRECT($AB13),0)-J$3)),NA()),IFERROR(IF(ISNUMBER( INDEX(INDIRECT($Z13), MATCH('Calc - Sparklines'!$C$2,INDIRECT($AA13),0), MATCH('Calc - Sparklines'!$D13,INDIRECT($AB13),0)-J$3))=FALSE,NA(), INDEX(INDIRECT($Z13), MATCH('Calc - Sparklines'!$C$2,INDIRECT($AA13),0), MATCH('Calc - Sparklines'!$D13,INDIRECT($AB13),0)-J$3)),NA())) -> 0.626394052 | K13: =IF('Calc - Sparklines'!$C$2="EN",IFERROR(IF(ISNUMBER( INDEX(INDIRECT($Z13), MATCH('Calc - Sparklines'!$AF13,INDIRECT($AA13),0), MATCH('Calc - Sparklines'!$D13,INDIRECT($AB13),0)-K$3))=FALSE,NA(), INDEX(INDIRECT($Z13), MATCH('Calc - Sparklines'!$AF13,INDIRECT($AA13),0), MATCH('Calc - Sparklines'!$D13,INDIRECT($AB13),0)-K$3)),NA()),IFERROR(IF(ISNUMBER( INDEX(INDIRECT($Z13), MATCH('Calc - Sparklines'!$C$2,INDIRECT($AA13),0), MATCH('Calc - Sparklines'!$D13,INDIRECT($AB13),0)-K$3))=FALSE,NA(), INDEX(INDIRECT($Z13), MATCH('Calc - Sparklines'!$C$2,INDIRECT($AA13),0), MATCH('Calc - Sparklines'!$D13,INDIRECT($AB13),0)-K$3)),NA())) -> 0.5901386749 | L13: =IF('Calc - Sparklines'!$C$2="EN",IFERROR(IF(ISNUMBER( INDEX(INDIRECT($Z13), MATCH('Calc - Sparklines'!$AF13,INDIRECT($AA13),0), MATCH('Calc - Sparklines'!$D13,INDIRECT($AB13),0)-L$3))=FALSE,NA(), INDEX(INDIRECT($Z13), MATCH('Calc - Sparklines'!$AF13,INDIRECT($AA13),0), MATCH('Calc - Sparklines'!$D13,INDIRECT($AB13),0)-L$3)),NA()),IFERROR(IF(ISNUMBER( INDEX(INDIRECT($Z13), MATCH('Calc - Sparklines'!$C$2,INDIRECT($AA13),0), MATCH('Calc - Sparklines'!$D13,INDIRECT($AB13),0)-L$3))=FALSE,NA(), INDEX(INDIRECT($Z13), MATCH('Calc - Sparklines'!$C$2,INDIRECT($AA13),0), MATCH('Calc - Sparklines'!$D13,INDIRECT($AB13),0)-L$3)),NA())) -> 0.6186440678 | M13: =IF('Calc - Sparklines'!$C$2="EN",IFERROR(IF(ISNUMBER( INDEX(INDIRECT($Z13), MATCH('Calc - Sparklines'!$AF13,INDIRECT($AA13),0), MATCH('Calc - Sparklines'!$D13,INDIRECT($AB13),0)-M$3))=FALSE,NA(), INDEX(INDIRECT($Z13), MATCH('Calc - Sparklines'!$AF13,INDIRECT($AA13),0), MATCH('Calc - Sparklines'!$D13,INDIRECT($AB13),0)-M$3)),NA()),IFERROR(IF(ISNUMBER( INDEX(INDIRECT($Z13), MATCH('Calc - Sparklines'!$C$2,INDIRECT($AA13),0), MATCH('Calc - Sparklines'!$D13,INDIRECT($AB13),0)-M$3))=FALSE,NA(), INDEX(INDIRECT($Z13), MATCH('Calc - Sparklines'!$C$2,INDIRECT($AA13),0), MATCH('Calc - Sparklines'!$D13,INDIRECT($AB13),0)-M$3)),NA())) -> 0.6786389414 | N13: =IF('Calc - Sparklines'!$C$2="EN",IFERROR(IF(ISNUMBER( INDEX(INDIRECT($Z13), MATCH('Calc - Sparklines'!$AF13,INDIRECT($AA13),0), MATCH('Calc - Sparklines'!$D13,INDIRECT($AB13),0)-N$3))=FALSE,NA(), INDEX(INDIRECT($Z13), MATCH('Calc - Sparklines'!$AF13,INDIRECT($AA13),0), MATCH('Calc - Sparklines'!$D13,INDIRECT($AB13),0)-N$3)),NA()),IFERROR(IF(ISNUMBER( INDEX(INDIRECT($Z13), MATCH('Calc - Sparklines'!$C$2,INDIRECT($AA13),0), MATCH('Calc - Sparklines'!$D13,INDIRECT($AB13),0)-N$3))=FALSE,NA(), INDEX(INDIRECT($Z13), MATCH('Calc - Sparklines'!$C$2,INDIRECT($AA13),0), MATCH('Calc - Sparklines'!$D13,INDIRECT($AB13),0)-N$3)),NA())) ->  | O13: =IF('Calc - Sparklines'!$C$2="EN",IFERROR(IF(ISNUMBER( INDEX(INDIRECT($Z13), MATCH('Calc - Sparklines'!$AF13,INDIRECT($AA13),0), MATCH('Calc - Sparklines'!$D13,INDIRECT($AB13),0)-O$3))=FALSE,NA(), INDEX(INDIRECT($Z13), MATCH('Calc - Sparklines'!$AF13,INDIRECT($AA13),0), MATCH('Calc - Sparklines'!$D13,INDIRECT($AB13),0)-O$3)),NA()),IFERROR(IF(ISNUMBER( INDEX(INDIRECT($Z13), MATCH('Calc - Sparklines'!$C$2,INDIRECT($AA13),0), MATCH('Calc - Sparklines'!$D13,INDIRECT($AB13),0)-O$3))=FALSE,NA(), INDEX(INDIRECT($Z13), MATCH('Calc - Sparklines'!$C$2,INDIRECT($AA13),0), MATCH('Calc - Sparklines'!$D13,INDIRECT($AB13),0)-O$3)),NA())) -> 0.7747368253 | P13: =IF('Calc - Sparklines'!$C$2="EN",IFERROR(IF(ISNUMBER( INDEX(INDIRECT($Z13), MATCH('Calc - Sparklines'!$AF13,INDIRECT($AA13),0), MATCH('Calc - Sparklines'!$D13,INDIRECT($AB13),0)-P$3))=FALSE,NA(), INDEX(INDIRECT($Z13), MATCH('Calc - Sparklines'!$AF13,INDIRECT($AA13),0), MATCH('Calc - Sparklines'!$D13,INDIRECT($AB13),0)-P$3)),NA()),IFERROR(IF(ISNUMBER( INDEX(INDIRECT($Z13), MATCH('Calc - Sparklines'!$C$2,INDIRECT($AA13),0), MATCH('Calc - Sparklines'!$D13,INDIRECT($AB13),0)-P$3))=FALSE,NA(), INDEX(INDIRECT($Z13), MATCH('Calc - Sparklines'!$C$2,INDIRECT($AA13),0), MATCH('Calc - Sparklines'!$D13,INDIRECT($AB13),0)-P$3)),NA())) -> 0.7866184448 | R13: 6 | S13: =IF(P13="N/A",IF(O13="N/A",2,1),0) -> 0 | T13: 0.7866184448 | U13: 0.7747368253 | V13: ▲ | W13: Sparkline54 | Z13: Data_Table_CYP_ii_a | AA13: Data_Orgs_CYP_ii_a | AB13: Data_Dates_CYP_ii_a | AD13: National and regional measure only | AE13: National and regional measure only | AF13: =IF('Calc - Sparklines'!$C$2="EN",IF(ISNUMBER(MATCH('Calc - Sparklines'!$C$2,INDIRECT($AA13),0)),"EN","ENG"),0) -> ENG | AG13: =(MATCH('Calc - Sparklines'!$C$2,INDIRECT($AA13),0)) ->  | AH13: =IFERROR(P13-L13,"") -> 0.167974377 | AI13: =IFERROR(P13-H13,"") -> 0.08151844485
A14: CYP_ii_b | B14: CYP(ii.b) | C14: % of CYP with eating disorders seen within 4 weeks (routine) | D14: ='CYP(ii_b)_FINAL CALC'!B6 -> Q4 2022/23 | E14: =IF('Calc - Sparklines'!$C$2="EN",IFERROR(IF(ISNUMBER( INDEX(INDIRECT($Z14), MATCH('Calc - Sparklines'!$AF14,INDIRECT($AA14),0), MATCH('Calc - Sparklines'!$D14,INDIRECT($AB14),0)-E$3))=FALSE,NA(), INDEX(INDIRECT($Z14), MATCH('Calc - Sparklines'!$AF14,INDIRECT($AA14),0), MATCH('Calc - Sparklines'!$D14,INDIRECT($AB14),0)-E$3)),NA()),IFERROR(IF(ISNUMBER( INDEX(INDIRECT($Z14), MATCH('Calc - Sparklines'!$C$2,INDIRECT($AA14),0), MATCH('Calc - Sparklines'!$D14,INDIRECT($AB14),0)-E$3))=FALSE,NA(), INDEX(INDIRECT($Z14), MATCH('Calc - Sparklines'!$C$2,INDIRECT($AA14),0), MATCH('Calc - Sparklines'!$D14,INDIRECT($AB14),0)-E$3)),NA())) -> 0.8678544915 | F14: =IF('Calc - Sparklines'!$C$2="EN",IFERROR(IF(ISNUMBER( INDEX(INDIRECT($Z14), MATCH('Calc - Sparklines'!$AF14,INDIRECT($AA14),0), MATCH('Calc - Sparklines'!$D14,INDIRECT($AB14),0)-F$3))=FALSE,NA(), INDEX(INDIRECT($Z14), MATCH('Calc - Sparklines'!$AF14,INDIRECT($AA14),0), MATCH('Calc - Sparklines'!$D14,INDIRECT($AB14),0)-F$3)),NA()),IFERROR(IF(ISNUMBER( INDEX(INDIRECT($Z14), MATCH('Calc - Sparklines'!$C$2,INDIRECT($AA14),0), MATCH('Calc - Sparklines'!$D14,INDIRECT($AB14),0)-F$3))=FALSE,NA(), INDEX(INDIRECT($Z14), MATCH('Calc - Sparklines'!$C$2,INDIRECT($AA14),0), MATCH('Calc - Sparklines'!$D14,INDIRECT($AB14),0)-F$3)),NA())) -> 0.8955522239 | G14: =IF('Calc - Sparklines'!$C$2="EN",IFERROR(IF(ISNUMBER( INDEX(INDIRECT($Z14), MATCH('Calc - Sparklines'!$AF14,INDIRECT($AA14),0), MATCH('Calc - Sparklines'!$D14,INDIRECT($AB14),0)-G$3))=FALSE,NA(), INDEX(INDIRECT($Z14), MATCH('Calc - Sparklines'!$AF14,INDIRECT($AA14),0), MATCH('Calc - Sparklines'!$D14,INDIRECT($AB14),0)-G$3)),NA()),IFERROR(IF(ISNUMBER( INDEX(INDIRECT($Z14), MATCH('Calc - Sparklines'!$C$2,INDIRECT($AA14),0), MATCH('Calc - Sparklines'!$D14,INDIRECT($AB14),0)-G$3))=FALSE,NA(), INDEX(INDIRECT($Z14), MATCH('Calc - Sparklines'!$C$2,INDIRECT($AA14),0), MATCH('Calc - Sparklines'!$D14,INDIRECT($AB14),0)-G$3)),NA())) -> 0.8265465936 | H14: =IF('Calc - Sparklines'!$C$2="EN",IFERROR(IF(ISNUMBER( INDEX(INDIRECT($Z14), MATCH('Calc - Sparklines'!$AF14,INDIRECT($AA14),0), MATCH('Calc - Sparklines'!$D14,INDIRECT($AB14),0)-H$3))=FALSE,NA(), INDEX(INDIRECT($Z14), MATCH('Calc - Sparklines'!$AF14,INDIRECT($AA14),0), MATCH('Calc - Sparklines'!$D14,INDIRECT($AB14),0)-H$3)),NA()),IFERROR(IF(ISNUMBER( INDEX(INDIRECT($Z14), MATCH('Calc - Sparklines'!$C$2,INDIRECT($AA14),0), MATCH('Calc - Sparklines'!$D14,INDIRECT($AB14),0)-H$3))=FALSE,NA(), INDEX(INDIRECT($Z14), MATCH('Calc - Sparklines'!$C$2,INDIRECT($AA14),0), MATCH('Calc - Sparklines'!$D14,INDIRECT($AB14),0)-H$3)),NA())) -> 0.7266 | I14: =IF('Calc - Sparklines'!$C$2="EN",IFERROR(IF(ISNUMBER( INDEX(INDIRECT($Z14), MATCH('Calc - Sparklines'!$AF14,INDIRECT($AA14),0), MATCH('Calc - Sparklines'!$D14,INDIRECT($AB14),0)-I$3))=FALSE,NA(), INDEX(INDIRECT($Z14), MATCH('Calc - Sparklines'!$AF14,INDIRECT($AA14),0), MATCH('Calc - Sparklines'!$D14,INDIRECT($AB14),0)-I$3)),NA()),IFERROR(IF(ISNUMBER( INDEX(INDIRECT($Z14), MATCH('Calc - Sparklines'!$C$2,INDIRECT($AA14),0), MATCH('Calc - Sparklines'!$D14,INDIRECT($AB14),0)-I$3))=FALSE,NA(), INDEX(INDIRECT($Z14), MATCH('Calc - Sparklines'!$C$2,INDIRECT($AA14),0), MATCH('Calc - Sparklines'!$D14,INDIRECT($AB14),0)-I$3)),NA())) -> 0.7265 | J14: =IF('Calc - Sparklines'!$C$2="EN",IFERROR(IF(ISNUMBER( INDEX(INDIRECT($Z14), MATCH('Calc - Sparklines'!$AF14,INDIRECT($AA14),0), MATCH('Calc - Sparklines'!$D14,INDIRECT($AB14),0)-J$3))=FALSE,NA(), INDEX(INDIRECT($Z14), MATCH('Calc - Sparklines'!$AF14,INDIRECT($AA14),0), MATCH('Calc - Sparklines'!$D14,INDIRECT($AB14),0)-J$3)),NA()),IFERROR(IF(ISNUMBER( INDEX(INDIRECT($Z14), MATCH('Calc - Sparklines'!$C$2,INDIRECT($AA14),0), MATCH('Calc - Sparklines'!$D14,INDIRECT($AB14),0)-J$3))=FALSE,NA(), INDEX(INDIRECT($Z14), MATCH('Calc - Sparklines'!$C$2,INDIRECT($AA14),0), MATCH('Calc - Sparklines'!$D14,INDIRECT($AB14),0)-J$3)),NA())) -> 0.6476149549 | K14: =IF('Calc - Sparklines'!$C$2="EN",IFERROR(IF(ISNUMBER( INDEX(INDIRECT($Z14), MATCH('Calc - Sparklines'!$AF14,INDIRECT($AA14),0), MATCH('Calc - Sparklines'!$D14,INDIRECT($AB14),0)-K$3))=FALSE,NA(), INDEX(INDIRECT($Z14), MATCH('Calc - Sparklines'!$AF14,INDIRECT($AA14),0), MATCH('Calc - Sparklines'!$D14,INDIRECT($AB14),0)-K$3)),NA()),IFERROR(IF(ISNUMBER( INDEX(INDIRECT($Z14), MATCH('Calc - Sparklines'!$C$2,INDIRECT($AA14),0), MATCH('Calc - Sparklines'!$D14,INDIRECT($AB14),0)-K$3))=FALSE,NA(), INDEX(INDIRECT($Z14), MATCH('Calc - Sparklines'!$C$2,INDIRECT($AA14),0), MATCH('Calc - Sparklines'!$D14,INDIRECT($AB14),0)-K$3)),NA())) -> 0.6642276423 | L14: =IF('Calc - Sparklines'!$C$2="EN",IFERROR(IF(ISNUMBER( INDEX(INDIRECT($Z14), MATCH('Calc - Sparklines'!$AF14,INDIRECT($AA14),0), MATCH('Calc - Sparklines'!$D14,INDIRECT($AB14),0)-L$3))=FALSE,NA(), INDEX(INDIRECT($Z14), MATCH('Calc - Sparklines'!$AF14,INDIRECT($AA14),0), MATCH('Calc - Sparklines'!$D14,INDIRECT($AB14),0)-L$3)),NA()),IFERROR(IF(ISNUMBER( INDEX(INDIRECT($Z14), MATCH('Calc - Sparklines'!$C$2,INDIRECT($AA14),0), MATCH('Calc - Sparklines'!$D14,INDIRECT($AB14),0)-L$3))=FALSE,NA(), INDEX(INDIRECT($Z14), MATCH('Calc - Sparklines'!$C$2,INDIRECT($AA14),0), MATCH('Calc - Sparklines'!$D14,INDIRECT($AB14),0)-L$3)),NA())) -> 0.6410684474 | M14: =IF('Calc - Sparklines'!$C$2="EN",IFERROR(IF(ISNUMBER( INDEX(INDIRECT($Z14), MATCH('Calc - Sparklines'!$AF14,INDIRECT($AA14),0), MATCH('Calc - Sparklines'!$D14,INDIRECT($AB14),0)-M$3))=FALSE,NA(), INDEX(INDIRECT($Z14), MATCH('Calc - Sparklines'!$AF14,INDIRECT($AA14),0), MATCH('Calc - Sparklines'!$D14,INDIRECT($AB14),0)-M$3)),NA()),IFERROR(IF(ISNUMBER( INDEX(INDIRECT($Z14), MATCH('Calc - Sparklines'!$C$2,INDIRECT($AA14),0), MATCH('Calc - Sparklines'!$D14,INDIRECT($AB14),0)-M$3))=FALSE,NA(), INDEX(INDIRECT($Z14), MATCH('Calc - Sparklines'!$C$2,INDIRECT($AA14),0), MATCH('Calc - Sparklines'!$D14,INDIRECT($AB14),0)-M$3)),NA())) -> 0.6909011754 | N14: =IF('Calc - Sparklines'!$C$2="EN",IFERROR(IF(ISNUMBER( INDEX(INDIRECT($Z14), MATCH('Calc - Sparklines'!$AF14,INDIRECT($AA14),0), MATCH('Calc - Sparklines'!$D14,INDIRECT($AB14),0)-N$3))=FALSE,NA(), INDEX(INDIRECT($Z14), MATCH('Calc - Sparklines'!$AF14,INDIRECT($AA14),0), MATCH('Calc - Sparklines'!$D14,INDIRECT($AB14),0)-N$3)),NA()),IFERROR(IF(ISNUMBER( INDEX(INDIRECT($Z14), MATCH('Calc - Sparklines'!$C$2,INDIRECT($AA14),0), MATCH('Calc - Sparklines'!$D14,INDIRECT($AB14),0)-N$3))=FALSE,NA(), INDEX(INDIRECT($Z14), MATCH('Calc - Sparklines'!$C$2,INDIRECT($AA14),0), MATCH('Calc - Sparklines'!$D14,INDIRECT($AB14),0)-N$3)),NA())) ->  | O14: =IF('Calc - Sparklines'!$C$2="EN",IFERROR(IF(ISNUMBER( INDEX(INDIRECT($Z14), MATCH('Calc - Sparklines'!$AF14,INDIRECT($AA14),0), MATCH('Calc - Sparklines'!$D14,INDIRECT($AB14),0)-O$3))=FALSE,NA(), INDEX(INDIRECT($Z14), MATCH('Calc - Sparklines'!$AF14,INDIRECT($AA14),0), MATCH('Calc - Sparklines'!$D14,INDIRECT($AB14),0)-O$3)),NA()),IFERROR(IF(ISNUMBER( INDEX(INDIRECT($Z14), MATCH('Calc - Sparklines'!$C$2,INDIRECT($AA14),0), MATCH('Calc - Sparklines'!$D14,INDIRECT($AB14),0)-O$3))=FALSE,NA(), INDEX(INDIRECT($Z14), MATCH('Calc - Sparklines'!$C$2,INDIRECT($AA14),0), MATCH('Calc - Sparklines'!$D14,INDIRECT($AB14),0)-O$3)),NA())) -> 0.8070075007 | P14: =IF('Calc - Sparklines'!$C$2="EN",IFERROR(IF(ISNUMBER( INDEX(INDIRECT($Z14), MATCH('Calc - Sparklines'!$AF14,INDIRECT($AA14),0), MATCH('Calc - Sparklines'!$D14,INDIRECT($AB14),0)-P$3))=FALSE,NA(), INDEX(INDIRECT($Z14), MATCH('Calc - Sparklines'!$AF14,INDIRECT($AA14),0), MATCH('Calc - Sparklines'!$D14,INDIRECT($AB14),0)-P$3)),NA()),IFERROR(IF(ISNUMBER( INDEX(INDIRECT($Z14), MATCH('Calc - Sparklines'!$C$2,INDIRECT($AA14),0), MATCH('Calc - Sparklines'!$D14,INDIRECT($AB14),0)-P$3))=FALSE,NA(), INDEX(INDIRECT($Z14), MATCH('Calc - Sparklines'!$C$2,INDIRECT($AA14),0), MATCH('Calc - Sparklines'!$D14,INDIRECT($AB14),0)-P$3)),NA())) -> 0.824989988 | R14: 6 | S14: 0 | T14: 0.824989988 | U14: 0.8070075007 | V14: =IF(D14="","",IFERROR(IF(T14>U14,"▲", IF(T14<U14,"▼","◄►")),"N/A")) -> ▲ | W14: Sparkline05 | Z14: Data_Table_CYP_ii_b | AA14: Data_Orgs_CYP_ii_b | AB14: Data_Dates_CYP_ii_b | AD14: Chart available at CCG & STP level only | AE14: =IF(OR(Dashboard!$O$3=1,Dashboard!$O$3=2),"Chart available at CCG & STP level only","") -> Chart available at CCG & STP level only | AF14: =IF('Calc - Sparklines'!$C$2="EN",IF(ISNUMBER(MATCH('Calc - Sparklines'!$C$2,INDIRECT($AA14),0)),"EN","England"),0) -> EN | AG14: =(MATCH('Calc - Sparklines'!$C$2,INDIRECT($AA14),0)) -> 2 | AH14: =IFERROR(P14-L14,"") -> 0.1839215406 | AI14: =IFERROR(P14-H14,"") -> 0.09838998799
A15: CYP_iii_a | B15: CYP(iii.a) | C15: Number of bed days for CYP under 18 in CAMHS tier 4 wards | D15: ='CYP(iii_a)_FINAL CALC'!B6 -> Q4 2022/23 | E15: =IF('Calc - Sparklines'!$C$2="EN",IFERROR(IF(ISNUMBER( INDEX(INDIRECT($Z15), MATCH('Calc - Sparklines'!$AF15,INDIRECT($AA15),0), MATCH('Calc - Sparklines'!$D15,INDIRECT($AB15),0)-E$3))=FALSE,NA(), INDEX(INDIRECT($Z15), MATCH('Calc - Sparklines'!$AF15,INDIRECT($AA15),0), MATCH('Calc - Sparklines'!$D15,INDIRECT($AB15),0)-E$3)),NA()),IFERROR(IF(ISNUMBER( INDEX(INDIRECT($Z15), MATCH('Calc - Sparklines'!$C$2,INDIRECT($AA15),0), MATCH('Calc - Sparklines'!$D15,INDIRECT($AB15),0)-E$3))=FALSE,NA(), INDEX(INDIRECT($Z15), MATCH('Calc - Sparklines'!$C$2,INDIRECT($AA15),0), MATCH('Calc - Sparklines'!$D15,INDIRECT($AB15),0)-E$3)),NA())) -> 83308 | F15: =IF('Calc - Sparklines'!$C$2="EN",IFERROR(IF(ISNUMBER( INDEX(INDIRECT($Z15), MATCH('Calc - Sparklines'!$AF15,INDIRECT($AA15),0), MATCH('Calc - Sparklines'!$D15,INDIRECT($AB15),0)-F$3))=FALSE,NA(), INDEX(INDIRECT($Z15), MATCH('Calc - Sparklines'!$AF15,INDIRECT($AA15),0), MATCH('Calc - Sparklines'!$D15,INDIRECT($AB15),0)-F$3)),NA()),IFERROR(IF(ISNUMBER( INDEX(INDIRECT($Z15), MATCH('Calc - Sparklines'!$C$2,INDIRECT($AA15),0), MATCH('Calc - Sparklines'!$D15,INDIRECT($AB15),0)-F$3))=FALSE,NA(), INDEX(INDIRECT($Z15), MATCH('Calc - Sparklines'!$C$2,INDIRECT($AA15),0), MATCH('Calc - Sparklines'!$D15,INDIRECT($AB15),0)-F$3)),NA())) -> 89135 | G15: =IF('Calc - Sparklines'!$C$2="EN",IFERROR(IF(ISNUMBER( INDEX(INDIRECT($Z15), MATCH('Calc - Sparklines'!$AF15,INDIRECT($AA15),0), MATCH('Calc - Sparklines'!$D15,INDIRECT($AB15),0)-G$3))=FALSE,NA(), INDEX(INDIRECT($Z15), MATCH('Calc - Sparklines'!$AF15,INDIRECT($AA15),0), MATCH('Calc - Sparklines'!$D15,INDIRECT($AB15),0)-G$3)),NA()),IFERROR(IF(ISNUMBER( INDEX(INDIRECT($Z15), MATCH('Calc - Sparklines'!$C$2,INDIRECT($AA15),0), MATCH('Calc - Sparklines'!$D15,INDIRECT($AB15),0)-G$3))=FALSE,NA(), INDEX(INDIRECT($Z15), MATCH('Calc - Sparklines'!$C$2,INDIRECT($AA15),0), MATCH('Calc - Sparklines'!$D15,INDIRECT($AB15),0)-G$3)),NA())) -> 88367 | H15: =IF('Calc - Sparklines'!$C$2="EN",IFERROR(IF(ISNUMBER( INDEX(INDIRECT($Z15), MATCH('Calc - Sparklines'!$AF15,INDIRECT($AA15),0), MATCH('Calc - Sparklines'!$D15,INDIRECT($AB15),0)-H$3))=FALSE,NA(), INDEX(INDIRECT($Z15), MATCH('Calc - Sparklines'!$AF15,INDIRECT($AA15),0), MATCH('Calc - Sparklines'!$D15,INDIRECT($AB15),0)-H$3)),NA()),IFERROR(IF(ISNUMBER( INDEX(INDIRECT($Z15), MATCH('Calc - Sparklines'!$C$2,INDIRECT($AA15),0), MATCH('Calc - Sparklines'!$D15,INDIRECT($AB15),0)-H$3))=FALSE,NA(), INDEX(INDIRECT($Z15), MATCH('Calc - Sparklines'!$C$2,INDIRECT($AA15),0), MATCH('Calc - Sparklines'!$D15,INDIRECT($AB15),0)-H$3)),NA())) -> 85836 | I15: =IF('Calc - Sparklines'!$C$2="EN",IFERROR(IF(ISNUMBER( INDEX(INDIRECT($Z15), MATCH('Calc - Sparklines'!$AF15,INDIRECT($AA15),0), MATCH('Calc - Sparklines'!$D15,INDIRECT($AB15),0)-I$3))=FALSE,NA(), INDEX(INDIRECT($Z15), MATCH('Calc - Sparklines'!$AF15,INDIRECT($AA15),0), MATCH('Calc - Sparklines'!$D15,INDIRECT($AB15),0)-I$3)),NA()),IFERROR(IF(ISNUMBER( INDEX(INDIRECT($Z15), MATCH('Calc - Sparklines'!$C$2,INDIRECT($AA15),0), MATCH('Calc - Sparklines'!$D15,INDIRECT($AB15),0)-I$3))=FALSE,NA(), INDEX(INDIRECT($Z15), MATCH('Calc - Sparklines'!$C$2,INDIRECT($AA15),0), MATCH('Calc - Sparklines'!$D15,INDIRECT($AB15),0)-I$3)),NA())) -> 88007 | J15: =IF('Calc - Sparklines'!$C$2="EN",IFERROR(IF(ISNUMBER( INDEX(INDIRECT($Z15), MATCH('Calc - Sparklines'!$AF15,INDIRECT($AA15),0), MATCH('Calc - Sparklines'!$D15,INDIRECT($AB15),0)-J$3))=FALSE,NA(), INDEX(INDIRECT($Z15), MATCH('Calc - Sparklines'!$AF15,INDIRECT($AA15),0), MATCH('Calc - Sparklines'!$D15,INDIRECT($AB15),0)-J$3)),NA()),IFERROR(IF(ISNUMBER( INDEX(INDIRECT($Z15), MATCH('Calc - Sparklines'!$C$2,INDIRECT($AA15),0), MATCH('Calc - Sparklines'!$D15,INDIRECT($AB15),0)-J$3))=FALSE,NA(), INDEX(INDIRECT($Z15), MATCH('Calc - Sparklines'!$C$2,INDIRECT($AA15),0), MATCH('Calc - Sparklines'!$D15,INDIRECT($AB15),0)-J$3)),NA())) -> 77567 | K15: =IF('Calc - Sparklines'!$C$2="EN",IFERROR(IF(ISNUMBER( INDEX(INDIRECT($Z15), MATCH('Calc - Sparklines'!$AF15,INDIRECT($AA15),0), MATCH('Calc - Sparklines'!$D15,INDIRECT($AB15),0)-K$3))=FALSE,NA(), INDEX(INDIRECT($Z15), MATCH('Calc - Sparklines'!$AF15,INDIRECT($AA15),0), MATCH('Calc - Sparklines'!$D15,INDIRECT($AB15),0)-K$3)),NA()),IFERROR(IF(ISNUMBER( INDEX(INDIRECT($Z15), MATCH('Calc - Sparklines'!$C$2,INDIRECT($AA15),0), MATCH('Calc - Sparklines'!$D15,INDIRECT($AB15),0)-K$3))=FALSE,NA(), INDEX(INDIRECT($Z15), MATCH('Calc - Sparklines'!$C$2,INDIRECT($AA15),0), MATCH('Calc - Sparklines'!$D15,INDIRECT($AB15),0)-K$3)),NA())) -> 73014 | L15: =IF('Calc - Sparklines'!$C$2="EN",IFERROR(IF(ISNUMBER( INDEX(INDIRECT($Z15), MATCH('Calc - Sparklines'!$AF15,INDIRECT($AA15),0), MATCH('Calc - Sparklines'!$D15,INDIRECT($AB15),0)-L$3))=FALSE,NA(), INDEX(INDIRECT($Z15), MATCH('Calc - Sparklines'!$AF15,INDIRECT($AA15),0), MATCH('Calc - Sparklines'!$D15,INDIRECT($AB15),0)-L$3)),NA()),IFERROR(IF(ISNUMBER( INDEX(INDIRECT($Z15), MATCH('Calc - Sparklines'!$C$2,INDIRECT($AA15),0), MATCH('Calc - Sparklines'!$D15,INDIRECT($AB15),0)-L$3))=FALSE,NA(), INDEX(INDIRECT($Z15), MATCH('Calc - Sparklines'!$C$2,INDIRECT($AA15),0), MATCH('Calc - Sparklines'!$D15,INDIRECT($AB15),0)-L$3)),NA())) -> 70001 | M15: =IF('Calc - Sparklines'!$C$2="EN",IFERROR(IF(ISNUMBER( INDEX(INDIRECT($Z15), MATCH('Calc - Sparklines'!$AF15,INDIRECT($AA15),0), MATCH('Calc - Sparklines'!$D15,INDIRECT($AB15),0)-M$3))=FALSE,NA(), INDEX(INDIRECT($Z15), MATCH('Calc - Sparklines'!$AF15,INDIRECT($AA15),0), MATCH('Calc - Sparklines'!$D15,INDIRECT($AB15),0)-M$3)),NA()),IFERROR(IF(ISNUMBER( INDEX(INDIRECT($Z15), MATCH('Calc - Sparklines'!$C$2,INDIRECT($AA15),0), MATCH('Calc - Sparklines'!$D15,INDIRECT($AB15),0)-M$3))=FALSE,NA(), INDEX(INDIRECT($Z15), MATCH('Calc - Sparklines'!$C$2,INDIRECT($AA15),0), MATCH('Calc - Sparklines'!$D15,INDIRECT($AB15),0)-M$3)),NA())) -> 100944 | N15: =IF('Calc - Sparklines'!$C$2="EN",IFERROR(IF(ISNUMBER( INDEX(INDIRECT($Z15), MATCH('Calc - Sparklines'!$AF15,INDIRECT($AA15),0), MATCH('Calc - Sparklines'!$D15,INDIRECT($AB15),0)-N$3))=FALSE,NA(), INDEX(INDIRECT($Z15), MATCH('Calc - Sparklines'!$AF15,INDIRECT($AA15),0), MATCH('Calc - Sparklines'!$D15,INDIRECT($AB15),0)-N$3)),NA()),IFERROR(IF(ISNUMBER( INDEX(INDIRECT($Z15), MATCH('Calc - Sparklines'!$C$2,INDIRECT($AA15),0), MATCH('Calc - Sparklines'!$D15,INDIRECT($AB15),0)-N$3))=FALSE,NA(), INDEX(INDIRECT($Z15), MATCH('Calc - Sparklines'!$C$2,INDIRECT($AA15),0), MATCH('Calc - Sparklines'!$D15,INDIRECT($AB15),0)-N$3)),NA())) -> 93119 | O15: =IF('Calc - Sparklines'!$C$2="EN",IFERROR(IF(ISNUMBER( INDEX(INDIRECT($Z15), MATCH('Calc - Sparklines'!$AF15,INDIRECT($AA15),0), MATCH('Calc - Sparklines'!$D15,INDIRECT($AB15),0)-O$3))=FALSE,NA(), INDEX(INDIRECT($Z15), MATCH('Calc - Sparklines'!$AF15,INDIRECT($AA15),0), MATCH('Calc - Sparklines'!$D15,INDIRECT($AB15),0)-O$3)),NA()),IFERROR(IF(ISNUMBER( INDEX(INDIRECT($Z15), MATCH('Calc - Sparklines'!$C$2,INDIRECT($AA15),0), MATCH('Calc - Sparklines'!$D15,INDIRECT($AB15),0)-O$3))=FALSE,NA(), INDEX(INDIRECT($Z15), MATCH('Calc - Sparklines'!$C$2,INDIRECT($AA15),0), MATCH('Calc - Sparklines'!$D15,INDIRECT($AB15),0)-O$3)),NA())) -> 79084 | P15: =IF('Calc - Sparklines'!$C$2="EN",IFERROR(IF(ISNUMBER( INDEX(INDIRECT($Z15), MATCH('Calc - Sparklines'!$AF15,INDIRECT($AA15),0), MATCH('Calc - Sparklines'!$D15,INDIRECT($AB15),0)-P$3))=FALSE,NA(), INDEX(INDIRECT($Z15), MATCH('Calc - Sparklines'!$AF15,INDIRECT($AA15),0), MATCH('Calc - Sparklines'!$D15,INDIRECT($AB15),0)-P$3)),NA()),IFERROR(IF(ISNUMBER( INDEX(INDIRECT($Z15), MATCH('Calc - Sparklines'!$C$2,INDIRECT($AA15),0), MATCH('Calc - Sparklines'!$D15,INDIRECT($AB15),0)-P$3))=FALSE,NA(), INDEX(INDIRECT($Z15), MATCH('Calc - Sparklines'!$C$2,INDIRECT($AA15),0), MATCH('Calc - Sparklines'!$D15,INDIRECT($AB15),0)-P$3)),NA())) -> 75059 | R15: 6 | S15: 0 | T15: 75059 | U15: 79084 | V15: ▼ | W15: Sparkline06 | Z15: Data_Table_CYP_iii_a | AA15: Data_Orgs_CYP_iii_a | AB15: Data_Dates_CYP_iii_a | AD15: Chart available at CCG & STP level only | AE15: =IF(OR(Dashboard!$O$3=1,Dashboard!$O$3=2),"Chart available at CCG & STP level only","") -> Chart available at CCG & STP level only | AF15: =IF('Calc - Sparklines'!$C$2="EN",IF(ISNUMBER(MATCH('Calc - Sparklines'!$C$2,INDIRECT($AA15),0)),"EN","England"),0) -> EN | AG15: =(MATCH('Calc - Sparklines'!$C$2,INDIRECT($AA15),0)) -> 2 | AH15: =IFERROR(P15/L15-1,"") -> 0.07225611063 | AI15: =IFERROR(P15/H15-1,"") -> -0.1255533809
A16: CYP_iii_b | B16: CYP(iii.b) | C16: Number of admissions of CYP under 18 in CAMHS tier 4 wards | D16: ='CYP(iii_b)_FINAL CALC'!B6 -> Q4 2022/23 | E16: =IF('Calc - Sparklines'!$C$2="EN",IFERROR(IF(ISNUMBER( INDEX(INDIRECT($Z16), MATCH('Calc - Sparklines'!$AF16,INDIRECT($AA16),0), MATCH('Calc - Sparklines'!$D16,INDIRECT($AB16),0)-E$3))=FALSE,NA(), INDEX(INDIRECT($Z16), MATCH('Calc - Sparklines'!$AF16,INDIRECT($AA16),0), MATCH('Calc - Sparklines'!$D16,INDIRECT($AB16),0)-E$3)),NA()),IFERROR(IF(ISNUMBER( INDEX(INDIRECT($Z16), MATCH('Calc - Sparklines'!$C$2,INDIRECT($AA16),0), MATCH('Calc - Sparklines'!$D16,INDIRECT($AB16),0)-E$3))=FALSE,NA(), INDEX(INDIRECT($Z16), MATCH('Calc - Sparklines'!$C$2,INDIRECT($AA16),0), MATCH('Calc - Sparklines'!$D16,INDIRECT($AB16),0)-E$3)),NA())) -> 865 | F16: =IF('Calc - Sparklines'!$C$2="EN",IFERROR(IF(ISNUMBER( INDEX(INDIRECT($Z16), MATCH('Calc - Sparklines'!$AF16,INDIRECT($AA16),0), MATCH('Calc - Sparklines'!$D16,INDIRECT($AB16),0)-F$3))=FALSE,NA(), INDEX(INDIRECT($Z16), MATCH('Calc - Sparklines'!$AF16,INDIRECT($AA16),0), MATCH('Calc - Sparklines'!$D16,INDIRECT($AB16),0)-F$3)),NA()),IFERROR(IF(ISNUMBER( INDEX(INDIRECT($Z16), MATCH('Calc - Sparklines'!$C$2,INDIRECT($AA16),0), MATCH('Calc - Sparklines'!$D16,INDIRECT($AB16),0)-F$3))=FALSE,NA(), INDEX(INDIRECT($Z16), MATCH('Calc - Sparklines'!$C$2,INDIRECT($AA16),0), MATCH('Calc - Sparklines'!$D16,INDIRECT($AB16),0)-F$3)),NA())) -> 906 | G16: =IF('Calc - Sparklines'!$C$2="EN",IFERROR(IF(ISNUMBER( INDEX(INDIRECT($Z16), MATCH('Calc - Sparklines'!$AF16,INDIRECT($AA16),0), MATCH('Calc - Sparklines'!$D16,INDIRECT($AB16),0)-G$3))=FALSE,NA(), INDEX(INDIRECT($Z16), MATCH('Calc - Sparklines'!$AF16,INDIRECT($AA16),0), MATCH('Calc - Sparklines'!$D16,INDIRECT($AB16),0)-G$3)),NA()),IFERROR(IF(ISNUMBER( INDEX(INDIRECT($Z16), MATCH('Calc - Sparklines'!$C$2,INDIRECT($AA16),0), MATCH('Calc - Sparklines'!$D16,INDIRECT($AB16),0)-G$3))=FALSE,NA(), INDEX(INDIRECT($Z16), MATCH('Calc - Sparklines'!$C$2,INDIRECT($AA16),0), MATCH('Calc - Sparklines'!$D16,INDIRECT($AB16),0)-G$3)),NA())) -> 845 | H16: =IF('Calc - Sparklines'!$C$2="EN",IFERROR(IF(ISNUMBER( INDEX(INDIRECT($Z16), MATCH('Calc - Sparklines'!$AF16,INDIRECT($AA16),0), MATCH('Calc - Sparklines'!$D16,INDIRECT($AB16),0)-H$3))=FALSE,NA(), INDEX(INDIRECT($Z16), MATCH('Calc - Sparklines'!$AF16,INDIRECT($AA16),0), MATCH('Calc - Sparklines'!$D16,INDIRECT($AB16),0)-H$3)),NA()),IFERROR(IF(ISNUMBER( INDEX(INDIRECT($Z16), MATCH('Calc - Sparklines'!$C$2,INDIRECT($AA16),0), MATCH('Calc - Sparklines'!$D16,INDIRECT($AB16),0)-H$3))=FALSE,NA(), INDEX(INDIRECT($Z16), MATCH('Calc - Sparklines'!$C$2,INDIRECT($AA16),0), MATCH('Calc - Sparklines'!$D16,INDIRECT($AB16),0)-H$3)),NA())) -> 802 | I16: =IF('Calc - Sparklines'!$C$2="EN",IFERROR(IF(ISNUMBER( INDEX(INDIRECT($Z16), MATCH('Calc - Sparklines'!$AF16,INDIRECT($AA16),0), MATCH('Calc - Sparklines'!$D16,INDIRECT($AB16),0)-I$3))=FALSE,NA(), INDEX(INDIRECT($Z16), MATCH('Calc - Sparklines'!$AF16,INDIRECT($AA16),0), MATCH('Calc - Sparklines'!$D16,INDIRECT($AB16),0)-I$3)),NA()),IFERROR(IF(ISNUMBER( INDEX(INDIRECT($Z16), MATCH('Calc - Sparklines'!$C$2,INDIRECT($AA16),0), MATCH('Calc - Sparklines'!$D16,INDIRECT($AB16),0)-I$3))=FALSE,NA(), INDEX(INDIRECT($Z16), MATCH('Calc - Sparklines'!$C$2,INDIRECT($AA16),0), MATCH('Calc - Sparklines'!$D16,INDIRECT($AB16),0)-I$3)),NA())) -> 742 | J16: =IF('Calc - Sparklines'!$C$2="EN",IFERROR(IF(ISNUMBER( INDEX(INDIRECT($Z16), MATCH('Calc - Sparklines'!$AF16,INDIRECT($AA16),0), MATCH('Calc - Sparklines'!$D16,INDIRECT($AB16),0)-J$3))=FALSE,NA(), INDEX(INDIRECT($Z16), MATCH('Calc - Sparklines'!$AF16,INDIRECT($AA16),0), MATCH('Calc - Sparklines'!$D16,INDIRECT($AB16),0)-J$3)),NA()),IFERROR(IF(ISNUMBER( INDEX(INDIRECT($Z16), MATCH('Calc - Sparklines'!$C$2,INDIRECT($AA16),0), MATCH('Calc - Sparklines'!$D16,INDIRECT($AB16),0)-J$3))=FALSE,NA(), INDEX(INDIRECT($Z16), MATCH('Calc - Sparklines'!$C$2,INDIRECT($AA16),0), MATCH('Calc - Sparklines'!$D16,INDIRECT($AB16),0)-J$3)),NA())) -> 599 | K16: =IF('Calc - Sparklines'!$C$2="EN",IFERROR(IF(ISNUMBER( INDEX(INDIRECT($Z16), MATCH('Calc - Sparklines'!$AF16,INDIRECT($AA16),0), MATCH('Calc - Sparklines'!$D16,INDIRECT($AB16),0)-K$3))=FALSE,NA(), INDEX(INDIRECT($Z16), MATCH('Calc - Sparklines'!$AF16,INDIRECT($AA16),0), MATCH('Calc - Sparklines'!$D16,INDIRECT($AB16),0)-K$3)),NA()),IFERROR(IF(ISNUMBER( INDEX(INDIRECT($Z16), MATCH('Calc - Sparklines'!$C$2,INDIRECT($AA16),0), MATCH('Calc - Sparklines'!$D16,INDIRECT($AB16),0)-K$3))=FALSE,NA(), INDEX(INDIRECT($Z16), MATCH('Calc - Sparklines'!$C$2,INDIRECT($AA16),0), MATCH('Calc - Sparklines'!$D16,INDIRECT($AB16),0)-K$3)),NA())) -> 538 | L16: =IF('Calc - Sparklines'!$C$2="EN",IFERROR(IF(ISNUMBER( INDEX(INDIRECT($Z16), MATCH('Calc - Sparklines'!$AF16,INDIRECT($AA16),0), MATCH('Calc - Sparklines'!$D16,INDIRECT($AB16),0)-L$3))=FALSE,NA(), INDEX(INDIRECT($Z16), MATCH('Calc - Sparklines'!$AF16,INDIRECT($AA16),0), MATCH('Calc - Sparklines'!$D16,INDIRECT($AB16),0)-L$3)),NA()),IFERROR(IF(ISNUMBER( INDEX(INDIRECT($Z16), MATCH('Calc - Sparklines'!$C$2,INDIRECT($AA16),0), MATCH('Calc - Sparklines'!$D16,INDIRECT($AB16),0)-L$3))=FALSE,NA(), INDEX(INDIRECT($Z16), MATCH('Calc - Sparklines'!$C$2,INDIRECT($AA16),0), MATCH('Calc - Sparklines'!$D16,INDIRECT($AB16),0)-L$3)),NA())) -> 626 | M16: =IF('Calc - Sparklines'!$C$2="EN",IFERROR(IF(ISNUMBER( INDEX(INDIRECT($Z16), MATCH('Calc - Sparklines'!$AF16,INDIRECT($AA16),0), MATCH('Calc - Sparklines'!$D16,INDIRECT($AB16),0)-M$3))=FALSE,NA(), INDEX(INDIRECT($Z16), MATCH('Calc - Sparklines'!$AF16,INDIRECT($AA16),0), MATCH('Calc - Sparklines'!$D16,INDIRECT($AB16),0)-M$3)),NA()),IFERROR(IF(ISNUMBER( INDEX(INDIRECT($Z16), MATCH('Calc - Sparklines'!$C$2,INDIRECT($AA16),0), MATCH('Calc - Sparklines'!$D16,INDIRECT($AB16),0)-M$3))=FALSE,NA(), INDEX(INDIRECT($Z16), MATCH('Calc - Sparklines'!$C$2,INDIRECT($AA16),0), MATCH('Calc - Sparklines'!$D16,INDIRECT($AB16),0)-M$3)),NA())) -> 615 | N16: =IF('Calc - Sparklines'!$C$2="EN",IFERROR(IF(ISNUMBER( INDEX(INDIRECT($Z16), MATCH('Calc - Sparklines'!$AF16,INDIRECT($AA16),0), MATCH('Calc - Sparklines'!$D16,INDIRECT($AB16),0)-N$3))=FALSE,NA(), INDEX(INDIRECT($Z16), MATCH('Calc - Sparklines'!$AF16,INDIRECT($AA16),0), MATCH('Calc - Sparklines'!$D16,INDIRECT($AB16),0)-N$3)),NA()),IFERROR(IF(ISNUMBER( INDEX(INDIRECT($Z16), MATCH('Calc - Sparklines'!$C$2,INDIRECT($AA16),0), MATCH('Calc - Sparklines'!$D16,INDIRECT($AB16),0)-N$3))=FALSE,NA(), INDEX(INDIRECT($Z16), MATCH('Calc - Sparklines'!$C$2,INDIRECT($AA16),0), MATCH('Calc - Sparklines'!$D16,INDIRECT($AB16),0)-N$3)),NA())) -> 602 | O16: =IF('Calc - Sparklines'!$C$2="EN",IFERROR(IF(ISNUMBER( INDEX(INDIRECT($Z16), MATCH('Calc - Sparklines'!$AF16,INDIRECT($AA16),0), MATCH('Calc - Sparklines'!$D16,INDIRECT($AB16),0)-O$3))=FALSE,NA(), INDEX(INDIRECT($Z16), MATCH('Calc - Sparklines'!$AF16,INDIRECT($AA16),0), MATCH('Calc - Sparklines'!$D16,INDIRECT($AB16),0)-O$3)),NA()),IFERROR(IF(ISNUMBER( INDEX(INDIRECT($Z16), MATCH('Calc - Sparklines'!$C$2,INDIRECT($AA16),0), MATCH('Calc - Sparklines'!$D16,INDIRECT($AB16),0)-O$3))=FALSE,NA(), INDEX(INDIRECT($Z16), MATCH('Calc - Sparklines'!$C$2,INDIRECT($AA16),0), MATCH('Calc - Sparklines'!$D16,INDIRECT($AB16),0)-O$3)),NA())) -> 644 | P16: =IF('Calc - Sparklines'!$C$2="EN",IFERROR(IF(ISNUMBER( INDEX(INDIRECT($Z16), MATCH('Calc - Sparklines'!$AF16,INDIRECT($AA16),0), MATCH('Calc - Sparklines'!$D16,INDIRECT($AB16),0)-P$3))=FALSE,NA(), INDEX(INDIRECT($Z16), MATCH('Calc - Sparklines'!$AF16,INDIRECT($AA16),0), MATCH('Calc - Sparklines'!$D16,INDIRECT($AB16),0)-P$3)),NA()),IFERROR(IF(ISNUMBER( INDEX(INDIRECT($Z16), MATCH('Calc - Sparklines'!$C$2,INDIRECT($AA16),0), MATCH('Calc - Sparklines'!$D16,INDIRECT($AB16),0)-P$3))=FALSE,NA(), INDEX(INDIRECT($Z16), MATCH('Calc - Sparklines'!$C$2,INDIRECT($AA16),0), MATCH('Calc - Sparklines'!$D16,INDIRECT($AB16),0)-P$3)),NA())) -> 651 | R16: 6 | S16: =IF(P16="N/A",IF(O16="N/A",2,1),0) -> 0 | T16: =OFFSET(P16,,-S16) -> 651 | U16: 644 | V16: ▲ | W16: Sparkline07 | Z16: Data_Table_CYP_iii_b | AA16: Data_Orgs_CYP_iii_b | AB16: Data_Dates_CYP_iii_b | AD16: National and regional measure only | AE16: National and regional measure only | AF16: =IF('Calc - Sparklines'!$C$2="EN",IF(ISNUMBER(MATCH('Calc - Sparklines'!$C$2,INDIRECT($AA16),0)),"EN","England"),0) -> EN | AG16: =(MATCH('Calc - Sparklines'!$C$2,INDIRECT($AA16),0)) -> 2 | AH16: 0.03993610224 | AI16: -0.1882793017
A17: CYP_iv_a | B17: CYP(iv.a) | C17: Bed days of CYP under 18 in adult in-patient wards | D17: ='CYP(iv_a)_FINAL CALC'!B6 -> Q1 2022/23 | E17: =IF('Calc - Sparklines'!$C$2="EN",IFERROR(IF(ISNUMBER( INDEX(INDIRECT($Z17), MATCH('Calc - Sparklines'!$AF17,INDIRECT($AA17),0), MATCH('Calc - Sparklines'!$D17,INDIRECT($AB17),0)-E$3))=FALSE,NA(), INDEX(INDIRECT($Z17), MATCH('Calc - Sparklines'!$AF17,INDIRECT($AA17),0), MATCH('Calc - Sparklines'!$D17,INDIRECT($AB17),0)-E$3)),NA()),IFERROR(IF(ISNUMBER( INDEX(INDIRECT($Z17), MATCH('Calc - Sparklines'!$C$2,INDIRECT($AA17),0), MATCH('Calc - Sparklines'!$D17,INDIRECT($AB17),0)-E$3))=FALSE,NA(), INDEX(INDIRECT($Z17), MATCH('Calc - Sparklines'!$C$2,INDIRECT($AA17),0), MATCH('Calc - Sparklines'!$D17,INDIRECT($AB17),0)-E$3)),NA())) -> 888 | F17: =IF('Calc - Sparklines'!$C$2="EN",IFERROR(IF(ISNUMBER( INDEX(INDIRECT($Z17), MATCH('Calc - Sparklines'!$AF17,INDIRECT($AA17),0), MATCH('Calc - Sparklines'!$D17,INDIRECT($AB17),0)-F$3))=FALSE,NA(), INDEX(INDIRECT($Z17), MATCH('Calc - Sparklines'!$AF17,INDIRECT($AA17),0), MATCH('Calc - Sparklines'!$D17,INDIRECT($AB17),0)-F$3)),NA()),IFERROR(IF(ISNUMBER( INDEX(INDIRECT($Z17), MATCH('Calc - Sparklines'!$C$2,INDIRECT($AA17),0), MATCH('Calc - Sparklines'!$D17,INDIRECT($AB17),0)-F$3))=FALSE,NA(), INDEX(INDIRECT($Z17), MATCH('Calc - Sparklines'!$C$2,INDIRECT($AA17),0), MATCH('Calc - Sparklines'!$D17,INDIRECT($AB17),0)-F$3)),NA())) -> 676 | G17: =IF('Calc - Sparklines'!$C$2="EN",IFERROR(IF(ISNUMBER( INDEX(INDIRECT($Z17), MATCH('Calc - Sparklines'!$AF17,INDIRECT($AA17),0), MATCH('Calc - Sparklines'!$D17,INDIRECT($AB17),0)-G$3))=FALSE,NA(), INDEX(INDIRECT($Z17), MATCH('Calc - Sparklines'!$AF17,INDIRECT($AA17),0), MATCH('Calc - Sparklines'!$D17,INDIRECT($AB17),0)-G$3)),NA()),IFERROR(IF(ISNUMBER( INDEX(INDIRECT($Z17), MATCH('Calc - Sparklines'!$C$2,INDIRECT($AA17),0), MATCH('Calc - Sparklines'!$D17,INDIRECT($AB17),0)-G$3))=FALSE,NA(), INDEX(INDIRECT($Z17), MATCH('Calc - Sparklines'!$C$2,INDIRECT($AA17),0), MATCH('Calc - Sparklines'!$D17,INDIRECT($AB17),0)-G$3)),NA())) -> 2408 | H17: =IF('Calc - Sparklines'!$C$2="EN",IFERROR(IF(ISNUMBER( INDEX(INDIRECT($Z17), MATCH('Calc - Sparklines'!$AF17,INDIRECT($AA17),0), MATCH('Calc - Sparklines'!$D17,INDIRECT($AB17),0)-H$3))=FALSE,NA(), INDEX(INDIRECT($Z17), MATCH('Calc - Sparklines'!$AF17,INDIRECT($AA17),0), MATCH('Calc - Sparklines'!$D17,INDIRECT($AB17),0)-H$3)),NA()),IFERROR(IF(ISNUMBER( INDEX(INDIRECT($Z17), MATCH('Calc - Sparklines'!$C$2,INDIRECT($AA17),0), MATCH('Calc - Sparklines'!$D17,INDIRECT($AB17),0)-H$3))=FALSE,NA(), INDEX(INDIRECT($Z17), MATCH('Calc - Sparklines'!$C$2,INDIRECT($AA17),0), MATCH('Calc - Sparklines'!$D17,INDIRECT($AB17),0)-H$3)),NA())) -> 2402 | I17: =IF('Calc - Sparklines'!$C$2="EN",IFERROR(IF(ISNUMBER( INDEX(INDIRECT($Z17), MATCH('Calc - Sparklines'!$AF17,INDIRECT($AA17),0), MATCH('Calc - Sparklines'!$D17,INDIRECT($AB17),0)-I$3))=FALSE,NA(), INDEX(INDIRECT($Z17), MATCH('Calc - Sparklines'!$AF17,INDIRECT($AA17),0), MATCH('Calc - Sparklines'!$D17,INDIRECT($AB17),0)-I$3)),NA()),IFERROR(IF(ISNUMBER( INDEX(INDIRECT($Z17), MATCH('Calc - Sparklines'!$C$2,INDIRECT($AA17),0), MATCH('Calc - Sparklines'!$D17,INDIRECT($AB17),0)-I$3))=FALSE,NA(), INDEX(INDIRECT($Z17), MATCH('Calc - Sparklines'!$C$2,INDIRECT($AA17),0), MATCH('Calc - Sparklines'!$D17,INDIRECT($AB17),0)-I$3)),NA())) -> 1517 | J17: =IF('Calc - Sparklines'!$C$2="EN",IFERROR(IF(ISNUMBER( INDEX(INDIRECT($Z17), MATCH('Calc - Sparklines'!$AF17,INDIRECT($AA17),0), MATCH('Calc - Sparklines'!$D17,INDIRECT($AB17),0)-J$3))=FALSE,NA(), INDEX(INDIRECT($Z17), MATCH('Calc - Sparklines'!$AF17,INDIRECT($AA17),0), MATCH('Calc - Sparklines'!$D17,INDIRECT($AB17),0)-J$3)),NA()),IFERROR(IF(ISNUMBER( INDEX(INDIRECT($Z17), MATCH('Calc - Sparklines'!$C$2,INDIRECT($AA17),0), MATCH('Calc - Sparklines'!$D17,INDIRECT($AB17),0)-J$3))=FALSE,NA(), INDEX(INDIRECT($Z17), MATCH('Calc - Sparklines'!$C$2,INDIRECT($AA17),0), MATCH('Calc - Sparklines'!$D17,INDIRECT($AB17),0)-J$3)),NA())) -> 673 | K17: =IF('Calc - Sparklines'!$C$2="EN",IFERROR(IF(ISNUMBER( INDEX(INDIRECT($Z17), MATCH('Calc - Sparklines'!$AF17,INDIRECT($AA17),0), MATCH('Calc - Sparklines'!$D17,INDIRECT($AB17),0)-K$3))=FALSE,NA(), INDEX(INDIRECT($Z17), MATCH('Calc - Sparklines'!$AF17,INDIRECT($AA17),0), MATCH('Calc - Sparklines'!$D17,INDIRECT($AB17),0)-K$3)),NA()),IFERROR(IF(ISNUMBER( INDEX(INDIRECT($Z17), MATCH('Calc - Sparklines'!$C$2,INDIRECT($AA17),0), MATCH('Calc - Sparklines'!$D17,INDIRECT($AB17),0)-K$3))=FALSE,NA(), INDEX(INDIRECT($Z17), MATCH('Calc - Sparklines'!$C$2,INDIRECT($AA17),0), MATCH('Calc - Sparklines'!$D17,INDIRECT($AB17),0)-K$3)),NA())) -> 1391 | L17: =IF('Calc - Sparklines'!$C$2="EN",IFERROR(IF(ISNUMBER( INDEX(INDIRECT($Z17), MATCH('Calc - Sparklines'!$AF17,INDIRECT($AA17),0), MATCH('Calc - Sparklines'!$D17,INDIRECT($AB17),0)-L$3))=FALSE,NA(), INDEX(INDIRECT($Z17), MATCH('Calc - Sparklines'!$AF17,INDIRECT($AA17),0), MATCH('Calc - Sparklines'!$D17,INDIRECT($AB17),0)-L$3)),NA()),IFERROR(IF(ISNUMBER( INDEX(INDIRECT($Z17), MATCH('Calc - Sparklines'!$C$2,INDIRECT($AA17),0), MATCH('Calc - Sparklines'!$D17,INDIRECT($AB17),0)-L$3))=FALSE,NA(), INDEX(INDIRECT($Z17), MATCH('Calc - Sparklines'!$C$2,INDIRECT($AA17),0), MATCH('Calc - Sparklines'!$D17,INDIRECT($AB17),0)-L$3)),NA())) -> 1826 | M17: =IF('Calc - Sparklines'!$C$2="EN",IFERROR(IF(ISNUMBER( INDEX(INDIRECT($Z17), MATCH('Calc - Sparklines'!$AF17,INDIRECT($AA17),0), MATCH('Calc - Sparklines'!$D17,INDIRECT($AB17),0)-M$3))=FALSE,NA(), INDEX(INDIRECT($Z17), MATCH('Calc - Sparklines'!$AF17,INDIRECT($AA17),0), MATCH('Calc - Sparklines'!$D17,INDIRECT($AB17),0)-M$3)),NA()),IFERROR(IF(ISNUMBER( INDEX(INDIRECT($Z17), MATCH('Calc - Sparklines'!$C$2,INDIRECT($AA17),0), MATCH('Calc - Sparklines'!$D17,INDIRECT($AB17),0)-M$3))=FALSE,NA(), INDEX(INDIRECT($Z17), MATCH('Calc - Sparklines'!$C$2,INDIRECT($AA17),0), MATCH('Calc - Sparklines'!$D17,INDIRECT($AB17),0)-M$3)),NA())) -> 993 | N17: =IF('Calc - Sparklines'!$C$2="EN",IFERROR(IF(ISNUMBER( INDEX(INDIRECT($Z17), MATCH('Calc - Sparklines'!$AF17,INDIRECT($AA17),0), MATCH('Calc - Sparklines'!$D17,INDIRECT($AB17),0)-N$3))=FALSE,NA(), INDEX(INDIRECT($Z17), MATCH('Calc - Sparklines'!$AF17,INDIRECT($AA17),0), MATCH('Calc - Sparklines'!$D17,INDIRECT($AB17),0)-N$3)),NA()),IFERROR(IF(ISNUMBER( INDEX(INDIRECT($Z17), MATCH('Calc - Sparklines'!$C$2,INDIRECT($AA17),0), MATCH('Calc - Sparklines'!$D17,INDIRECT($AB17),0)-N$3))=FALSE,NA(), INDEX(INDIRECT($Z17), MATCH('Calc - Sparklines'!$C$2,INDIRECT($AA17),0), MATCH('Calc - Sparklines'!$D17,INDIRECT($AB17),0)-N$3)),NA())) -> 746 | O17: =IF('Calc - Sparklines'!$C$2="EN",IFERROR(IF(ISNUMBER( INDEX(INDIRECT($Z17), MATCH('Calc - Sparklines'!$AF17,INDIRECT($AA17),0), MATCH('Calc - Sparklines'!$D17,INDIRECT($AB17),0)-O$3))=FALSE,NA(), INDEX(INDIRECT($Z17), MATCH('Calc - Sparklines'!$AF17,INDIRECT($AA17),0), MATCH('Calc - Sparklines'!$D17,INDIRECT($AB17),0)-O$3)),NA()),IFERROR(IF(ISNUMBER( INDEX(INDIRECT($Z17), MATCH('Calc - Sparklines'!$C$2,INDIRECT($AA17),0), MATCH('Calc - Sparklines'!$D17,INDIRECT($AB17),0)-O$3))=FALSE,NA(), INDEX(INDIRECT($Z17), MATCH('Calc - Sparklines'!$C$2,INDIRECT($AA17),0), MATCH('Calc - Sparklines'!$D17,INDIRECT($AB17),0)-O$3)),NA())) -> 810 | P17: =IF('Calc - Sparklines'!$C$2="EN",IFERROR(IF(ISNUMBER( INDEX(INDIRECT($Z17), MATCH('Calc - Sparklines'!$AF17,INDIRECT($AA17),0), MATCH('Calc - Sparklines'!$D17,INDIRECT($AB17),0)-P$3))=FALSE,NA(), INDEX(INDIRECT($Z17), MATCH('Calc - Sparklines'!$AF17,INDIRECT($AA17),0), MATCH('Calc - Sparklines'!$D17,INDIRECT($AB17),0)-P$3)),NA()),IFERROR(IF(ISNUMBER( INDEX(INDIRECT($Z17), MATCH('Calc - Sparklines'!$C$2,INDIRECT($AA17),0), MATCH('Calc - Sparklines'!$D17,INDIRECT($AB17),0)-P$3))=FALSE,NA(), INDEX(INDIRECT($Z17), MATCH('Calc - Sparklines'!$C$2,INDIRECT($AA17),0), MATCH('Calc - Sparklines'!$D17,INDIRECT($AB17),0)-P$3)),NA())) -> 727 | R17: 6 | S17: =IF(P17="N/A",IF(O17="N/A",2,1),0) -> 0 | T17: =OFFSET(P17,,-S17) -> 727 | U17: =IF(ISERROR(O17),IF(ISERROR(N17),IF(ISERROR(M17),IF(ISERROR(L17),IF(ISERROR(K17),IF(ISERROR(J17),IF(ISERROR(I17),IF(ISERROR(H17),IF(ISERROR(G17),IF(ISERROR(F17),IF(ISERROR(E17), NA(), E17),F17),G17),H17),I17),J17),K17),L17),M17),N17),O17) -> 810 | V17: =IF(D17="","",IFERROR(IF(T17>U17,"▲", IF(T17<U17,"▼","◄►")),"N/A")) -> ▼ | W17: Sparkline08 | Z17: Data_Table_CYP_iv_a | AA17: Data_Orgs_CYP_iv_a | AB17: Data_Dates_CYP_iv_a | AF17: =IF('Calc - Sparklines'!$C$2="EN",IF(ISNUMBER(MATCH('Calc - Sparklines'!$C$2,INDIRECT($AA17),0)),"EN","England"),0) -> EN | AG17: =(MATCH('Calc - Sparklines'!$C$2,INDIRECT($AA17),0)) -> 2 | AH17: -0.6018619934 | AI17: -0.6973355537
A18: CYP_iv_b | B18: CYP(iv.b) | C18: Number of CYP under 18 in adult in-patient wards | D18: ='CYP(iv_b)_FINAL CALC'!B6 -> Q1 2022/23 | E18: =IF('Calc - Sparklines'!$C$2="EN",IFERROR(IF(ISNUMBER( INDEX(INDIRECT($Z18), MATCH('Calc - Sparklines'!$AF18,INDIRECT($AA18),0), MATCH('Calc - Sparklines'!$D18,INDIRECT($AB18),0)-E$3))=FALSE,NA(), INDEX(INDIRECT($Z18), MATCH('Calc - Sparklines'!$AF18,INDIRECT($AA18),0), MATCH('Calc - Sparklines'!$D18,INDIRECT($AB18),0)-E$3)),NA()),IFERROR(IF(ISNUMBER( INDEX(INDIRECT($Z18), MATCH('Calc - Sparklines'!$C$2,INDIRECT($AA18),0), MATCH('Calc - Sparklines'!$D18,INDIRECT($AB18),0)-E$3))=FALSE,NA(), INDEX(INDIRECT($Z18), MATCH('Calc - Sparklines'!$C$2,INDIRECT($AA18),0), MATCH('Calc - Sparklines'!$D18,INDIRECT($AB18),0)-E$3)),NA())) -> 74 | F18: =IF('Calc - Sparklines'!$C$2="EN",IFERROR(IF(ISNUMBER( INDEX(INDIRECT($Z18), MATCH('Calc - Sparklines'!$AF18,INDIRECT($AA18),0), MATCH('Calc - Sparklines'!$D18,INDIRECT($AB18),0)-F$3))=FALSE,NA(), INDEX(INDIRECT($Z18), MATCH('Calc - Sparklines'!$AF18,INDIRECT($AA18),0), MATCH('Calc - Sparklines'!$D18,INDIRECT($AB18),0)-F$3)),NA()),IFERROR(IF(ISNUMBER( INDEX(INDIRECT($Z18), MATCH('Calc - Sparklines'!$C$2,INDIRECT($AA18),0), MATCH('Calc - Sparklines'!$D18,INDIRECT($AB18),0)-F$3))=FALSE,NA(), INDEX(INDIRECT($Z18), MATCH('Calc - Sparklines'!$C$2,INDIRECT($AA18),0), MATCH('Calc - Sparklines'!$D18,INDIRECT($AB18),0)-F$3)),NA())) -> 57 | G18: =IF('Calc - Sparklines'!$C$2="EN",IFERROR(IF(ISNUMBER( INDEX(INDIRECT($Z18), MATCH('Calc - Sparklines'!$AF18,INDIRECT($AA18),0), MATCH('Calc - Sparklines'!$D18,INDIRECT($AB18),0)-G$3))=FALSE,NA(), INDEX(INDIRECT($Z18), MATCH('Calc - Sparklines'!$AF18,INDIRECT($AA18),0), MATCH('Calc - Sparklines'!$D18,INDIRECT($AB18),0)-G$3)),NA()),IFERROR(IF(ISNUMBER( INDEX(INDIRECT($Z18), MATCH('Calc - Sparklines'!$C$2,INDIRECT($AA18),0), MATCH('Calc - Sparklines'!$D18,INDIRECT($AB18),0)-G$3))=FALSE,NA(), INDEX(INDIRECT($Z18), MATCH('Calc - Sparklines'!$C$2,INDIRECT($AA18),0), MATCH('Calc - Sparklines'!$D18,INDIRECT($AB18),0)-G$3)),NA())) -> 104 | H18: =IF('Calc - Sparklines'!$C$2="EN",IFERROR(IF(ISNUMBER( INDEX(INDIRECT($Z18), MATCH('Calc - Sparklines'!$AF18,INDIRECT($AA18),0), MATCH('Calc - Sparklines'!$D18,INDIRECT($AB18),0)-H$3))=FALSE,NA(), INDEX(INDIRECT($Z18), MATCH('Calc - Sparklines'!$AF18,INDIRECT($AA18),0), MATCH('Calc - Sparklines'!$D18,INDIRECT($AB18),0)-H$3)),NA()),IFERROR(IF(ISNUMBER( INDEX(INDIRECT($Z18), MATCH('Calc - Sparklines'!$C$2,INDIRECT($AA18),0), MATCH('Calc - Sparklines'!$D18,INDIRECT($AB18),0)-H$3))=FALSE,NA(), INDEX(INDIRECT($Z18), MATCH('Calc - Sparklines'!$C$2,INDIRECT($AA18),0), MATCH('Calc - Sparklines'!$D18,INDIRECT($AB18),0)-H$3)),NA())) -> 83 | I18: =IF('Calc - Sparklines'!$C$2="EN",IFERROR(IF(ISNUMBER( INDEX(INDIRECT($Z18), MATCH('Calc - Sparklines'!$AF18,INDIRECT($AA18),0), MATCH('Calc - Sparklines'!$D18,INDIRECT($AB18),0)-I$3))=FALSE,NA(), INDEX(INDIRECT($Z18), MATCH('Calc - Sparklines'!$AF18,INDIRECT($AA18),0), MATCH('Calc - Sparklines'!$D18,INDIRECT($AB18),0)-I$3)),NA()),IFERROR(IF(ISNUMBER( INDEX(INDIRECT($Z18), MATCH('Calc - Sparklines'!$C$2,INDIRECT($AA18),0), MATCH('Calc - Sparklines'!$D18,INDIRECT($AB18),0)-I$3))=FALSE,NA(), INDEX(INDIRECT($Z18), MATCH('Calc - Sparklines'!$C$2,INDIRECT($AA18),0), MATCH('Calc - Sparklines'!$D18,INDIRECT($AB18),0)-I$3)),NA())) -> 72 | J18: =IF('Calc - Sparklines'!$C$2="EN",IFERROR(IF(ISNUMBER( INDEX(INDIRECT($Z18), MATCH('Calc - Sparklines'!$AF18,INDIRECT($AA18),0), MATCH('Calc - Sparklines'!$D18,INDIRECT($AB18),0)-J$3))=FALSE,NA(), INDEX(INDIRECT($Z18), MATCH('Calc - Sparklines'!$AF18,INDIRECT($AA18),0), MATCH('Calc - Sparklines'!$D18,INDIRECT($AB18),0)-J$3)),NA()),IFERROR(IF(ISNUMBER( INDEX(INDIRECT($Z18), MATCH('Calc - Sparklines'!$C$2,INDIRECT($AA18),0), MATCH('Calc - Sparklines'!$D18,INDIRECT($AB18),0)-J$3))=FALSE,NA(), INDEX(INDIRECT($Z18), MATCH('Calc - Sparklines'!$C$2,INDIRECT($AA18),0), MATCH('Calc - Sparklines'!$D18,INDIRECT($AB18),0)-J$3)),NA())) -> 67 | K18: =IF('Calc - Sparklines'!$C$2="EN",IFERROR(IF(ISNUMBER( INDEX(INDIRECT($Z18), MATCH('Calc - Sparklines'!$AF18,INDIRECT($AA18),0), MATCH('Calc - Sparklines'!$D18,INDIRECT($AB18),0)-K$3))=FALSE,NA(), INDEX(INDIRECT($Z18), MATCH('Calc - Sparklines'!$AF18,INDIRECT($AA18),0), MATCH('Calc - Sparklines'!$D18,INDIRECT($AB18),0)-K$3)),NA()),IFERROR(IF(ISNUMBER( INDEX(INDIRECT($Z18), MATCH('Calc - Sparklines'!$C$2,INDIRECT($AA18),0), MATCH('Calc - Sparklines'!$D18,INDIRECT($AB18),0)-K$3))=FALSE,NA(), INDEX(INDIRECT($Z18), MATCH('Calc - Sparklines'!$C$2,INDIRECT($AA18),0), MATCH('Calc - Sparklines'!$D18,INDIRECT($AB18),0)-K$3)),NA())) -> 83 | L18: =IF('Calc - Sparklines'!$C$2="EN",IFERROR(IF(ISNUMBER( INDEX(INDIRECT($Z18), MATCH('Calc - Sparklines'!$AF18,INDIRECT($AA18),0), MATCH('Calc - Sparklines'!$D18,INDIRECT($AB18),0)-L$3))=FALSE,NA(), INDEX(INDIRECT($Z18), MATCH('Calc - Sparklines'!$AF18,INDIRECT($AA18),0), MATCH('Calc - Sparklines'!$D18,INDIRECT($AB18),0)-L$3)),NA()),IFERROR(IF(ISNUMBER( INDEX(INDIRECT($Z18), MATCH('Calc - Sparklines'!$C$2,INDIRECT($AA18),0), MATCH('Calc - Sparklines'!$D18,INDIRECT($AB18),0)-L$3))=FALSE,NA(), INDEX(INDIRECT($Z18), MATCH('Calc - Sparklines'!$C$2,INDIRECT($AA18),0), MATCH('Calc - Sparklines'!$D18,INDIRECT($AB18),0)-L$3)),NA())) -> 96 | M18: =IF('Calc - Sparklines'!$C$2="EN",IFERROR(IF(ISNUMBER( INDEX(INDIRECT($Z18), MATCH('Calc - Sparklines'!$AF18,INDIRECT($AA18),0), MATCH('Calc - Sparklines'!$D18,INDIRECT($AB18),0)-M$3))=FALSE,NA(), INDEX(INDIRECT($Z18), MATCH('Calc - Sparklines'!$AF18,INDIRECT($AA18),0), MATCH('Calc - Sparklines'!$D18,INDIRECT($AB18),0)-M$3)),NA()),IFERROR(IF(ISNUMBER( INDEX(INDIRECT($Z18), MATCH('Calc - Sparklines'!$C$2,INDIRECT($AA18),0), MATCH('Calc - Sparklines'!$D18,INDIRECT($AB18),0)-M$3))=FALSE,NA(), INDEX(INDIRECT($Z18), MATCH('Calc - Sparklines'!$C$2,INDIRECT($AA18),0), MATCH('Calc - Sparklines'!$D18,INDIRECT($AB18),0)-M$3)),NA())) -> 71 | N18: =IF('Calc - Sparklines'!$C$2="EN",IFERROR(IF(ISNUMBER( INDEX(INDIRECT($Z18), MATCH('Calc - Sparklines'!$AF18,INDIRECT($AA18),0), MATCH('Calc - Sparklines'!$D18,INDIRECT($AB18),0)-N$3))=FALSE,NA(), INDEX(INDIRECT($Z18), MATCH('Calc - Sparklines'!$AF18,INDIRECT($AA18),0), MATCH('Calc - Sparklines'!$D18,INDIRECT($AB18),0)-N$3)),NA()),IFERROR(IF(ISNUMBER( INDEX(INDIRECT($Z18), MATCH('Calc - Sparklines'!$C$2,INDIRECT($AA18),0), MATCH('Calc - Sparklines'!$D18,INDIRECT($AB18),0)-N$3))=FALSE,NA(), INDEX(INDIRECT($Z18), MATCH('Calc - Sparklines'!$C$2,INDIRECT($AA18),0), MATCH('Calc - Sparklines'!$D18,INDIRECT($AB18),0)-N$3)),NA())) -> 45 | O18: =IF('Calc - Sparklines'!$C$2="EN",IFERROR(IF(ISNUMBER( INDEX(INDIRECT($Z18), MATCH('Calc - Sparklines'!$AF18,INDIRECT($AA18),0), MATCH('Calc - Sparklines'!$D18,INDIRECT($AB18),0)-O$3))=FALSE,NA(), INDEX(INDIRECT($Z18), MATCH('Calc - Sparklines'!$AF18,INDIRECT($AA18),0), MATCH('Calc - Sparklines'!$D18,INDIRECT($AB18),0)-O$3)),NA()),IFERROR(IF(ISNUMBER( INDEX(INDIRECT($Z18), MATCH('Calc - Sparklines'!$C$2,INDIRECT($AA18),0), MATCH('Calc - Sparklines'!$D18,INDIRECT($AB18),0)-O$3))=FALSE,NA(), INDEX(INDIRECT($Z18), MATCH('Calc - Sparklines'!$C$2,INDIRECT($AA18),0), MATCH('Calc - Sparklines'!$D18,INDIRECT($AB18),0)-O$3)),NA())) -> 60 | P18: =IF('Calc - Sparklines'!$C$2="EN",IFERROR(IF(ISNUMBER( INDEX(INDIRECT($Z18), MATCH('Calc - Sparklines'!$AF18,INDIRECT($AA18),0), MATCH('Calc - Sparklines'!$D18,INDIRECT($AB18),0)-P$3))=FALSE,NA(), INDEX(INDIRECT($Z18), MATCH('Calc - Sparklines'!$AF18,INDIRECT($AA18),0), MATCH('Calc - Sparklines'!$D18,INDIRECT($AB18),0)-P$3)),NA()),IFERROR(IF(ISNUMBER( INDEX(INDIRECT($Z18), MATCH('Calc - Sparklines'!$C$2,INDIRECT($AA18),0), MATCH('Calc - Sparklines'!$D18,INDIRECT($AB18),0)-P$3))=FALSE,NA(), INDEX(INDIRECT($Z18), MATCH('Calc - Sparklines'!$C$2,INDIRECT($AA18),0), MATCH('Calc - Sparklines'!$D18,INDIRECT($AB18),0)-P$3)),NA())) -> 50 | R18: 6 | S18: =IF(P18="N/A",IF(O18="N/A",2,1),0) -> 0 | T18: 50 | U18: 60 | V18: ▼ | W18: Sparkline09 | Z18: Data_Table_CYP_iv_b | AA18: Data_Orgs_CYP_iv_b | AB18: Data_Dates_CYP_iv_b | AF18: =IF('Calc - Sparklines'!$C$2="EN",IF(ISNUMBER(MATCH('Calc - Sparklines'!$C$2,INDIRECT($AA18),0)),"EN","England"),0) -> EN | AG18: =(MATCH('Calc - Sparklines'!$C$2,INDIRECT($AA18),0)) -> 2 | AH18: -0.4791666667 | AI18: -0.3975903614
A19: CYP_vii | B19: CYP(vii) | C19: CYP Crisis | D19: ='CYP(vii)_FINAL CALC'!$B$6 -> 2022/23 | E19: =IF('Calc - Sparklines'!$C$2="EN",IFERROR(IF(ISNUMBER( INDEX(INDIRECT($Z19), MATCH('Calc - Sparklines'!$AF19,INDIRECT($AA19),0), MATCH('Calc - Sparklines'!$D19,INDIRECT($AB19),0)-E$3))=FALSE,NA(), INDEX(INDIRECT($Z19), MATCH('Calc - Sparklines'!$AF19,INDIRECT($AA19),0), MATCH('Calc - Sparklines'!$D19,INDIRECT($AB19),0)-E$3)),NA()),IFERROR(IF(ISNUMBER( INDEX(INDIRECT($Z19), MATCH('Calc - Sparklines'!$C$2,INDIRECT($AA19),0), MATCH('Calc - Sparklines'!$D19,INDIRECT($AB19),0)-E$3))=FALSE,NA(), INDEX(INDIRECT($Z19), MATCH('Calc - Sparklines'!$C$2,INDIRECT($AA19),0), MATCH('Calc - Sparklines'!$D19,INDIRECT($AB19),0)-E$3)),NA())) ->  | F19: =IF('Calc - Sparklines'!$C$2="EN",IFERROR(IF(ISNUMBER( INDEX(INDIRECT($Z19), MATCH('Calc - Sparklines'!$AF19,INDIRECT($AA19),0), MATCH('Calc - Sparklines'!$D19,INDIRECT($AB19),0)-F$3))=FALSE,NA(), INDEX(INDIRECT($Z19), MATCH('Calc - Sparklines'!$AF19,INDIRECT($AA19),0), MATCH('Calc - Sparklines'!$D19,INDIRECT($AB19),0)-F$3)),NA()),IFERROR(IF(ISNUMBER( INDEX(INDIRECT($Z19), MATCH('Calc - Sparklines'!$C$2,INDIRECT($AA19),0), MATCH('Calc - Sparklines'!$D19,INDIRECT($AB19),0)-F$3))=FALSE,NA(), INDEX(INDIRECT($Z19), MATCH('Calc - Sparklines'!$C$2,INDIRECT($AA19),0), MATCH('Calc - Sparklines'!$D19,INDIRECT($AB19),0)-F$3)),NA())) ->  | G19: =IF('Calc - Sparklines'!$C$2="EN",IFERROR(IF(ISNUMBER( INDEX(INDIRECT($Z19), MATCH('Calc - Sparklines'!$AF19,INDIRECT($AA19),0), MATCH('Calc - Sparklines'!$D19,INDIRECT($AB19),0)-G$3))=FALSE,NA(), INDEX(INDIRECT($Z19), MATCH('Calc - Sparklines'!$AF19,INDIRECT($AA19),0), MATCH('Calc - Sparklines'!$D19,INDIRECT($AB19),0)-G$3)),NA()),IFERROR(IF(ISNUMBER( INDEX(INDIRECT($Z19), MATCH('Calc - Sparklines'!$C$2,INDIRECT($AA19),0), MATCH('Calc - Sparklines'!$D19,INDIRECT($AB19),0)-G$3))=FALSE,NA(), INDEX(INDIRECT($Z19), MATCH('Calc - Sparklines'!$C$2,INDIRECT($AA19),0), MATCH('Calc - Sparklines'!$D19,INDIRECT($AB19),0)-G$3)),NA())) ->  | H19: =IF('Calc - Sparklines'!$C$2="EN",IFERROR(IF(ISNUMBER( INDEX(INDIRECT($Z19), MATCH('Calc - Sparklines'!$AF19,INDIRECT($AA19),0), MATCH('Calc - Sparklines'!$D19,INDIRECT($AB19),0)-H$3))=FALSE,NA(), INDEX(INDIRECT($Z19), MATCH('Calc - Sparklines'!$AF19,INDIRECT($AA19),0), MATCH('Calc - Sparklines'!$D19,INDIRECT($AB19),0)-H$3)),NA()),IFERROR(IF(ISNUMBER( INDEX(INDIRECT($Z19), MATCH('Calc - Sparklines'!$C$2,INDIRECT($AA19),0), MATCH('Calc - Sparklines'!$D19,INDIRECT($AB19),0)-H$3))=FALSE,NA(), INDEX(INDIRECT($Z19), MATCH('Calc - Sparklines'!$C$2,INDIRECT($AA19),0), MATCH('Calc - Sparklines'!$D19,INDIRECT($AB19),0)-H$3)),NA())) ->  | I19: =IF('Calc - Sparklines'!$C$2="EN",IFERROR(IF(ISNUMBER( INDEX(INDIRECT($Z19), MATCH('Calc - Sparklines'!$AF19,INDIRECT($AA19),0), MATCH('Calc - Sparklines'!$D19,INDIRECT($AB19),0)-I$3))=FALSE,NA(), INDEX(INDIRECT($Z19), MATCH('Calc - Sparklines'!$AF19,INDIRECT($AA19),0), MATCH('Calc - Sparklines'!$D19,INDIRECT($AB19),0)-I$3)),NA()),IFERROR(IF(ISNUMBER( INDEX(INDIRECT($Z19), MATCH('Calc - Sparklines'!$C$2,INDIRECT($AA19),0), MATCH('Calc - Sparklines'!$D19,INDIRECT($AB19),0)-I$3))=FALSE,NA(), INDEX(INDIRECT($Z19), MATCH('Calc - Sparklines'!$C$2,INDIRECT($AA19),0), MATCH('Calc - Sparklines'!$D19,INDIRECT($AB19),0)-I$3)),NA())) ->  | J19: =IF('Calc - Sparklines'!$C$2="EN",IFERROR(IF(ISNUMBER( INDEX(INDIRECT($Z19), MATCH('Calc - Sparklines'!$AF19,INDIRECT($AA19),0), MATCH('Calc - Sparklines'!$D19,INDIRECT($AB19),0)-J$3))=FALSE,NA(), INDEX(INDIRECT($Z19), MATCH('Calc - Sparklines'!$AF19,INDIRECT($AA19),0), MATCH('Calc - Sparklines'!$D19,INDIRECT($AB19),0)-J$3)),NA()),IFERROR(IF(ISNUMBER( INDEX(INDIRECT($Z19), MATCH('Calc - Sparklines'!$C$2,INDIRECT($AA19),0), MATCH('Calc - Sparklines'!$D19,INDIRECT($AB19),0)-J$3))=FALSE,NA(), INDEX(INDIRECT($Z19), MATCH('Calc - Sparklines'!$C$2,INDIRECT($AA19),0), MATCH('Calc - Sparklines'!$D19,INDIRECT($AB19),0)-J$3)),NA())) ->  | K19: =IF('Calc - Sparklines'!$C$2="EN",IFERROR(IF(ISNUMBER( INDEX(INDIRECT($Z19), MATCH('Calc - Sparklines'!$AF19,INDIRECT($AA19),0), MATCH('Calc - Sparklines'!$D19,INDIRECT($AB19),0)-K$3))=FALSE,NA(), INDEX(INDIRECT($Z19), MATCH('Calc - Sparklines'!$AF19,INDIRECT($AA19),0), MATCH('Calc - Sparklines'!$D19,INDIRECT($AB19),0)-K$3)),NA()),IFERROR(IF(ISNUMBER( INDEX(INDIRECT($Z19), MATCH('Calc - Sparklines'!$C$2,INDIRECT($AA19),0), MATCH('Calc - Sparklines'!$D19,INDIRECT($AB19),0)-K$3))=FALSE,NA(), INDEX(INDIRECT($Z19), MATCH('Calc - Sparklines'!$C$2,INDIRECT($AA19),0), MATCH('Calc - Sparklines'!$D19,INDIRECT($AB19),0)-K$3)),NA())) ->  | L19: =IF('Calc - Sparklines'!$C$2="EN",IFERROR(IF(ISNUMBER( INDEX(INDIRECT($Z19), MATCH('Calc - Sparklines'!$AF19,INDIRECT($AA19),0), MATCH('Calc - Sparklines'!$D19,INDIRECT($AB19),0)-L$3))=FALSE,NA(), INDEX(INDIRECT($Z19), MATCH('Calc - Sparklines'!$AF19,INDIRECT($AA19),0), MATCH('Calc - Sparklines'!$D19,INDIRECT($AB19),0)-L$3)),NA()),IFERROR(IF(ISNUMBER( INDEX(INDIRECT($Z19), MATCH('Calc - Sparklines'!$C$2,INDIRECT($AA19),0), MATCH('Calc - Sparklines'!$D19,INDIRECT($AB19),0)-L$3))=FALSE,NA(), INDEX(INDIRECT($Z19), MATCH('Calc - Sparklines'!$C$2,INDIRECT($AA19),0), MATCH('Calc - Sparklines'!$D19,INDIRECT($AB19),0)-L$3)),NA())) ->  | M19: =IF('Calc - Sparklines'!$C$2="EN",IFERROR(IF(ISNUMBER( INDEX(INDIRECT($Z19), MATCH('Calc - Sparklines'!$AF19,INDIRECT($AA19),0), MATCH('Calc - Sparklines'!$D19,INDIRECT($AB19),0)-M$3))=FALSE,NA(), INDEX(INDIRECT($Z19), MATCH('Calc - Sparklines'!$AF19,INDIRECT($AA19),0), MATCH('Calc - Sparklines'!$D19,INDIRECT($AB19),0)-M$3)),NA()),IFERROR(IF(ISNUMBER( INDEX(INDIRECT($Z19), MATCH('Calc - Sparklines'!$C$2,INDIRECT($AA19),0), MATCH('Calc - Sparklines'!$D19,INDIRECT($AB19),0)-M$3))=FALSE,NA(), INDEX(INDIRECT($Z19), MATCH('Calc - Sparklines'!$C$2,INDIRECT($AA19),0), MATCH('Calc - Sparklines'!$D19,INDIRECT($AB19),0)-M$3)),NA())) -> 0.26 | N19: =IF('Calc - Sparklines'!$C$2="EN",IFERROR(IF(ISNUMBER( INDEX(INDIRECT($Z19), MATCH('Calc - Sparklines'!$AF19,INDIRECT($AA19),0), MATCH('Calc - Sparklines'!$D19,INDIRECT($AB19),0)-N$3))=FALSE,NA(), INDEX(INDIRECT($Z19), MATCH('Calc - Sparklines'!$AF19,INDIRECT($AA19),0), MATCH('Calc - Sparklines'!$D19,INDIRECT($AB19),0)-N$3)),NA()),IFERROR(IF(ISNUMBER( INDEX(INDIRECT($Z19), MATCH('Calc - Sparklines'!$C$2,INDIRECT($AA19),0), MATCH('Calc - Sparklines'!$D19,INDIRECT($AB19),0)-N$3))=FALSE,NA(), INDEX(INDIRECT($Z19), MATCH('Calc - Sparklines'!$C$2,INDIRECT($AA19),0), MATCH('Calc - Sparklines'!$D19,INDIRECT($AB19),0)-N$3)),NA())) -> 0.67 | O19: =IF('Calc - Sparklines'!$C$2="EN",IFERROR(IF(ISNUMBER( INDEX(INDIRECT($Z19), MATCH('Calc - Sparklines'!$AF19,INDIRECT($AA19),0), MATCH('Calc - Sparklines'!$D19,INDIRECT($AB19),0)-O$3))=FALSE,NA(), INDEX(INDIRECT($Z19), MATCH('Calc - Sparklines'!$AF19,INDIRECT($AA19),0), MATCH('Calc - Sparklines'!$D19,INDIRECT($AB19),0)-O$3)),NA()),IFERROR(IF(ISNUMBER( INDEX(INDIRECT($Z19), MATCH('Calc - Sparklines'!$C$2,INDIRECT($AA19),0), MATCH('Calc - Sparklines'!$D19,INDIRECT($AB19),0)-O$3))=FALSE,NA(), INDEX(INDIRECT($Z19), MATCH('Calc - Sparklines'!$C$2,INDIRECT($AA19),0), MATCH('Calc - Sparklines'!$D19,INDIRECT($AB19),0)-O$3)),NA())) -> 0.720588235 | P19: =IF('Calc - Sparklines'!$C$2="EN",IFERROR(IF(ISNUMBER( INDEX(INDIRECT($Z19), MATCH('Calc - Sparklines'!$AF19,INDIRECT($AA19),0), MATCH('Calc - Sparklines'!$D19,INDIRECT($AB19),0)-P$3))=FALSE,NA(), INDEX(INDIRECT($Z19), MATCH('Calc - Sparklines'!$AF19,INDIRECT($AA19),0), MATCH('Calc - Sparklines'!$D19,INDIRECT($AB19),0)-P$3)),NA()),IFERROR(IF(ISNUMBER( INDEX(INDIRECT($Z19), MATCH('Calc - Sparklines'!$C$2,INDIRECT($AA19),0), MATCH('Calc - Sparklines'!$D19,INDIRECT($AB19),0)-P$3))=FALSE,NA(), INDEX(INDIRECT($Z19), MATCH('Calc - Sparklines'!$C$2,INDIRECT($AA19),0), MATCH('Calc - Sparklines'!$D19,INDIRECT($AB19),0)-P$3)),NA())) -> 0.76 | R19: =IF(COUNTA(K19:P19)-COUNTIF(K19:P19,"#N/A")<3, 0, COUNTA(K19:P19)) -> 6 | S19: =IF(P19="N/A",IF(O19="N/A",2,1),0) -> 0 | T19: =OFFSET(P19,,-S19) -> 0.76 | U19: =IF(ISERROR(O19),IF(ISERROR(N19),IF(ISERROR(M19),IF(ISERROR(L19),IF(ISERROR(K19),IF(ISERROR(J19),IF(ISERROR(I19),IF(ISERROR(H19),IF(ISERROR(G19),IF(ISERROR(F19),IF(ISERROR(E19), NA(), E19),F19),G19),H19),I19),J19),K19),L19),M19),N19),O19) -> 0.720588235 | V19: =IF(D19="","",IFERROR(IF(T19>U19,"▲", IF(T19<U19,"▼","◄►")),"N/A")) -> ▲ | W19: Sparkline66 | X19: =IF(ISNA(T19),"N/A",IF(R19<=2,"N/A","")) ->  | Z19: Data_Table_CYP_vii | AA19: Data_Orgs_CYP_vii | AB19: Data_Dates_CYP_vii | AF19: =IF('Calc - Sparklines'!$C$2="EN",IF(ISNUMBER(MATCH('Calc - Sparklines'!$C$2,INDIRECT($AA19),0)),"EN","England"),0) -> EN | AG19: =(MATCH('Calc - Sparklines'!$C$2,INDIRECT($AA19),0)) -> 2
A20: CYP_ix | B20: CYP(ix) | C20: Number of people aged 18 to 24 supported through NHS funded mental health (at least one contact) (rolling 12 months) | D20: ='CYP(ix)_FINAL CALC'!$B$6 -> Q4 2022/23 | E20: =IF('Calc - Sparklines'!$C$2="EN",IFERROR(IF(ISNUMBER( INDEX(INDIRECT($Z20), MATCH('Calc - Sparklines'!$AF20,INDIRECT($AA20),0), MATCH('Calc - Sparklines'!$D20,INDIRECT($AB20),0)-E$3))=FALSE,NA(), INDEX(INDIRECT($Z20), MATCH('Calc - Sparklines'!$AF20,INDIRECT($AA20),0), MATCH('Calc - Sparklines'!$D20,INDIRECT($AB20),0)-E$3)),NA()),IFERROR(IF(ISNUMBER( INDEX(INDIRECT($Z20), MATCH('Calc - Sparklines'!$C$2,INDIRECT($AA20),0), MATCH('Calc - Sparklines'!$D20,INDIRECT($AB20),0)-E$3))=FALSE,NA(), INDEX(INDIRECT($Z20), MATCH('Calc - Sparklines'!$C$2,INDIRECT($AA20),0), MATCH('Calc - Sparklines'!$D20,INDIRECT($AB20),0)-E$3)),NA())) ->  | F20: =IF('Calc - Sparklines'!$C$2="EN",IFERROR(IF(ISNUMBER( INDEX(INDIRECT($Z20), MATCH('Calc - Sparklines'!$AF20,INDIRECT($AA20),0), MATCH('Calc - Sparklines'!$D20,INDIRECT($AB20),0)-F$3))=FALSE,NA(), INDEX(INDIRECT($Z20), MATCH('Calc - Sparklines'!$AF20,INDIRECT($AA20),0), MATCH('Calc - Sparklines'!$D20,INDIRECT($AB20),0)-F$3)),NA()),IFERROR(IF(ISNUMBER( INDEX(INDIRECT($Z20), MATCH('Calc - Sparklines'!$C$2,INDIRECT($AA20),0), MATCH('Calc - Sparklines'!$D20,INDIRECT($AB20),0)-F$3))=FALSE,NA(), INDEX(INDIRECT($Z20), MATCH('Calc - Sparklines'!$C$2,INDIRECT($AA20),0), MATCH('Calc - Sparklines'!$D20,INDIRECT($AB20),0)-F$3)),NA())) ->  | G20: =IF('Calc - Sparklines'!$C$2="EN",IFERROR(IF(ISNUMBER( INDEX(INDIRECT($Z20), MATCH('Calc - Sparklines'!$AF20,INDIRECT($AA20),0), MATCH('Calc - Sparklines'!$D20,INDIRECT($AB20),0)-G$3))=FALSE,NA(), INDEX(INDIRECT($Z20), MATCH('Calc - Sparklines'!$AF20,INDIRECT($AA20),0), MATCH('Calc - Sparklines'!$D20,INDIRECT($AB20),0)-G$3)),NA()),IFERROR(IF(ISNUMBER( INDEX(INDIRECT($Z20), MATCH('Calc - Sparklines'!$C$2,INDIRECT($AA20),0), MATCH('Calc - Sparklines'!$D20,INDIRECT($AB20),0)-G$3))=FALSE,NA(), INDEX(INDIRECT($Z20), MATCH('Calc - Sparklines'!$C$2,INDIRECT($AA20),0), MATCH('Calc - Sparklines'!$D20,INDIRECT($AB20),0)-G$3)),NA())) ->  | H20: =IF('Calc - Sparklines'!$C$2="EN",IFERROR(IF(ISNUMBER( INDEX(INDIRECT($Z20), MATCH('Calc - Sparklines'!$AF20,INDIRECT($AA20),0), MATCH('Calc - Sparklines'!$D20,INDIRECT($AB20),0)-H$3))=FALSE,NA(), INDEX(INDIRECT($Z20), MATCH('Calc - Sparklines'!$AF20,INDIRECT($AA20),0), MATCH('Calc - Sparklines'!$D20,INDIRECT($AB20),0)-H$3)),NA()),IFERROR(IF(ISNUMBER( INDEX(INDIRECT($Z20), MATCH('Calc - Sparklines'!$C$2,INDIRECT($AA20),0), MATCH('Calc - Sparklines'!$D20,INDIRECT($AB20),0)-H$3))=FALSE,NA(), INDEX(INDIRECT($Z20), MATCH('Calc - Sparklines'!$C$2,INDIRECT($AA20),0), MATCH('Calc - Sparklines'!$D20,INDIRECT($AB20),0)-H$3)),NA())) ->  | I20: =IF('Calc - Sparklines'!$C$2="EN",IFERROR(IF(ISNUMBER( INDEX(INDIRECT($Z20), MATCH('Calc - Sparklines'!$AF20,INDIRECT($AA20),0), MATCH('Calc - Sparklines'!$D20,INDIRECT($AB20),0)-I$3))=FALSE,NA(), INDEX(INDIRECT($Z20), MATCH('Calc - Sparklines'!$AF20,INDIRECT($AA20),0), MATCH('Calc - Sparklines'!$D20,INDIRECT($AB20),0)-I$3)),NA()),IFERROR(IF(ISNUMBER( INDEX(INDIRECT($Z20), MATCH('Calc - Sparklines'!$C$2,INDIRECT($AA20),0), MATCH('Calc - Sparklines'!$D20,INDIRECT($AB20),0)-I$3))=FALSE,NA(), INDEX(INDIRECT($Z20), MATCH('Calc - Sparklines'!$C$2,INDIRECT($AA20),0), MATCH('Calc - Sparklines'!$D20,INDIRECT($AB20),0)-I$3)),NA())) ->  | J20: =IF('Calc - Sparklines'!$C$2="EN",IFERROR(IF(ISNUMBER( INDEX(INDIRECT($Z20), MATCH('Calc - Sparklines'!$AF20,INDIRECT($AA20),0), MATCH('Calc - Sparklines'!$D20,INDIRECT($AB20),0)-J$3))=FALSE,NA(), INDEX(INDIRECT($Z20), MATCH('Calc - Sparklines'!$AF20,INDIRECT($AA20),0), MATCH('Calc - Sparklines'!$D20,INDIRECT($AB20),0)-J$3)),NA()),IFERROR(IF(ISNUMBER( INDEX(INDIRECT($Z20), MATCH('Calc - Sparklines'!$C$2,INDIRECT($AA20),0), MATCH('Calc - Sparklines'!$D20,INDIRECT($AB20),0)-J$3))=FALSE,NA(), INDEX(INDIRECT($Z20), MATCH('Calc - Sparklines'!$C$2,INDIRECT($AA20),0), MATCH('Calc - Sparklines'!$D20,INDIRECT($AB20),0)-J$3)),NA())) ->  | K20: =IF('Calc - Sparklines'!$C$2="EN",IFERROR(IF(ISNUMBER( INDEX(INDIRECT($Z20), MATCH('Calc - Sparklines'!$AF20,INDIRECT($AA20),0), MATCH('Calc - Sparklines'!$D20,INDIRECT($AB20),0)-K$3))=FALSE,NA(), INDEX(INDIRECT($Z20), MATCH('Calc - Sparklines'!$AF20,INDIRECT($AA20),0), MATCH('Calc - Sparklines'!$D20,INDIRECT($AB20),0)-K$3)),NA()),IFERROR(IF(ISNUMBER( INDEX(INDIRECT($Z20), MATCH('Calc - Sparklines'!$C$2,INDIRECT($AA20),0), MATCH('Calc - Sparklines'!$D20,INDIRECT($AB20),0)-K$3))=FALSE,NA(), INDEX(INDIRECT($Z20), MATCH('Calc - Sparklines'!$C$2,INDIRECT($AA20),0), MATCH('Calc - Sparklines'!$D20,INDIRECT($AB20),0)-K$3)),NA())) ->  | L20: =IF('Calc - Sparklines'!$C$2="EN",IFERROR(IF(ISNUMBER( INDEX(INDIRECT($Z20), MATCH('Calc - Sparklines'!$AF20,INDIRECT($AA20),0), MATCH('Calc - Sparklines'!$D20,INDIRECT($AB20),0)-L$3))=FALSE,NA(), INDEX(INDIRECT($Z20), MATCH('Calc - Sparklines'!$AF20,INDIRECT($AA20),0), MATCH('Calc - Sparklines'!$D20,INDIRECT($AB20),0)-L$3)),NA()),IFERROR(IF(ISNUMBER( INDEX(INDIRECT($Z20), MATCH('Calc - Sparklines'!$C$2,INDIRECT($AA20),0), MATCH('Calc - Sparklines'!$D20,INDIRECT($AB20),0)-L$3))=FALSE,NA(), INDEX(INDIRECT($Z20), MATCH('Calc - Sparklines'!$C$2,INDIRECT($AA20),0), MATCH('Calc - Sparklines'!$D20,INDIRECT($AB20),0)-L$3)),NA())) ->  | M20: =IF('Calc - Sparklines'!$C$2="EN",IFERROR(IF(ISNUMBER( INDEX(INDIRECT($Z20), MATCH('Calc - Sparklines'!$AF20,INDIRECT($AA20),0), MATCH('Calc - Sparklines'!$D20,INDIRECT($AB20),0)-M$3))=FALSE,NA(), INDEX(INDIRECT($Z20), MATCH('Calc - Sparklines'!$AF20,INDIRECT($AA20),0), MATCH('Calc - Sparklines'!$D20,INDIRECT($AB20),0)-M$3)),NA()),IFERROR(IF(ISNUMBER( INDEX(INDIRECT($Z20), MATCH('Calc - Sparklines'!$C$2,INDIRECT($AA20),0), MATCH('Calc - Sparklines'!$D20,INDIRECT($AB20),0)-M$3))=FALSE,NA(), INDEX(INDIRECT($Z20), MATCH('Calc - Sparklines'!$C$2,INDIRECT($AA20),0), MATCH('Calc - Sparklines'!$D20,INDIRECT($AB20),0)-M$3)),NA())) -> 227967 | N20: =IF('Calc - Sparklines'!$C$2="EN",IFERROR(IF(ISNUMBER( INDEX(INDIRECT($Z20), MATCH('Calc - Sparklines'!$AF20,INDIRECT($AA20),0), MATCH('Calc - Sparklines'!$D20,INDIRECT($AB20),0)-N$3))=FALSE,NA(), INDEX(INDIRECT($Z20), MATCH('Calc - Sparklines'!$AF20,INDIRECT($AA20),0), MATCH('Calc - Sparklines'!$D20,INDIRECT($AB20),0)-N$3)),NA()),IFERROR(IF(ISNUMBER( INDEX(INDIRECT($Z20), MATCH('Calc - Sparklines'!$C$2,INDIRECT($AA20),0), MATCH('Calc - Sparklines'!$D20,INDIRECT($AB20),0)-N$3))=FALSE,NA(), INDEX(INDIRECT($Z20), MATCH('Calc - Sparklines'!$C$2,INDIRECT($AA20),0), MATCH('Calc - Sparklines'!$D20,INDIRECT($AB20),0)-N$3)),NA())) -> 225873 | O20: =IF('Calc - Sparklines'!$C$2="EN",IFERROR(IF(ISNUMBER( INDEX(INDIRECT($Z20), MATCH('Calc - Sparklines'!$AF20,INDIRECT($AA20),0), MATCH('Calc - Sparklines'!$D20,INDIRECT($AB20),0)-O$3))=FALSE,NA(), INDEX(INDIRECT($Z20), MATCH('Calc - Sparklines'!$AF20,INDIRECT($AA20),0), MATCH('Calc - Sparklines'!$D20,INDIRECT($AB20),0)-O$3)),NA()),IFERROR(IF(ISNUMBER( INDEX(INDIRECT($Z20), MATCH('Calc - Sparklines'!$C$2,INDIRECT($AA20),0), MATCH('Calc - Sparklines'!$D20,INDIRECT($AB20),0)-O$3))=FALSE,NA(), INDEX(INDIRECT($Z20), MATCH('Calc - Sparklines'!$C$2,INDIRECT($AA20),0), MATCH('Calc - Sparklines'!$D20,INDIRECT($AB20),0)-O$3)),NA())) -> 221114 | P20: =IF('Calc - Sparklines'!$C$2="EN",IFERROR(IF(ISNUMBER( INDEX(INDIRECT($Z20), MATCH('Calc - Sparklines'!$AF20,INDIRECT($AA20),0), MATCH('Calc - Sparklines'!$D20,INDIRECT($AB20),0)-P$3))=FALSE,NA(), INDEX(INDIRECT($Z20), MATCH('Calc - Sparklines'!$AF20,INDIRECT($AA20),0), MATCH('Calc - Sparklines'!$D20,INDIRECT($AB20),0)-P$3)),NA()),IFERROR(IF(ISNUMBER( INDEX(INDIRECT($Z20), MATCH('Calc - Sparklines'!$C$2,INDIRECT($AA20),0), MATCH('Calc - Sparklines'!$D20,INDIRECT($AB20),0)-P$3))=FALSE,NA(), INDEX(INDIRECT($Z20), MATCH('Calc - Sparklines'!$C$2,INDIRECT($AA20),0), MATCH('Calc - Sparklines'!$D20,INDIRECT($AB20),0)-P$3)),NA())) -> 228228 | R20: =IF(COUNTA(K20:P20)-COUNTIF(K20:P20,"#N/A")<3, 0, COUNTA(K20:P20)) -> 6 | S20: =IF(P20="N/A",IF(O20="N/A",2,1),0) -> 0 | T20: =OFFSET(P20,,-S20) -> 228228 | U20: =IF(ISERROR(O20),IF(ISERROR(N20),IF(ISERROR(M20),IF(ISERROR(L20),IF(ISERROR(K20),IF(ISERROR(J20),IF(ISERROR(I20),IF(ISERROR(H20),IF(ISERROR(G20),IF(ISERROR(F20),IF(ISERROR(E20), NA(), E20),F20),G20),H20),I20),J20),K20),L20),M20),N20),O20) -> 221114 | V20: =IF(D20="","",IFERROR(IF(T20>U20,"▲", IF(T20<U20,"▼","◄►")),"N/A")) -> ▲ | W20: Sparkline80 | X20: =IF(ISNA(T20),"N/A",IF(R20<=2,"N/A","")) ->  | Z20: Data_Table_CYP_ix | AA20: Data_Orgs_CYP_ix | AB20: Data_Dates_CYP_ix | AF20: =IF('Calc - Sparklines'!$C$2="EN",IF(ISNUMBER(MATCH('Calc - Sparklines'!$C$2,INDIRECT($AA20),0)),"EN","England"),0) -> England | AG20: =(MATCH('Calc - Sparklines'!$C$2,INDIRECT($AA20),0)) ->  | AH20: =IFERROR(P20/L20-1,"") ->  | AI20: =IFERROR(P20/H20-1,"") -> 
